Workbook

Sheet work record (hidden)
A1: S. No. | B1: Dtae | C1: Note
A2: 1 | B2: 2009-02-08 | C2: Working started on 8-2-09 by unprotecting all sheets
A3: =A2+1 -> 2 | B3: 2009-02-08 | C3: Template IJCV 16-7-08.xlt used for working
A4: =A3+1 -> 3 | B4: 2009-02-08 | C4: File saved as IFAS 2 new system 8-2-09-test as template on A.A Computer
A5: =A4+1 -> 4 | B5: =B4 -> 2009-02-08 | C5: First five years working shall be completed and test run shall be made in IBBs
A6: 5 | B6: =B5 -> 2009-02-08 | C6: If required All Macros will be disabled.
A7: 6 | B7: =B6 -> 2009-02-08 | C7: Following notes copied from old working for record purpose only
A8: 7 | D8: Formula used for rental rounding off inside programe in D coloumn for premium rounding was creating problems. It was temporarily removed.
A9: 8 | D9: This can also cause problems for very small rentals or low price formulas.
A10: 9 | D10: program for low price items should be separate without rounding off formulas.
A11: 10 | D11: Printing problems can be solved by in built macro for page setup or by giving direct command by user to print exact page number.
A12: 11 | D12: We can round off the rental directly in Mangenment but the same may not change the effective rate and may involve hiding rates penalty.
A13: 12 | B13: 2009-02-08 | C13: File name changed to IFAS 2 new system 8-2-09-test2 as template on Asad Computer
A14: 13 | B14: 2009-02-08 | C14: All unnecessary sheets hiden
A15: 14 | B15: 2009-02-13 | C15: File name changed to IFAS 2 new system 8-2-09-test3 as template on Asad Computer
A16: 15 | B16: 2009-02-13
A17: 16
A18: 17 | C18: Cells linked to E12 for rentals per year.
A19: 18 | C19: Rounding Formulara in Rentals and Takaful used.
A20: 19 | C20: Data for Error correction used in CTRL+Q is updated.
A21: 20 | C21: Sheets Management and Customer updated for Depreciation
A22: 21 | C22: Grace period profit rounded off. It will give some difference in Manual calculations and computerised calculations but the Schedule will be correct.
A23: 22 | C23: Protected all sheets for Test Run.
A24: 23 | C24: Saved for Test Run as IFAS 2 new system 8-2-09-test5
A25: 24 | C25: File copied to Miss Andleep for changing into Quarterly format.
A26: 25
A27: 26
A28: 27 | B28: 2009-05-23 | C28: Saved for Test Run as IFAS 2 new system 8-2-09-test5
A29: 28 | C29: Rounding Formulara in Rentals and Takaful used.
A30: 29 | C30: Grace period profit rounded off.
A31: 30 | B31: 2009-05-25 | C31: Printing checking
A32: 31 | B32: 2009-06-02 | C32: PROGRAM SENT FOR CONVERSION INTO Quartrly and now on any change will be required to be duplicated in both programs separately.
A33: 32 | B33: 2009-11-08 | C33: coloumn in management chnged to add takaful in depreciation and also shown separatly.
A34: 33 | C34: saved as IFAS 2 new system 7-12-09-test7 in Bushra Computer and sent on web site for record.
B35: Lines from 36 50 to 54 are hideden
A36: =A34+1 -> 34 | B36: 2010-03-09 | C36: 3. Changes of Rental within period. Work started to program the change in rental
A37: 35
A38: 36 | C38: step 1 | D38: Calculate Depreciated Value
A39: 37 | C39: step 2 | D39: Calculate grace period Profit
A40: 38 | C40: step 3 | D40: Calculate Prepaid Takaful
A41: 39 | C41: step 4 | D41: Calcualte remaining period in months
A42: 40 | C42: step 5 | D42: Decide when the next contribution will be paid
A43: 41 | C43: step 6 | D43: Delete all rows for which rental received.
C44: step 7 | D44: Insert same number of rows after the last line of same schedule
C45: step 8 | D45: calculate rental and print revised schedule.
A46: =A43+1 -> 42
A47: 43
A48: 44 | C48: Notes for Future Development
A49: 45 | C49: 1 For Staff
A50: 46 | C50: 2. Accounting Entries development
A51: 47 | C51: 3. Changes of Rental within period.
A52: 48 | C52: 4. Quarterly Program.
A53: 49 | C53: 5. premature encashment entries and program.
C54: 6. Switch over entries and system.
A56: Work for reporting IFAS 2 reporting quarterly and yearly
A58: =A34+1 -> 34 | B58: Saved as template 2003-97 as IFAS 2 for reporting test 1 11-12-2011
A59: =A58+1 -> 35 | B59: sent file to e-mail for record
A60: =A59+1 -> 36 | B60: saved as IFAS 2 for reporting test 2
A61: 37 | B61: Entries changed in the entries sheet
A62: 38 | B62: Takaful deleted from Depreciation coloumn in management sheet
A63: 39 | B63: two new coloumn s added in ma gemetn sheet for Book value and balance profit
A64: 40 | B64: saved as IFAS 2 for reporting test 3 in template and e-mailed for work at home
A65: 41 | B65: Rev -Depreciation coloumn added in Management schedule. Equal to Dep - Takafuk exp. Becoz V R entering Takaful as expense separatly.
A66: 42 | B66: A sheet called report added to generate report.
A67: 43 | B67: Revised sheet hidden in the Management sheet for generating old schedules.
A68: 44 | B68: Two versions to be issued. One showing only new depreciation schedule for working for use from 1-1- 2012
A69: 45 | B69: Second will be used for only re-generation of old schedules.
A70: 46 | B70: IFAS 2 ver30-11-2011 saved for revised schedules.
B71: IFAS 2 1-1-2012 saved for schedules from 1-1-2012.
B72: E mailed to IBBs from IFAS2 E-mail address.

Sheet Basic
A1: 1 | B1: Date | C1: =TODAY() -> 2017-04-23 | F1: Bank Name | G1: BOK, Islamic Banking Group | N1: Rental/ year | O1: months/ period for rate multiple
A2: 2 | B2: Customer Name | C2: Bok | F2: Web Address | G2: www.bok.com.pk | M2: 1 | N2: =VLOOKUP($M$2,$L$3:$O$6,3,FALSE) -> 12 | O2: =VLOOKUP($M$2,$L$3:$O$6,4,FALSE) -> 1 | P2: =VLOOKUP($M$2,$L$3:$P$7,5,FALSE) -> 30 | Q2: =VLOOKUP($M$2,$L$3:$O$6,2,FALSE) -> Monthly
A3: 3 | B3: Account # | C3: 12312 | E3: Fill all entries in Red Ink. | F3: Branch Name | G3: 0092-??-????? | L3: 1 | M3: Monthly | N3: 12 | O3: 1 | P3: 30
A4: 4 | B4: Vehicle Description | C4: 3123 | L4: 2 | M4: Quarterly | N4: 4 | O4: 3 | P4: 90
A5: 5 | B5: Cost | C5: 300000 | L5: 3 | M5: Half Yearly | N5: 2 | O5: 6 | P5: 180
A6: 6 | B6: Sec Dep (%) | C6: 0.05 | D6: OR | G6: IRR | L6: 4 | M6: Yearly | N6: 1 | O6: 12 | P6: 365
A7: 7 | B7: OR Sec Dep Amount | C7: 60000
A8: 8 | B8: Sec Deposit (for schedule) | C8: =IF(C5*C6>C7,C5*C6,C7) -> 60000 | G8: 1st Year | H8: 0.1
A9: 9 | B9: Registration | C9: 0 | G9: 2nd Year | H9: =H8 -> 0.1
A10: 10 | B10: Car Value | C10: =C5+C9 -> 300000 | G10: 3rd Year | H10: =H9 -> 0.1
A11: 11 | B11: profit on sale before time | C11: 0.05 | G11: 4th Year | H11: 0.1
A12: 12 | B12: IRR | C12: =H8 -> 0.1 | G12: 5th Year | H12: 0.1
A13: 13 | B13: Booking Period (Months) | C13: 0 | D13: OR
A14: 14 | B14: Amount of booking period profit | C14: 0 | E14: Note:
A15: 15 | B15: Booking period profit (for schedule) | C15: =IF(C14>(C5-C8)*C12*C13/12,C14,(C5-C8)*C12*C13/12) -> 0 | E15: In case any Error occur, press End select basic and reduce amount
A16: 16 | B16: Takaful Policy Rate | C16: 0.06 | D16: OR | E16: Huge amounts such as 100 Billion may cause error
A17: 17 | B17: Takaful Contribution first year actual | C17: 12000
B18: Takaful Contribution first year (for schedule) | C18: =ROUND(IF(C5*C16>C17,C5*C16,C17)/1,0) -> 18000
A19: 18 | B19: Depreciation rate for Takaful | C19: 0.9
A20: 19 | B20: First Due Date | C20: 2017-01-05
B21: Takaful Contribution
A22: 20 | B22: Ist Year | C22: =ROUND(IF(C5*C16>C17,C5*C16,C17)/1,0) -> 18000
A23: 21 | B23: 2nd Year | C23: =(ROUND((C22*$C$19)/10,0)*10) -> 16200
A24: 22 | B24: 3rd Year | C24: =(ROUND((C23*$C$19)/10,0)*10) -> 14580
A25: 23 | B25: 4th year | C25: =(ROUND((C24*$C$19)/10,0)*10) -> 13120
A26: 24 | B26: 5th year | C26: =(ROUND((C25*$C$19)/10,0)*10) -> 11810

Sheet report (hidden)
B1: Report date | C1: 2011-09-15
B2: Ijarah Period | C2: =Basic!#REF! -> 
C3: =C28 -> Due Dt | D3: =D28 -> Rentals | F3: Net Profit | K3: Term. Value | N3: Takaful | O3: 0 | P3: Dt of Maturity | Q3: A/c # | R3: Sec Dep | S3: cost | T3: Branch
B4: Required report | C4: =VLOOKUP($C$2,$A$29:$P$48,3,FALSE) ->  | D4: =VLOOKUP($C$2,$A$29:$P$48,4,FALSE) ->  | E4: =VLOOKUP($C$2,$A$29:$P$48,5,FALSE) ->  | F4: =VLOOKUP($C$2,$A$29:$P$48,6,FALSE) ->  | G4: =VLOOKUP($C$2,$A$29:$P$48,7,FALSE) ->  | H4: =VLOOKUP($C$2,$A$29:$P$48,8,FALSE) ->  | I4: =VLOOKUP($C$2,$A$29:$P$48,9,FALSE) ->  | J4: =VLOOKUP($C$2,$A$29:$P$48,10,FALSE) ->  | K4: =VLOOKUP($C$2,$A$29:$P$48,11,FALSE) ->  | L4: =VLOOKUP($C$2,$A$29:$P$48,12,FALSE) ->  | M4: =VLOOKUP($C$2,$A$29:$P$48,13,FALSE) ->  | N4: =VLOOKUP($C$2,$A$29:$P$48,14,FALSE) ->  | O4: =VLOOKUP($C$2,$A$29:$P$48,15,FALSE) ->  | P4: =VLOOKUP($C$2,$A$29:$P$48,16,FALSE) ->  | Q4: =Basic!C3 -> 12312 | R4: =Basic!C8 -> 60000 | S4: =Basic!C10 -> 300000 | T4: =Basic!#REF! -> 
C5: 3 | D5: 4 | E5: 5 | F5: 6 | G5: 7 | H5: 8 | I5: 9 | J5: 10 | K5: 11 | L5: 12 | M5: 13 | N5: 14 | O5: 15 | P5: 16 | Q5: 17 | R5: 18
D7: =L4-J4 ->  | E7: =D7-12 ->  | F7: =D7-60 -> 
D8: Not later than 1 year | E8: >1, <5 years | F8: Over 5 years | G8: Total
A10: 1 | B10: Ijarah Rentals Receivable | D10: =IF(D7>12,(12*D4),(D7*D4)) ->  | E10: =IF(E7<0,0,IF(E7>60,(60*$D$4),(E7*$D$4))) ->  | F10: =IF(F7<0,0,F7*$D$4) ->  | G10: =F10+E10+D10 -> 
A11: 2 | B11: Residual Value | D11: =R4 -> 60000 | E11: =D11 -> 60000 | F11: =D11 -> 60000 | G11: =D11 -> 60000
A12: 3 | B12: Gross Invet in Ijarah (1+2) | D12: =D11+D10 ->  | E12: =E11+E10 ->  | F12: =F11+F10 ->  | G12: =G11+G10 -> 
A13: 4 | B13: Future Income | D13: =IF(D7<12,G4," manually add income ") ->  | G13: =G4 ->  | H13: Manually add income of 12 months and remainiong 60 months and over 60 months for col D, E, F
B14: Net invest in Ijara (3-4) | D14: =D12-D13 ->  | E14: =E12-E13 ->  | F14: =F12-F13 ->  | G14: =G12-G13 -> 
B17: Report 2
B19: Cost | D19: =S4 -> 300000
B20: Accumulated Depreciation | C20: f | D20: =H4 -> 
B21: Book Value | D21: =D19-D20 -> 
B22: Security Deposit | D22: =R4 -> 60000
C27: 1 | D27: 2 | E27: 3 | F27: 4 | G27: 5 | H27: 6 | I27: 7 | J27: 8 | L27: 10 | N27: 12
B28: =Management!B12 -> 2017-02-05 | C28: =Management!B11 -> Due Dt | D28: =Management!C11 -> Rentals | E28: =Management!#REF! ->  | F28: =Management!E11 -> Net Profit | G28: =Management!#REF! ->  | H28: =Management!#REF! ->  | I28: =Management!#REF! ->  | J28: =Management!#REF! ->  | K28: =Management!F11 -> Term. Value | L28: =Management!#REF! ->  | M28: =Management!#REF! ->  | N28: =Management!G11 -> Takaful | P28: Dt of Maturity
A29: 1 | B29: =DATE(YEAR($C$1),MONTH($C$1),DAY($B$28)) -> 2011-09-05 | C29: =VLOOKUP($B29,Management!$B$12:$I$23,1,FALSE) ->  | D29: =VLOOKUP($B29,Management!$B$12:$I$23,2,FALSE) ->  | E29: =VLOOKUP($B29,Management!$B$12:$I$23,3,FALSE) ->  | F29: =VLOOKUP($B29,Management!$B$12:$I$23,4,FALSE) ->  | G29: =VLOOKUP($B29,Management!$B$12:$I$23,5,FALSE) ->  | H29: =VLOOKUP($B29,Management!$B$12:$I$23,6,FALSE) ->  | I29: =VLOOKUP($B29,Management!$B$12:$I$23,7,FALSE) ->  | J29: =VLOOKUP($B29,Management!$B$12:$I$23,8,FALSE) ->  | L29: =VLOOKUP($B29,Management!$B$12:$I$23,10,FALSE) ->  | N29: =VLOOKUP($B29,Management!$B$12:$I$23,12,FALSE) ->  | P29: =Management!B23 -> 2018-01-05
A30: 2 | B30: 2011-09-05 | C30: =VLOOKUP($B30,Management!$B$29:$I$52,1,FALSE) ->  | D30: =VLOOKUP($B30,Management!$B$29:$I$52,2,FALSE) ->  | E30: =VLOOKUP($B30,Management!$B$29:$I$52,3,FALSE) ->  | F30: =VLOOKUP($B30,Management!$B$29:$I$52,4,FALSE) ->  | G30: =VLOOKUP($B30,Management!$B$29:$I$52,5,FALSE) ->  | H30: =VLOOKUP($B30,Management!$B$29:$I$52,6,FALSE) ->  | I30: =VLOOKUP($B30,Management!$B$29:$I$52,7,FALSE) ->  | J30: =VLOOKUP($B30,Management!$B$29:$I$52,8,FALSE) ->  | L30: =VLOOKUP($B30,Management!$B$29:$I$52,10,FALSE) ->  | N30: =VLOOKUP($B30,Management!$B$29:$I$52,12,FALSE) ->  | P30: =Management!B52 -> 2019-01-05
A31: 3 | B31: 2011-09-05 | C31: =VLOOKUP($B31,Management!$B$56:$I$91,1,FALSE) ->  | D31: =VLOOKUP($B31,Management!$B$56:$I$91,2,FALSE) ->  | E31: =VLOOKUP($B31,Management!$B$56:$I$91,3,FALSE) ->  | F31: =VLOOKUP($B31,Management!$B$56:$I$91,4,FALSE) ->  | G31: =VLOOKUP($B31,Management!$B$56:$I$91,5,FALSE) ->  | H31: =VLOOKUP($B31,Management!$B$56:$I$91,6,FALSE) ->  | I31: =VLOOKUP($B31,Management!$B$56:$I$91,7,FALSE) ->  | J31: =VLOOKUP($B31,Management!$B$56:$I$91,8,FALSE) ->  | L31: =VLOOKUP($B31,Management!$B$56:$I$91,10,FALSE) ->  | N31: =VLOOKUP($B31,Management!$B$56:$I$91,12,FALSE) ->  | P31: =Management!B91 -> 2020-01-05
A32: 4 | B32: 2011-09-05 | C32: =VLOOKUP($B32,Management!$B$95:$I$142,1,FALSE) ->  | D32: =VLOOKUP($B32,Management!$B$95:$I$142,2,FALSE) ->  | E32: =VLOOKUP($B32,Management!$B$95:$I$142,3,FALSE) ->  | F32: =VLOOKUP($B32,Management!$B$95:$I$142,4,FALSE) ->  | G32: =VLOOKUP($B32,Management!$B$95:$I$142,5,FALSE) ->  | H32: =VLOOKUP($B32,Management!$B$95:$I$142,6,FALSE) ->  | I32: =VLOOKUP($B32,Management!$B$95:$I$142,7,FALSE) ->  | J32: =VLOOKUP($B32,Management!$B$95:$I$142,8,FALSE) ->  | L32: =VLOOKUP($B32,Management!$B$95:$I$142,10,FALSE) ->  | N32: =VLOOKUP($B32,Management!$B$95:$I$142,12,FALSE) ->  | P32: =Management!B142 -> 2021-01-05
A33: 5 | B33: 2011-09-05 | C33: =VLOOKUP($B33,Management!$B$146:$I$205,1,FALSE) ->  | D33: =VLOOKUP($B33,Management!$B$146:$I$205,2,FALSE) ->  | E33: =VLOOKUP($B33,Management!$B$146:$I$205,3,FALSE) ->  | F33: =VLOOKUP($B33,Management!$B$146:$I$205,4,FALSE) ->  | G33: =VLOOKUP($B33,Management!$B$146:$I$205,5,FALSE) ->  | H33: =VLOOKUP($B33,Management!$B$146:$I$205,6,FALSE) ->  | I33: =VLOOKUP($B33,Management!$B$146:$I$205,7,FALSE) ->  | J33: =VLOOKUP($B33,Management!$B$146:$I$205,8,FALSE) ->  | L33: =VLOOKUP($B33,Management!$B$146:$I$205,10,FALSE) ->  | N33: =VLOOKUP($B33,Management!$B$146:$I$205,12,FALSE) ->  | P33: =Management!B205 -> 2022-01-05
A34: 6 | B34: 2011-09-05 | C34: =VLOOKUP($B34,Management!#REF!,1,FALSE) ->  | D34: =VLOOKUP($B34,Management!#REF!,2,FALSE) ->  | E34: =VLOOKUP($B34,Management!#REF!,3,FALSE) ->  | F34: =VLOOKUP($B34,Management!#REF!,4,FALSE) ->  | G34: =VLOOKUP($B34,Management!#REF!,5,FALSE) ->  | H34: =VLOOKUP($B34,Management!#REF!,6,FALSE) ->  | I34: =VLOOKUP($B34,Management!#REF!,7,FALSE) ->  | J34: =VLOOKUP($B34,Management!#REF!,8,FALSE) ->  | L34: =VLOOKUP($B34,Management!#REF!,10,FALSE) ->  | N34: =VLOOKUP($B34,Management!#REF!,12,FALSE) ->  | P34: =Management!#REF! -> 
A35: 7 | B35: 2011-09-05 | C35: =VLOOKUP($B35,Management!#REF!,1,FALSE) ->  | D35: =VLOOKUP($B35,Management!#REF!,2,FALSE) ->  | E35: =VLOOKUP($B35,Management!#REF!,3,FALSE) ->  | F35: =VLOOKUP($B35,Management!#REF!,4,FALSE) ->  | G35: =VLOOKUP($B35,Management!#REF!,5,FALSE) ->  | H35: =VLOOKUP($B35,Management!#REF!,6,FALSE) ->  | I35: =VLOOKUP($B35,Management!#REF!,7,FALSE) ->  | J35: =VLOOKUP($B35,Management!#REF!,8,FALSE) ->  | L35: =VLOOKUP($B35,Management!#REF!,10,FALSE) ->  | N35: =VLOOKUP($B35,Management!#REF!,12,FALSE) ->  | P35: =Management!#REF! -> 
A36: 8 | B36: 2011-09-05 | C36: =VLOOKUP($B36,Management!#REF!,1,FALSE) ->  | D36: =VLOOKUP($B36,Management!#REF!,2,FALSE) ->  | E36: =VLOOKUP($B36,Management!#REF!,3,FALSE) ->  | F36: =VLOOKUP($B36,Management!#REF!,4,FALSE) ->  | G36: =VLOOKUP($B36,Management!#REF!,5,FALSE) ->  | H36: =VLOOKUP($B36,Management!#REF!,6,FALSE) ->  | I36: =VLOOKUP($B36,Management!#REF!,7,FALSE) ->  | J36: =VLOOKUP($B36,Management!#REF!,8,FALSE) ->  | L36: =VLOOKUP($B36,Management!#REF!,10,FALSE) ->  | N36: =VLOOKUP($B36,Management!#REF!,12,FALSE) ->  | P36: =Management!#REF! -> 
A37: 9 | B37: 2011-09-05 | C37: =VLOOKUP($B37,Management!#REF!,1,FALSE) ->  | D37: =VLOOKUP($B37,Management!#REF!,2,FALSE) ->  | E37: =VLOOKUP($B37,Management!#REF!,3,FALSE) ->  | F37: =VLOOKUP($B37,Management!#REF!,4,FALSE) ->  | G37: =VLOOKUP($B37,Management!#REF!,5,FALSE) ->  | H37: =VLOOKUP($B37,Management!#REF!,6,FALSE) ->  | I37: =VLOOKUP($B37,Management!#REF!,7,FALSE) ->  | J37: =VLOOKUP($B37,Management!#REF!,8,FALSE) ->  | L37: =VLOOKUP($B37,Management!#REF!,10,FALSE) ->  | N37: =VLOOKUP($B37,Management!#REF!,12,FALSE) ->  | P37: =Management!#REF! -> 
A38: 10 | B38: 2011-09-05 | C38: =VLOOKUP($B38,Management!#REF!,1,FALSE) ->  | D38: =VLOOKUP($B38,Management!#REF!,2,FALSE) ->  | E38: =VLOOKUP($B38,Management!#REF!,3,FALSE) ->  | F38: =VLOOKUP($B38,Management!#REF!,4,FALSE) ->  | G38: =VLOOKUP($B38,Management!#REF!,5,FALSE) ->  | H38: =VLOOKUP($B38,Management!#REF!,6,FALSE) ->  | I38: =VLOOKUP($B38,Management!#REF!,7,FALSE) ->  | J38: =VLOOKUP($B38,Management!#REF!,8,FALSE) ->  | L38: =VLOOKUP($B38,Management!#REF!,10,FALSE) ->  | N38: =VLOOKUP($B38,Management!#REF!,12,FALSE) ->  | P38: =Management!#REF! -> 
A39: 11 | B39: 2011-09-05 | C39: =VLOOKUP($B39,Management!#REF!,1,FALSE) ->  | D39: =VLOOKUP($B39,Management!#REF!,2,FALSE) ->  | E39: =VLOOKUP($B39,Management!#REF!,3,FALSE) ->  | F39: =VLOOKUP($B39,Management!#REF!,4,FALSE) ->  | G39: =VLOOKUP($B39,Management!#REF!,5,FALSE) ->  | H39: =VLOOKUP($B39,Management!#REF!,6,FALSE) ->  | I39: =VLOOKUP($B39,Management!#REF!,7,FALSE) ->  | J39: =VLOOKUP($B39,Management!#REF!,8,FALSE) ->  | L39: =VLOOKUP($B39,Management!#REF!,10,FALSE) ->  | N39: =VLOOKUP($B39,Management!#REF!,12,FALSE) ->  | P39: =Management!#REF! -> 
A40: 12 | B40: 2011-09-05 | C40: =VLOOKUP($B40,Management!#REF!,1,FALSE) ->  | D40: =VLOOKUP($B40,Management!#REF!,2,FALSE) ->  | E40: =VLOOKUP($B40,Management!#REF!,3,FALSE) ->  | F40: =VLOOKUP($B40,Management!#REF!,4,FALSE) ->  | G40: =VLOOKUP($B40,Management!#REF!,5,FALSE) ->  | H40: =VLOOKUP($B40,Management!#REF!,6,FALSE) ->  | I40: =VLOOKUP($B40,Management!#REF!,7,FALSE) ->  | J40: =VLOOKUP($B40,Management!#REF!,8,FALSE) ->  | L40: =VLOOKUP($B40,Management!#REF!,10,FALSE) ->  | N40: =VLOOKUP($B40,Management!#REF!,12,FALSE) ->  | P40: =Management!#REF! -> 
A41: 13 | B41: 2011-09-05 | C41: =VLOOKUP($B41,Management!#REF!,1,FALSE) ->  | D41: =VLOOKUP($B41,Management!#REF!,2,FALSE) ->  | E41: =VLOOKUP($B41,Management!#REF!,3,FALSE) ->  | F41: =VLOOKUP($B41,Management!#REF!,4,FALSE) ->  | G41: =VLOOKUP($B41,Management!#REF!,5,FALSE) ->  | H41: =VLOOKUP($B41,Management!#REF!,6,FALSE) ->  | I41: =VLOOKUP($B41,Management!#REF!,7,FALSE) ->  | J41: =VLOOKUP($B41,Management!#REF!,8,FALSE) ->  | L41: =VLOOKUP($B41,Management!#REF!,10,FALSE) ->  | N41: =VLOOKUP($B41,Management!#REF!,12,FALSE) ->  | P41: =Management!#REF! -> 
A42: 14 | B42: 2011-09-05 | C42: =VLOOKUP($B42,Management!#REF!,1,FALSE) ->  | D42: =VLOOKUP($B42,Management!#REF!,2,FALSE) ->  | E42: =VLOOKUP($B42,Management!#REF!,3,FALSE) ->  | F42: =VLOOKUP($B42,Management!#REF!,4,FALSE) ->  | G42: =VLOOKUP($B42,Management!#REF!,5,FALSE) ->  | H42: =VLOOKUP($B42,Management!#REF!,6,FALSE) ->  | I42: =VLOOKUP($B42,Management!#REF!,7,FALSE) ->  | J42: =VLOOKUP($B42,Management!#REF!,8,FALSE) ->  | L42: =VLOOKUP($B42,Management!#REF!,10,FALSE) ->  | N42: =VLOOKUP($B42,Management!#REF!,12,FALSE) ->  | P42: =Management!#REF! -> 
A43: 15 | B43: 2011-09-05 | C43: =VLOOKUP($B43,Management!#REF!,1,FALSE) ->  | D43: =VLOOKUP($B43,Management!#REF!,2,FALSE) ->  | E43: =VLOOKUP($B43,Management!#REF!,3,FALSE) ->  | F43: =VLOOKUP($B43,Management!#REF!,4,FALSE) ->  | G43: =VLOOKUP($B43,Management!#REF!,5,FALSE) ->  | H43: =VLOOKUP($B43,Management!#REF!,6,FALSE) ->  | I43: =VLOOKUP($B43,Management!#REF!,7,FALSE) ->  | J43: =VLOOKUP($B43,Management!#REF!,8,FALSE) ->  | L43: =VLOOKUP($B43,Management!#REF!,10,FALSE) ->  | N43: =VLOOKUP($B43,Management!#REF!,12,FALSE) ->  | P43: =Management!#REF! -> 
A44: 16 | B44: 2011-09-05 | C44: =VLOOKUP($B44,Management!#REF!,1,FALSE) ->  | D44: =VLOOKUP($B44,Management!#REF!,2,FALSE) ->  | E44: =VLOOKUP($B44,Management!#REF!,3,FALSE) ->  | F44: =VLOOKUP($B44,Management!#REF!,4,FALSE) ->  | G44: =VLOOKUP($B44,Management!#REF!,5,FALSE) ->  | H44: =VLOOKUP($B44,Management!#REF!,6,FALSE) ->  | I44: =VLOOKUP($B44,Management!#REF!,7,FALSE) ->  | J44: =VLOOKUP($B44,Management!#REF!,8,FALSE) ->  | L44: =VLOOKUP($B44,Management!#REF!,10,FALSE) ->  | N44: =VLOOKUP($B44,Management!#REF!,12,FALSE) ->  | P44: =Management!#REF! -> 
A45: 17 | B45: 2011-09-05 | C45: =VLOOKUP($B45,Management!#REF!,1,FALSE) ->  | D45: =VLOOKUP($B45,Management!#REF!,2,FALSE) ->  | E45: =VLOOKUP($B45,Management!#REF!,3,FALSE) ->  | F45: =VLOOKUP($B45,Management!#REF!,4,FALSE) ->  | G45: =VLOOKUP($B45,Management!#REF!,5,FALSE) ->  | H45: =VLOOKUP($B45,Management!#REF!,6,FALSE) ->  | I45: =VLOOKUP($B45,Management!#REF!,7,FALSE) ->  | J45: =VLOOKUP($B45,Management!#REF!,8,FALSE) ->  | L45: =VLOOKUP($B45,Management!#REF!,10,FALSE) ->  | N45: =VLOOKUP($B45,Management!#REF!,12,FALSE) ->  | P45: =Management!#REF! -> 
A46: 18 | B46: 2011-09-05 | C46: =VLOOKUP($B46,Management!#REF!,1,FALSE) ->  | D46: =VLOOKUP($B46,Management!#REF!,2,FALSE) ->  | E46: =VLOOKUP($B46,Management!#REF!,3,FALSE) ->  | F46: =VLOOKUP($B46,Management!#REF!,4,FALSE) ->  | G46: =VLOOKUP($B46,Management!#REF!,5,FALSE) ->  | H46: =VLOOKUP($B46,Management!#REF!,6,FALSE) ->  | I46: =VLOOKUP($B46,Management!#REF!,7,FALSE) ->  | J46: =VLOOKUP($B46,Management!#REF!,8,FALSE) ->  | L46: =VLOOKUP($B46,Management!#REF!,10,FALSE) ->  | N46: =VLOOKUP($B46,Management!#REF!,12,FALSE) ->  | P46: =Management!#REF! -> 
A47: 19 | B47: 2011-09-05 | C47: =VLOOKUP($B47,Management!#REF!,1,FALSE) ->  | D47: =VLOOKUP($B47,Management!#REF!,2,FALSE) ->  | E47: =VLOOKUP($B47,Management!#REF!,3,FALSE) ->  | F47: =VLOOKUP($B47,Management!#REF!,4,FALSE) ->  | G47: =VLOOKUP($B47,Management!#REF!,5,FALSE) ->  | H47: =VLOOKUP($B47,Management!#REF!,6,FALSE) ->  | I47: =VLOOKUP($B47,Management!#REF!,7,FALSE) ->  | J47: =VLOOKUP($B47,Management!#REF!,8,FALSE) ->  | L47: =VLOOKUP($B47,Management!#REF!,10,FALSE) ->  | N47: =VLOOKUP($B47,Management!#REF!,12,FALSE) ->  | P47: =Management!#REF! -> 
A48: 20 | B48: 2011-09-05 | C48: =VLOOKUP($B48,Management!#REF!,1,FALSE) ->  | D48: =VLOOKUP($B48,Management!#REF!,2,FALSE) ->  | E48: =VLOOKUP($B48,Management!#REF!,3,FALSE) ->  | F48: =VLOOKUP($B48,Management!#REF!,4,FALSE) ->  | G48: =VLOOKUP($B48,Management!#REF!,5,FALSE) ->  | H48: =VLOOKUP($B48,Management!#REF!,6,FALSE) ->  | I48: =VLOOKUP($B48,Management!#REF!,7,FALSE) ->  | J48: =VLOOKUP($B48,Management!#REF!,8,FALSE) ->  | L48: =VLOOKUP($B48,Management!#REF!,10,FALSE) ->  | N48: =VLOOKUP($B48,Management!#REF!,12,FALSE) ->  | P48: =Management!#REF! -> 

Sheet Summary
A1: =Basic!G1 -> BOK, Islamic Banking Group | I1: =Basic!M2 -> 1 | J1: =Basic!Q$2 -> Monthly | K1: =Basic!N2 -> 12
A2: =Basic!G2 -> www.bok.com.pk
A3: =Basic!G3 -> 0092-??-?????
A4: =J1&" Rentals Ijarah Schedules" -> Monthly Rentals Ijarah Schedules
A5: Periods | B5: 1 Year | C5: 2 Years | D5: 3 Years | E5: 4 years | F5: 5 Years
A6: Value | B6: =Basic!$C$10 -> 300000 | C6: =Basic!$C$10 -> 300000 | D6: =Basic!$C$10 -> 300000 | E6: =Basic!$C$10 -> 300000 | F6: =Basic!$C$10 -> 300000
A7: Security Deposit | B7: =Basic!$C$8 -> 60000 | C7: =Basic!$C$8 -> 60000 | D7: =Basic!$C$8 -> 60000 | E7: =Basic!$C$8 -> 60000 | F7: =Basic!$C$8 -> 60000
A8: Bank's Investment | B8: =B6-B7 -> 240000 | C8: =C6-C7 -> 240000 | D8: =D6-D7 -> 240000 | E8: =E6-E7 -> 240000 | F8: =F6-F7 -> 240000 | H8: ="Selected option is "&J1 -> Selected option is Monthly
A9: Estimated Takaful | B9: =Basic!$C$22 -> 18000 | C9: =Basic!$C$22+Basic!$C$23 -> 34200 | D9: =Basic!$C$22+Basic!$C$23+Basic!$C$24 -> 48780 | E9: =Basic!$C$22+Basic!$C$23+Basic!$C$24+Basic!$C$25 -> 61900 | F9: =Basic!$C$22+Basic!$C$23+Basic!$C$24+Basic!$C$25+Basic!$C$26 -> 73710
A10: Bank's Profit | B10: =IF($I$1=1,Y!R19,IF($I$1=2,Yq!R11,IF($I$1=3,Yhy!R9,IF($I$1=4,Yy!R8,"ERROR")))) -> 14076.18215 | C10: =IF($I$1=1,Y!R61,IF($I$1=2,Yq!R45,IF($I$1=3,Yhy!R41,IF($I$1=4,Yy!R39,"ERROR")))) -> 27862.6047 | D10: =IF($I$1=1,Y!R113,IF($I$1=2,Yq!R89,IF($I$1=3,Yhy!R83,IF($I$1=4,Yy!R80,"ERROR")))) -> 42055.1904 | E10: =IF($I$1=1,Y!R175,IF($I$1=2,Yq!R143,IF($I$1=3,Yhy!R135,IF($I$1=4,Yy!R131,"ERROR")))) -> 56957.2866 | F10: =IF($I$1=1,Y!R246,IF($I$1=2,Yq!R206,IF($I$1=3,Yhy!R196,IF($I$1=4,Yy!R191,"ERROR")))) -> 71785.96257
A11: Total payment by customer | B11: =SUM(B7:B10) -> 332076.1822 | C11: =SUM(C7:C10) -> 362062.6047 | D11: =SUM(D7:D10) -> 390835.1904 | E11: =SUM(E7:E10) -> 418857.2866 | F11: =SUM(F7:F10) -> 445495.9626
A12: =J1&" Rental/" -> Monthly Rental/ | B12: =IF($I$1=1,Y!S18,IF($I$1=2,Yq!S10,IF($I$1=3,Yhy!S8,IF($I$1=4,Yy!S7,"ERROR")))) -> 22673.01518 | C12: =IF($I$1=1,Y!S60,IF($I$1=2,Yq!S44,IF($I$1=3,Yhy!S40,IF($I$1=4,Yy!S38,"ERROR")))) -> 12585.94186 | D12: =IF($I$1=1,Y!S112,IF($I$1=2,Yq!S88,IF($I$1=3,Yhy!S82,IF($I$1=4,Yy!S79,"ERROR")))) -> 9189.8664 | E12: =IF($I$1=1,Y!S174,IF($I$1=2,Yq!S142,IF($I$1=3,Yhy!S134,IF($I$1=4,Yy!S130,"ERROR")))) -> 7476.193471 | F12: =IF($I$1=1,Y!S245,IF($I$1=2,Yq!S205,IF($I$1=3,Yhy!S195,IF($I$1=4,Yy!S190,"ERROR")))) -> 6424.93271 | G12: Round off using lines 23 and 25
A13: Total Rentals | B13: =B$12*$K$1*LEFT(B5,1) -> 272076.1822 | C13: =C$12*$K$1*LEFT(C5,1) -> 302062.6047 | D13: 330835.1904 | E13: 358857.2866 | F13: 385495.9626
A14: IRR | B14: =IF($I$1=1,Y!U5,IF($I$1=2,Yq!U5,IF($I$1=3,Yhy!U5,IF($I$1=4,Yy!U5,"ERROR")))) -> 0.09922622686 | C14: =IF($I$1=1,Y!U35,IF($I$1=2,Yq!U35,IF($I$1=3,Yhy!U35,IF($I$1=4,Yy!U35,"ERROR")))) -> 0.1003240759 | D14: =IF($I$1=1,Y!U75,IF($I$1=2,Yq!U75,IF($I$1=3,Yhy!U75,IF($I$1=4,Yy!U75,"ERROR")))) -> 0.1005157036 | E14: =IF($I$1=1,Y!U125,IF($I$1=2,Yq!U125,IF($I$1=3,Yhy!U125,IF($I$1=4,Yy!U125,"ERROR")))) -> 0.1008758437 | F14: =IF($I$1=1,Y!U184,IF($I$1=2,Yq!U184,IF($I$1=3,Yhy!U184,IF($I$1=4,Yy!U184,"ERROR")))) -> 0.1001981263
A15: 1. This is the tentative calculation for understanding of customer. Actual calculations may vary at times of actual delivery. | G15: Correct / round off rental in line 23, 25
A16: 2. It does not constitute commitment on part of bank to provide any machinery/ vehicle on Ijarah
A17: 3. Bank has the right to reject any application at any time without assigning any reason.
A18: 4. Customer can offer to increase security deposit to reduce the rental.
A19: Errors | B19: =B13-B11+B7 -> 5.884794518e-08 | C19: =C13-C11+C7 -> 2.910383046e-10 | D19: =D13-D11+D7 -> 3.288732842e-08 | E19: =E13-E11+E7 -> 5.820766091e-10 | F19: =F13-F11+F7 -> 6.4028427e-10
A20: Round of Rental | B20: =B5 -> 1 Year | C20: =C5 -> 2 Years | D20: =D5 -> 3 Years | E20: =E5 -> 4 years | F20: =F5 -> 5 Years
A21: ="IRR - " &Basic!Q2 -> IRR - Monthly | B21: =IF($I$1=1,Y!U5,IF($I$1=2,Yq!U5,IF($I$1=3,Yhy!U5,IF($I$1=4,Yy!U5,"ERROR")))) -> 0.09922622686 | C21: =IF($I$1=1,Y!U35,IF($I$1=2,Yq!U35,IF($I$1=3,Yhy!U35,IF($I$1=4,Yy!U35,"ERROR")))) -> 0.1003240759 | D21: =IF($I$1=1,Y!U75,IF($I$1=2,Yq!U75,IF($I$1=3,Yhy!U75,IF($I$1=4,Yy!U75,"ERROR")))) -> 0.1005157036 | E21: =IF($I$1=1,Y!U125,IF($I$1=2,Yq!U125,IF($I$1=3,Yhy!U125,IF($I$1=4,Yy!U125,"ERROR")))) -> 0.1008758437 | F21: =IF($I$1=1,Y!U184,IF($I$1=2,Yq!U184,IF($I$1=3,Yhy!U184,IF($I$1=4,Yy!U184,"ERROR")))) -> 0.1001981263
A22: Cost actual | B22: =IF($I$1=1,Y!B2,IF($I$1=2,Yq!B2,IF($I$1=3,Yhy!B2,IF($I$1=4,Yy!B2,"ERROR")))) -> 21091.17691 | C22: =IF($I$1=1,(Y!B32),IF($I$1=2,(Yq!B32),IF($I$1=3,Yhy!B32,IF($I$1=4,Yy!B32,"ERROR")))) -> 11078.02467 | D22: =IF($I$1=1,Y!B72,IF($I$1=2,Yq!B72,IF($I$1=3,Yhy!B72,IF($I$1=4,Yy!B72,"ERROR")))) -> 7750.348128 | E22: =IF($I$1=1,Y!B122,IF($I$1=2,Yq!B122,IF($I$1=3,Yhy!B122,IF($I$1=4,Yy!B122,"ERROR")))) -> 6097.752007 | F22: =IF($I$1=1,Y!B181,IF($I$1=2,Yq!B181,IF($I$1=3,Yhy!B181,IF($I$1=4,Yy!B181,"ERROR")))) -> 5101.244623 | G22: line 22 used
A23: Revised | B23: =B22 -> 21091.17691 | C23: =C22 -> 11078.02467 | D23: =D22 -> 7750.348128 | E23: =E22 -> 6097.752007 | F23: =F22 -> 5101.244623 | G23: line 23 used
A24: Takaful actual | B24: =IF($I$1=1,(Y!F2),IF($I$1=2,(Yq!F2),IF($I$1=3,Yhy!F2,IF($I$1=4,Yy!F2,"ERROR")))) -> 1581.838268 | C24: =IF($I$1=1,(Y!F32),IF($I$1=2,(Yq!F32),IF($I$1=3,Yhy!F32,IF($I$1=4,Yy!F32,"ERROR")))) -> 1507.917192 | D24: =IF($I$1=1,(Y!F72),IF($I$1=2,(Yq!F72),IF($I$1=3,Yhy!F72,IF($I$1=4,Yy!F72,"ERROR")))) -> 1439.518272 | E24: =IF($I$1=1,(Y!F122),IF($I$1=2,(Yq!F122),IF($I$1=3,Yhy!F122,IF($I$1=4,Yy!F122,"ERROR")))) -> 1378.441464 | F24: =IF($I$1=1,(Y!F181),IF($I$1=2,(Yq!F181),IF($I$1=3,Yhy!F181,IF($I$1=4,Yy!F181,"ERROR")))) -> 1323.688087 | G24: line 24 used
A25: Revised | B25: =B24 -> 1581.838268 | C25: =C24 -> 1507.917192 | D25: =D24 -> 1439.518272 | E25: =E24 -> 1378.441464 | F25: =F24 -> 1323.688087 | G25: line 25 used

Sheet IFAS 2 Entries (hidden)
A1: The Bank of Khyber
A2: Islamic Banking division
A3: Ijarah Entries under IFAS-II
A4: Charging of processing fee by the Bank
A5: Dr. | C5: Party Account | H5: Liability
A6: Cr. | D6: Processing Fee | H6: Income
A7: For Security Deposit
A8: Dr, | C8: Party account | H8: Liability
A9: Cr. | D9: Security Deposit | H9: Liability
A10: Disbursement of Future Ijarah Amount
A11: Dr. | C11: Advance Against Ijarah Assets | H11: Asset
A12: Cr. | D12: Bill payable - DD Payable - Party account | H12: Liability
A13: Paying Annual Ijarah Takaful Amount
A14: Dr. | C14: Prepaid Expense Takaful | H14: Asset
A15: Cr. | D15: B/P, D/D, P/O | H15: Liability
A16: Creation of Ijarah at the Time of Delivery of Vehicle
A17: Dr. | C17: Ijarah Assets | H17: Asset
A18: Cr. | D18: Advance Against Ijarah Assets | H18: Asset
A19: Month End Entry
A20: Dr. | C20: Rentals Receivable - Ijarah Assets | H20: Asset
A21: Cr. | D21: Rental Income - Ijarah Assets | H21: Asset
A22: Dr. | C22: Depreciation - Ijarah Assets | H22: Expense
A23: Cr. | D23: Accumulated Depreciation - Ijarah Assets | H23: Liability
A24: Dr. | C24: Takaful Expense | H24: Expense
A25: Cr. | D25: Prepaid Takaful Expense | H25: Liability
A26: Receipt of Rental
A27: Dr. | C27: Party Account | H27: Liability
A28: Cr. | D28: Rentals Receivable - Ijarah Assets | H28: Asset
A29: Annual Takaful
A30: Dr. | C30: Prepaid Expense Takaful | H30: Asset
A31: Cr. | D31: Bill Payable - DD Payable | H31: Liability
A32: Security Deposit returned to Customer
A33: Dr. | C33: Security Deposit Account | H33: Liability
A34: Cr. | D34: Party Account | H34: Liability
A35: Purchase of Car/Machiner by the Client on Maturity
A36: Dr. | C36: Party Account / Cash | H36: Liability
A37: Dr. | C37: Accumulated Depreciation - Ijarah Assets | H37: Liability
A38: Cr. | D38: Ijarah Assets | H38: Asset
A39: Car/Machinery becomes Fixed Asset of the Bank
A40: Dr. | C40: Fixed Asset - Returned / Repossesed under Ijarah | H40: Asset
A41: Dr. | C41: Accumulated Depreciation - Ijarah Assets | H41: Liability
A42: Cr. | D42: Ijarah Assets | H42: Asset
A43: In Case of Default - Entry of Branches
A44: Dr. | C44: Income Recoverable - Ijarah Assets | H44: Income
A45: Cr. | D45: Rentals Receivable - Ijarah Assets | H45: Asset
A46: Dr. | C46: Rental Income - Ijarah Assets | H46: Asset
A47: Cr. | D47: Income Reserve - Ijarah Assets | H47: Income
A48: In Case of Default - Entry by Head Office
A49: Dr. | C49: P&L for the Year | H49: Liability
A50: Cr. | D50: Provision for NPLs - Ijarah Assets | H50: Income
A51: Default Obligation Amount
A52: Dr. | C52: Cash
A53: Cr. | D53: Charity Account
A54: Charity Paid
A55: Dr. | C55: Charity Account
A56: Cr. | D56: Cash

Sheet Summary year11to 20 (hidden)
A1: The Bank of Khyber
A2: Islamic Banking Division
A3: www.bok.com.pk (ibd@bok.com.pk)
A4: Periods | B4: 11 Years | C4: 12 Years | D4: 13 Years | E4: 14 years | F4: 15 Years | G4: 16 Years | H4: 17 Years | I4: 18 years | J4: 19 years | K4: 20 years
A5: Value | B5: =Basic!C10 -> 300000 | C5: =Basic!C10 -> 300000 | D5: =Basic!C10 -> 300000 | E5: =Basic!C10 -> 300000 | F5: =Basic!C10 -> 300000 | G5: =Basic!C10 -> 300000 | H5: =Basic!$C$10 -> 300000 | I5: =Basic!$C$10 -> 300000 | J5: =Basic!$C$10 -> 300000 | K5: =Basic!$C$10 -> 300000
A6: Security Deposit | B6: =Basic!C8 -> 60000 | C6: =Basic!C8 -> 60000 | D6: =Basic!C8 -> 60000 | E6: =Basic!C8 -> 60000 | F6: =Basic!C8 -> 60000 | G6: =Basic!C8 -> 60000 | H6: =Basic!$C$8 -> 60000 | I6: =Basic!$C$8 -> 60000 | J6: =Basic!$C$8 -> 60000 | K6: =Basic!$C$8 -> 60000
A7: Investment | B7: =B5-B6 -> 240000 | C7: =C5-C6 -> 240000 | D7: 240000 | E7: 240000 | F7: 240000 | G7: 240000 | H7: 240000 | I7: 240000 | J7: =J5-J6 -> 240000 | K7: =K5-K6 -> 240000
A8: Profit | B8: =Management!#REF! ->  | C8: =Management!#REF! ->  | D8: =Management!#REF! ->  | E8: =Management!#REF! ->  | F8: =Management!#REF! ->  | G8: =Management!#REF! ->  | H8: =Management!#REF! ->  | I8: =Management!#REF! ->  | J8: =Management!#REF! ->  | K8: =Management!#REF! -> 
A9: Takaful | B9: =Management!#REF! ->  | C9: =Management!#REF! ->  | D9: =Management!#REF! ->  | E9: =Management!#REF! ->  | F9: =Management!#REF! ->  | G9: =Management!#REF! ->  | H9: =Management!#REF! ->  | I9: =Management!#REF! ->  | J9: =Management!#REF! ->  | K9: =Management!#REF! -> 
A10: Total payments | B10: =SUM(B6:B9) ->  | C10: =SUM(C6:C9) ->  | J10: =SUM(J6:J9) ->  | K10: =SUM(K6:K9) -> 
A11: Total Rentals | B11: =B$12*12*11 ->  | C11: =C$12*12*12 ->  | D11: =D$12*12*13 ->  | E11: =E$12*12*14 ->  | F11: =F$12*12*15 ->  | G11: =G$12*12*16 ->  | H11: =H$12*12*17 ->  | I11: =I$12*12*18 ->  | J11: =J$12*12*19 ->  | K11: =K$12*12*20 -> 
A12: Rental/Month | B12: =Management!#REF! ->  | C12: =Management!#REF! ->  | D12: =Management!#REF! ->  | E12: =Management!#REF! ->  | F12: =Management!#REF! ->  | G12: =Management!#REF! ->  | H12: =Management!#REF! ->  | I12: =Management!#REF! ->  | J12: =Management!#REF! ->  | K12: =Management!#REF! -> 
A13: IRR | B13: =Y!#REF! ->  | C13: =Y!#REF! ->  | D13: =Y!#REF! ->  | E13: =Y!#REF! ->  | F13: =Y!#REF! ->  | G13: =Y!#REF! ->  | H13: =Y!#REF! ->  | I13: =Y!#REF! ->  | J13: =Y!#REF! ->  | K13: =Y!#REF! -> 
A14: 1. This is the tentative calculation for understanding of customer. Actual calculations may vary at times of actual delivery.
A15: 2. It does not constitute commitment on part of bank to provide any machinery/ vehicle on Ijarah
A16: 3. Bank has the right to reject any application at any time without assigning any reason.
A17: 4. Customer can offer to increase security deposit to reduce the rental.
E18: Date: | F18: =TODAY() -> 2017-04-23
A19: Errors | B19: =B11-B10+B6 ->  | C19: =C11-C10+C6 -> 
A20: Round of Rental | B20: 11 | C20: 12 | D20: 13 | E20: 14 | F20: 15 | G20: 16 | H20: 17 | I20: 18 | J20: 19 | K20: 20
A21: IRR | B21: =Y!#REF! ->  | C21: =Y!#REF! ->  | D21: =Y!#REF! ->  | E21: =Y!#REF! ->  | F21: =Y!#REF! ->  | G21: =Y!#REF! ->  | H21: =Y!#REF! ->  | I21: =Y!#REF! ->  | J21: =Y!#REF! ->  | K21: =Y!#REF! -> 
A22: Cost actual | B22: =ROUND((Y!#REF!+Y!#REF!)/1,0) ->  | C22: =ROUND((Y!#REF!+Y!#REF!)/1,0) ->  | D22: =ROUND((Y!#REF!+Y!#REF!)/1,0) ->  | E22: =ROUND((Y!#REF!+Y!#REF!)/1,0) ->  | F22: =ROUND((Y!#REF!+Y!#REF!)/1,0) ->  | G22: =ROUND((Y!#REF!+Y!#REF!)/1,0) ->  | H22: =ROUND((Y!#REF!+Y!#REF!)/1,0) ->  | I22: =ROUND((Y!#REF!+Y!#REF!)/1,0) ->  | J22: =ROUND((Y!#REF!+Y!#REF!)/1,0) ->  | K22: =ROUND((Y!#REF!+Y!#REF!)/1,0) -> 
A23: Revised | B23: =B22 ->  | C23: =C22 ->  | I23: 550
A24: Takaful actual | B24: =Y!#REF! ->  | C24: =Y!#REF! ->  | D24: =Y!#REF! ->  | E24: =Y!#REF! ->  | F24: =Y!#REF! ->  | G24: =Y!#REF! ->  | H24: =Y!#REF! ->  | I24: =Y!#REF! ->  | J24: =Y!#REF! ->  | K24: =Y!#REF! -> 
A25: Revised | B25: =B24 ->  | C25: =C24 ->  | I25: 70

Sheet Management
A1: =Basic!G1 -> BOK, Islamic Banking Group | J1: In case a schdule is not printed correctly, Note the Page number and print from Print command directly.
A2: =Basic!G2 -> www.bok.com.pk
A3: =Basic!G3 -> 0092-??-?????
A4: Date | E4: =Basic!C1 -> 2017-04-23 | T4: In case a schdule is not printed correctly, Note the Page number and printschedule by giving page number from Print command directly.
A5: Customer | C5: =Basic!#REF! ->  | D5: Customer | E5: =Basic!C2 -> Bok
A6: Account Number | E6: =Basic!C3 -> 12312
A7: Vehicle Description | E7: =Basic!C4 -> 3123
A8: Vehicle Price | E8: =Basic!C10 -> 300000
A9: Security Deposit | E9: =Basic!C8 -> 60000
A10: Profit Rate | E10: =Basic!C12 -> 0.1
A11: Ins | B11: Due Dt | C11: Rentals | D11: Depreciation | E11: Net Profit | F11: Term. Value | G11: Takaful | H11: These sheets should not be signed by customer
A12: 1 | B12: =DATE(YEAR(Basic!C20),MONTH(Basic!C20)+1,DAY(Basic!C20)) -> 2017-02-05 | C12: =Y!S7 -> 22673.01518 | D12: =Y!P7 -> 19106.65237 | E12: =Y!R7 -> 2133.363878 | F12: =Y!T7 -> 308505 | G12: =Y!Q7 -> 1432.998928
A13: =A12+1 -> 2 | B13: =DATE(YEAR(B12),MONTH(B12)+1,DAY(B12)) -> 2017-03-05 | C13: =Y!S8 -> 22673.01518 | D13: =Y!P8 -> 19264.64246 | E13: =Y!R8 -> 1963.524536 | F13: =Y!T8 -> 286832 | G13: =Y!Q8 -> 1444.848184
A14: 3 | B14: 2017-04-05 | C14: =Y!S9 -> 22673.01518 | D14: =Y!P9 -> 19423.93894 | E14: =Y!R9 -> 1792.280818 | F14: =Y!T9 -> 264980 | G14: =Y!Q9 -> 1456.795421
A15: 4 | B15: 2017-05-05 | C15: =Y!S10 -> 22673.01518 | D15: =Y!P10 -> 19584.55262 | E15: =Y!R10 -> 1619.621111 | F15: =Y!T10 -> 242948 | G15: =Y!Q10 -> 1468.841447
A16: 5 | B16: 2017-06-05 | C16: =Y!S11 -> 22673.01518 | D16: =Y!P11 -> 19746.49439 | E16: =Y!R11 -> 1445.533706 | F16: =Y!T11 -> 220733 | G16: =Y!Q11 -> 1480.98708
A17: 6 | B17: 2017-07-05 | C17: =Y!S12 -> 22673.01518 | D17: =Y!P12 -> 19909.77524 | E17: =Y!R12 -> 1270.006798 | F17: =Y!T12 -> 198334 | G17: =Y!Q12 -> 1493.233143
A18: 7 | B18: 2017-08-05 | C18: =Y!S13 -> 22673.01518 | D18: =Y!P13 -> 20074.40623 | E18: =Y!R13 -> 1093.028485 | F18: =Y!T13 -> 175751 | G18: =Y!Q13 -> 1505.580467
A19: 8 | B19: 2017-09-05 | C19: =Y!S14 -> 22673.01518 | D19: =Y!P14 -> 20240.39853 | E19: =Y!R14 -> 914.5867633 | F19: =Y!T14 -> 152980 | G19: =Y!Q14 -> 1518.029889
A20: 9 | B20: 2017-10-05 | C20: =Y!S15 -> 22673.01518 | D20: =Y!P15 -> 20407.76339 | E20: =Y!R15 -> 734.6695338 | F20: =Y!T15 -> 130022 | G20: =Y!Q15 -> 1530.582254
A21: 10 | B21: 2017-11-05 | C21: =Y!S16 -> 22673.01518 | D21: =Y!P16 -> 20576.51217 | E21: =Y!R16 -> 553.2645953 | F21: =Y!T16 -> 106873 | G21: =Y!Q16 -> 1543.238413
A22: 11 | B22: 2017-12-05 | C22: =Y!S17 -> 22673.01518 | D22: =Y!P17 -> 20746.65631 | E22: =Y!R17 -> 370.3596462 | F22: =Y!T17 -> 83533 | G22: =Y!Q17 -> 1555.999223 | J22: Round off rentals using lines 23 and 25 in Summery sheet
A23: 12 | B23: 2018-01-05 | C23: =Y!S18 -> 22673.01518 | D23: =Y!P18 -> 20918.20735 | E23: =Y!R18 -> 185.9422831 | F23: =Y!T18 -> 60000 | G23: =Y!Q18 -> 1568.865551
A24: Total | C24: =SUM(C12:C23) -> 272076.1822 | D24: =SUM(D12:D23) -> 240000 | E24: =SUM(E12:E23) -> 14076.18215 | G24: =SUM(G12:G23) -> 18000
A28: Inst | B28: Due Dt | C28: Rentals | D28: Dep- revised | E28: Net Profit | F28: Term. Value | G28: Takaful | H28: These sheets should not be signed by customer
A29: 1 | B29: =DATE(YEAR(Basic!C20),MONTH(Basic!C20)+1,DAY(Basic!C20)) -> 2017-02-05 | C29: =Y!S37 -> 12585.94186 | D29: =Y!P37 -> 9072.171066 | E29: =Y!R37 -> 2156.963332 | F29: =Y!T37 -> 319117 | G29: =Y!Q37 -> 1356.807465
A30: =A29+1 -> 2 | B30: =DATE(YEAR(B29),MONTH(B29)+1,DAY(B29)) -> 2017-03-05 | C30: =Y!S38 -> 12585.94186 | D30: =Y!P38 -> 9147.993762 | E30: =Y!R38 -> 2069.750258 | F30: =Y!T38 -> 308144 | G30: =Y!Q38 -> 1368.197843
A31: 3 | B31: 2017-04-05 | C31: =Y!S39 -> 12585.94186 | D31: =Y!P39 -> 9224.450163 | E31: =Y!R39 -> 1981.807856 | F31: =Y!T39 -> 297078 | G31: =Y!Q39 -> 1379.683843
A32: 4 | B32: 2017-05-05 | C32: =Y!S40 -> 12585.94186 | D32: =Y!P40 -> 9301.545566 | E32: =Y!R40 -> 1893.130029 | F32: =Y!T40 -> 285921 | G32: =Y!Q40 -> 1391.266268
A33: 5 | B33: 2017-06-05 | C33: =Y!S41 -> 12585.94186 | D33: =Y!P41 -> 9379.285311 | E33: =Y!R41 -> 1803.710625 | F33: =Y!T41 -> 274669 | G33: =Y!Q41 -> 1402.945927
A34: 6 | B34: 2017-07-05 | C34: =Y!S42 -> 12585.94186 | D34: =Y!P42 -> 9457.674782 | E34: =Y!R42 -> 1713.543443 | F34: =Y!T42 -> 263324 | G34: =Y!Q42 -> 1414.723637
A35: 7 | B35: 2017-08-05 | C35: =Y!S43 -> 12585.94186 | D35: =Y!P43 -> 9536.719412 | E35: =Y!R43 -> 1622.622231 | F35: =Y!T43 -> 251884 | G35: =Y!Q43 -> 1426.60022
A36: 8 | B36: 2017-09-05 | C36: =Y!S44 -> 12585.94186 | D36: =Y!P44 -> 9616.424674 | E36: =Y!R44 -> 1530.940681 | F36: =Y!T44 -> 240348 | G36: =Y!Q44 -> 1438.576508
A37: 9 | B37: 2017-10-05 | C37: =Y!S45 -> 12585.94186 | D37: =Y!P45 -> 9696.796091 | E37: =Y!R45 -> 1438.492436 | F37: =Y!T45 -> 228716 | G37: =Y!Q45 -> 1450.653335
A38: 10 | B38: 2017-11-05 | C38: =Y!S46 -> 12585.94186 | D38: =Y!P46 -> 9777.839231 | E38: =Y!R46 -> 1345.271084 | F38: =Y!T46 -> 216986 | G38: =Y!Q46 -> 1462.831548
A39: 11 | B39: 2017-12-05 | C39: =Y!S47 -> 12585.94186 | D39: =Y!P47 -> 9859.559706 | E39: =Y!R47 -> 1251.27016 | F39: =Y!T47 -> 205159 | G39: =Y!Q47 -> 1475.111997
A40: 12 | B40: 2018-01-05 | C40: =Y!S48 -> 12585.94186 | D40: =Y!P48 -> 9941.963178 | E40: =Y!R48 -> 1156.483145 | F40: =Y!T48 -> 209432 | G40: =Y!Q48 -> 1487.49554
A41: 13 | B41: 2018-02-05 | C41: =Y!S49 -> 12585.94186 | D41: =Y!P49 -> 10025.05536 | E41: =Y!R49 -> 1196.902219 | F41: =Y!T49 -> 197542 | G41: =Y!Q49 -> 1363.984288
A42: 14 | B42: 2018-03-05 | C42: =Y!S50 -> 12585.94186 | D42: =Y!P50 -> 10108.842 | E42: =Y!R50 -> 1101.664952 | F42: =Y!T50 -> 185552 | G42: =Y!Q50 -> 1375.434915
A43: 15 | B43: 2018-04-05 | C43: =Y!S51 -> 12585.94186 | D43: =Y!P51 -> 10193.3289 | E43: =Y!R51 -> 1005.631292 | F43: =Y!T51 -> 173462 | G43: =Y!Q51 -> 1386.981671
A44: 16 | B44: 2018-05-05 | C44: =Y!S52 -> 12585.94186 | D44: =Y!P52 -> 10278.52192 | E44: =Y!R52 -> 908.7945787 | F44: =Y!T52 -> 161271 | G44: =Y!Q52 -> 1398.625361
A45: 17 | B45: 2018-06-05 | C45: =Y!S53 -> 12585.94186 | D45: =Y!P53 -> 10364.42697 | E45: =Y!R53 -> 811.1480974 | F45: =Y!T53 -> 148978 | G45: =Y!Q53 -> 1410.366799
A46: 18 | B46: 2018-07-05 | C46: =Y!S54 -> 12585.94186 | D46: =Y!P54 -> 10451.04998 | E46: =Y!R54 -> 712.6850762 | F46: =Y!T54 -> 136582 | G46: =Y!Q54 -> 1422.206807
A47: 19 | B47: 2018-08-05 | C47: =Y!S55 -> 12585.94186 | D47: =Y!P55 -> 10538.39696 | E47: =Y!R55 -> 613.3986871 | F47: =Y!T55 -> 124083 | G47: =Y!Q55 -> 1434.146212
A48: 20 | B48: 2018-09-05 | C48: =Y!S56 -> 12585.94186 | D48: =Y!P56 -> 10626.47397 | E48: =Y!R56 -> 513.2820451 | F48: =Y!T56 -> 111479 | G48: =Y!Q56 -> 1446.185848
A49: 21 | B49: 2018-10-05 | C49: =Y!S57 -> 12585.94186 | D49: =Y!P57 -> 10715.2871 | E49: =Y!R57 -> 412.3282072 | F49: =Y!T57 -> 98769 | G49: =Y!Q57 -> 1458.326556
A50: 22 | B50: 2018-11-05 | C50: =Y!S58 -> 12585.94186 | D50: =Y!P58 -> 10804.8425 | E50: =Y!R58 -> 310.5301726 | F50: =Y!T58 -> 85954 | G50: =Y!Q58 -> 1470.569185
A51: 23 | B51: 2018-12-05 | C51: =Y!S59 -> 12585.94186 | D51: =Y!P59 -> 10895.14639 | E51: =Y!R59 -> 207.8808821 | F51: =Y!T59 -> 73031 | G51: =Y!Q59 -> 1482.914591
A52: 24 | B52: 2019-01-05 | C52: =Y!S60 -> 12585.94186 | D52: =Y!P60 -> 10986.20501 | E52: =Y!R60 -> 104.3732172 | F52: =Y!T60 -> 60000 | G52: =Y!Q60 -> 1495.363637
A53: Total | C53: =SUM(C29:C52) -> 302062.6047 | D53: =SUM(D29:D52) -> 240000 | E53: =SUM(E29:E52) -> 27862.6047 | G53: =SUM(G29:G52) -> 34200
A55: Inst | B55: Due Dt | C55: Rentals | D55: Dep- revised | E55: Net Profit | F55: Term. Value | G55: Takaful | H55: These sheets should not be signed by customer
A56: 1 | B56: =DATE(YEAR(Basic!C20),MONTH(Basic!C20)+1,DAY(Basic!C20)) -> 2017-02-05 | C56: =Y!S77 -> 9189.8664 | D56: =Y!P77 -> 5739.304844 | E56: =Y!R77 -> 2161.100504 | F56: =Y!T77 -> 322684 | G56: =Y!Q77 -> 1289.461053
A57: =A56+1 -> 2 | B57: =DATE(YEAR(B56),MONTH(B56)+1,DAY(B56)) -> 2017-03-05 | C57: =Y!S78 -> 9189.8664 | D57: =Y!P78 -> 5787.396471 | E57: =Y!R78 -> 2102.259269 | F57: =Y!T78 -> 315307 | G57: =Y!Q78 -> 1300.21066
A58: 3 | B58: 2017-04-05 | C58: =Y!S79 -> 9189.8664 | D58: =Y!P79 -> 5835.891074 | E58: =Y!R79 -> 2042.925444 | F58: =Y!T79 -> 307869 | G58: =Y!Q79 -> 1311.049882
A59: 4 | B59: 2017-05-05 | C59: =Y!S80 -> 9189.8664 | D59: =Y!P80 -> 5884.792031 | E59: =Y!R80 -> 1983.094904 | F59: =Y!T80 -> 300368 | G59: =Y!Q80 -> 1321.979466
A60: 5 | B60: 2017-06-05 | C60: =Y!S81 -> 9189.8664 | D60: =Y!P81 -> 5934.102745 | E60: =Y!R81 -> 1922.763491 | F60: =Y!T81 -> 292804 | G60: =Y!Q81 -> 1333.000164
A61: 6 | B61: 2017-07-05 | C61: =Y!S82 -> 9189.8664 | D61: =Y!P82 -> 5983.826651 | E61: =Y!R82 -> 1861.927013 | F61: =Y!T82 -> 285177 | G61: =Y!Q82 -> 1344.112736
A62: 7 | B62: 2017-08-05 | C62: =Y!S83 -> 9189.8664 | D62: =Y!P83 -> 6033.967211 | E62: =Y!R83 -> 1800.581241 | F62: =Y!T83 -> 277486 | G62: =Y!Q83 -> 1355.317948
A63: 8 | B63: 2017-09-05 | C63: =Y!S84 -> 9189.8664 | D63: =Y!P84 -> 6084.527916 | E63: =Y!R84 -> 1738.721911 | F63: =Y!T84 -> 269730 | G63: =Y!Q84 -> 1366.616573
A64: 9 | B64: 2017-10-05 | C64: =Y!S85 -> 9189.8664 | D64: =Y!P85 -> 6135.512287 | E64: =Y!R85 -> 1676.344724 | F64: =Y!T85 -> 261910 | G64: =Y!Q85 -> 1378.009388
A65: 10 | B65: 2017-11-05 | C65: =Y!S86 -> 9189.8664 | D65: =Y!P86 -> 6186.923874 | E65: =Y!R86 -> 1613.445346 | F65: =Y!T86 -> 254024 | G65: =Y!Q86 -> 1389.49718
A66: 11 | B66: 2017-12-05 | C66: =Y!S87 -> 9189.8664 | D66: =Y!P87 -> 6238.766256 | E66: =Y!R87 -> 1550.019403 | F66: =Y!T87 -> 246072 | G66: =Y!Q87 -> 1401.080741
A67: 12 | B67: 2018-01-05 | C67: =Y!S88 -> 9189.8664 | D67: =Y!P88 -> 6291.043043 | E67: =Y!R88 -> 1486.062489 | F67: =Y!T88 -> 254254 | G67: =Y!Q88 -> 1412.760867
A68: 13 | B68: 2018-02-05 | C68: =Y!S89 -> 9189.8664 | D68: =Y!P89 -> 6343.757876 | E68: =Y!R89 -> 1556.621656 | F68: =Y!T89 -> 246304 | G68: =Y!Q89 -> 1289.486868
A69: 14 | B69: 2018-03-05 | C69: =Y!S90 -> 9189.8664 | D69: =Y!P90 -> 6396.914425 | E69: =Y!R90 -> 1492.715284 | F69: =Y!T90 -> 238287 | G69: =Y!Q90 -> 1300.236691
A70: 15 | B70: 2018-04-05 | C70: =Y!S91 -> 9189.8664 | D70: =Y!P91 -> 6450.516391 | E70: =Y!R91 -> 1428.27388 | F70: =Y!T91 -> 230202 | G70: =Y!Q91 -> 1311.07613
A71: 16 | B71: 2018-05-05 | C71: =Y!S92 -> 9189.8664 | D71: =Y!P92 -> 6504.567506 | E71: =Y!R92 -> 1363.292962 | F71: =Y!T92 -> 222051 | G71: =Y!Q92 -> 1322.005932
A72: 17 | B72: 2018-06-05 | C72: =Y!S93 -> 9189.8664 | D72: =Y!P93 -> 6559.071534 | E72: =Y!R93 -> 1297.768015 | F72: =Y!T93 -> 213831 | G72: =Y!Q93 -> 1333.026851
A73: 18 | B73: 2018-07-05 | C73: =Y!S94 -> 9189.8664 | D73: =Y!P94 -> 6614.032271 | E73: =Y!R94 -> 1231.694484 | F73: =Y!T94 -> 205542 | G73: =Y!Q94 -> 1344.139645
A74: 19 | B74: 2018-08-05 | C74: =Y!S95 -> 9189.8664 | D74: =Y!P95 -> 6669.453542 | E74: =Y!R95 -> 1165.067776 | F74: =Y!T95 -> 197183 | G74: =Y!Q95 -> 1355.345082
A75: 20 | B75: 2018-09-05 | C75: =Y!S96 -> 9189.8664 | D75: =Y!P96 -> 6725.339208 | E75: =Y!R96 -> 1097.88326 | F75: =Y!T96 -> 188755 | G75: =Y!Q96 -> 1366.643933
A76: 21 | B76: 2018-10-05 | C76: =Y!S97 -> 9189.8664 | D76: =Y!P97 -> 6781.693159 | E76: =Y!R97 -> 1030.136265 | F76: =Y!T97 -> 180256 | G76: =Y!Q97 -> 1378.036976
A77: 22 | B77: 2018-11-05 | C77: =Y!S98 -> 9189.8664 | D77: =Y!P98 -> 6838.519319 | E77: =Y!R98 -> 961.8220823 | F77: =Y!T98 -> 171686 | G77: =Y!Q98 -> 1389.524999
A78: 23 | B78: 2018-12-05 | C78: =Y!S99 -> 9189.8664 | D78: =Y!P99 -> 6895.821646 | E78: =Y!R99 -> 892.9359637 | F78: =Y!T99 -> 163045 | G78: =Y!Q99 -> 1401.108791
A79: 24 | B79: 2019-01-05 | C79: =Y!S100 -> 9189.8664 | D79: =Y!P100 -> 6953.604128 | E79: =Y!R100 -> 823.4731206 | F79: =Y!T100 -> 168911 | G79: =Y!Q100 -> 1412.789151
A80: 25 | B80: 2019-02-05 | C80: =Y!S101 -> 9189.8664 | D80: =Y!P101 -> 7011.87079 | E80: =Y!R101 -> 874.9750726 | F80: =Y!T101 -> 160245 | G80: =Y!Q101 -> 1303.020537
A81: 26 | B81: 2019-03-05 | C81: =Y!S102 -> 9189.8664 | D81: =Y!P102 -> 7070.625689 | E81: =Y!R102 -> 805.3575274 | F81: =Y!T102 -> 151507 | G81: =Y!Q102 -> 1313.883184
A82: 27 | B82: 2019-04-05 | C82: =Y!S103 -> 9189.8664 | D82: =Y!P103 -> 7129.872915 | E82: =Y!R103 -> 735.157098 | F82: =Y!T103 -> 142696 | G82: =Y!Q103 -> 1324.836387
A83: 28 | B83: 2019-05-05 | C83: =Y!S104 -> 9189.8664 | D83: =Y!P104 -> 7189.616594 | E83: =Y!R104 -> 664.3689039 | F83: =Y!T104 -> 133811 | G83: =Y!Q104 -> 1335.880902
A84: 29 | B84: 2019-06-05 | C84: =Y!S105 -> 9189.8664 | D84: =Y!P105 -> 7249.860887 | E84: =Y!R105 -> 592.9880241 | F84: =Y!T105 -> 124852 | G84: =Y!Q105 -> 1347.017489
A85: 30 | B85: 2019-07-05 | C85: =Y!S106 -> 9189.8664 | D85: =Y!P106 -> 7310.609987 | E85: =Y!R106 -> 521.0094962 | F85: =Y!T106 -> 115817 | G85: =Y!Q106 -> 1358.246917
A86: 31 | B86: 2019-08-05 | C86: =Y!S107 -> 9189.8664 | D86: =Y!P107 -> 7371.868125 | E86: =Y!R107 -> 448.4283162 | F86: =Y!T107 -> 106707 | G86: =Y!Q107 -> 1369.569959
A87: 32 | B87: 2019-09-05 | C87: =Y!S108 -> 9189.8664 | D87: =Y!P108 -> 7433.639566 | E87: =Y!R108 -> 375.2394383 | F87: =Y!T108 -> 97521 | G87: =Y!Q108 -> 1380.987396
A88: 33 | B88: 2019-10-05 | C88: =Y!S109 -> 9189.8664 | D88: =Y!P109 -> 7495.928612 | E88: =Y!R109 -> 301.4377745 | F88: =Y!T109 -> 88258 | G88: =Y!Q109 -> 1392.500014
A89: 34 | B89: 2019-11-05 | C89: =Y!S110 -> 9189.8664 | D89: =Y!P110 -> 7558.739599 | E89: =Y!R110 -> 227.0181941 | F89: =Y!T110 -> 78917 | G89: =Y!Q110 -> 1404.108607
A90: 35 | B90: 2019-12-05 | C90: =Y!S111 -> 9189.8664 | D90: =Y!P111 -> 7622.076901 | E90: =Y!R111 -> 151.9755235 | F90: =Y!T111 -> 69498 | G90: =Y!Q111 -> 1415.813976
A91: 36 | B91: 2020-01-05 | C91: =Y!S112 -> 9189.8664 | D91: =Y!P112 -> 7685.944928 | E91: =Y!R112 -> 76.30454564 | F91: =Y!T112 -> 60000 | G91: =Y!Q112 -> 1427.616926
A92: Total | C92: =SUM(C56:C91) -> 330835.1904 | D92: =SUM(D56:D91) -> 240000 | E92: =SUM(E56:E91) -> 42055.1904 | G92: =SUM(G56:G91) -> 48780
A94: Inst | B94: Due Dt | C94: Rentals | D94: Dep- revised | E94: Net Profit | F94: Term. Value | G94: Takaful
A95: 1 | B95: =DATE(YEAR(Basic!C20),MONTH(Basic!C20)+1,DAY(Basic!C20)) -> 2017-02-05 | C95: =Y!S127 -> 7476.193471 | D95: =Y!P127 -> 4079.139296 | E95: =Y!R127 -> 2168.879602 | F95: =Y!T127 -> 324489 | G95: =Y!Q127 -> 1228.174573 | H95: These sheets should not be signed by customer
A96: =A95+1 -> 2 | B96: =DATE(YEAR(B95),MONTH(B95)+1,DAY(B95)) -> 2017-03-05 | C96: =Y!S128 -> 7476.193471 | D96: =Y!P128 -> 4113.448472 | E96: =Y!R128 -> 2124.317427 | F96: =Y!T128 -> 318931 | G96: =Y!Q128 -> 1238.427571
A97: 3 | B97: 2017-04-05 | C97: =Y!S129 -> 7476.193471 | D97: =Y!P129 -> 4148.04622 | E97: =Y!R129 -> 2079.381087 | F97: =Y!T129 -> 313327 | G97: =Y!Q129 -> 1248.766164
A98: 4 | B98: 2017-05-05 | C98: =Y!S130 -> 7476.193471 | D98: =Y!P130 -> 4182.934965 | E98: =Y!R130 -> 2034.067442 | F98: =Y!T130 -> 307676 | G98: =Y!Q130 -> 1259.191064
A99: 5 | B99: 2017-06-05 | C99: =Y!S131 -> 7476.193471 | D99: =Y!P131 -> 4218.117155 | E99: =Y!R131 -> 1988.373322 | F99: =Y!T131 -> 301977 | G99: =Y!Q131 -> 1269.702993
A100: 6 | B100: 2017-07-05 | C100: =Y!S132 -> 7476.193471 | D100: =Y!P132 -> 4253.595259 | E100: =Y!R132 -> 1942.295534 | F100: =Y!T132 -> 296230 | G100: =Y!Q132 -> 1280.302678
A101: 7 | B101: 2017-08-05 | C101: =Y!S133 -> 7476.193471 | D101: =Y!P133 -> 4289.371765 | E101: =Y!R133 -> 1895.830855 | F101: =Y!T133 -> 290436 | G101: =Y!Q133 -> 1290.99085
A102: 8 | B102: 2017-09-05 | C102: =Y!S134 -> 7476.193471 | D102: =Y!P134 -> 4325.449183 | E102: =Y!R134 -> 1848.976038 | F102: =Y!T134 -> 284592 | G102: =Y!Q134 -> 1301.768249
A103: 9 | B103: 2017-10-05 | C103: =Y!S135 -> 7476.193471 | D103: =Y!P135 -> 4361.830045 | E103: =Y!R135 -> 1801.727807 | F103: =Y!T135 -> 278700 | G103: =Y!Q135 -> 1312.63562
A104: 10 | B104: 2017-11-05 | C104: =Y!S136 -> 7476.193471 | D104: =Y!P136 -> 4398.516901 | E104: =Y!R136 -> 1754.082857 | F104: =Y!T136 -> 272757 | G104: =Y!Q136 -> 1323.593713
A105: 11 | B105: 2017-12-05 | C105: =Y!S137 -> 7476.193471 | D105: =Y!P137 -> 4435.512327 | E105: =Y!R137 -> 1706.037859 | F105: =Y!T137 -> 266766 | G105: =Y!Q137 -> 1334.643285
A106: 12 | B106: 2018-01-05 | C106: =Y!S138 -> 7476.193471 | D106: =Y!P138 -> 4472.818917 | E106: =Y!R138 -> 1657.589452 | F106: =Y!T138 -> 276923 | G106: =Y!Q138 -> 1345.785102
A107: 13 | B107: 2018-02-05 | C107: =Y!S139 -> 7476.193471 | D107: =Y!P139 -> 4510.439288 | E107: =Y!R139 -> 1743.974453 | F107: =Y!T139 -> 270966 | G107: =Y!Q139 -> 1221.77973
A108: 14 | B108: 2018-03-05 | C108: =Y!S140 -> 7476.193471 | D108: =Y!P140 -> 4548.37608 | E108: =Y!R140 -> 1695.838047 | F108: =Y!T140 -> 264958 | G108: =Y!Q140 -> 1231.979344
A109: 15 | B109: 2018-04-05 | C109: =Y!S141 -> 7476.193471 | D109: =Y!P141 -> 4586.631954 | E109: =Y!R141 -> 1647.297412 | F109: =Y!T141 -> 258900 | G109: =Y!Q141 -> 1242.264105
A110: 16 | B110: 2018-05-05 | C110: =Y!S142 -> 7476.193471 | D110: =Y!P142 -> 4625.209594 | E110: =Y!R142 -> 1598.349152 | F110: =Y!T142 -> 252790 | G110: =Y!Q142 -> 1252.634725
A111: 17 | B111: 2018-06-05 | C111: =Y!S143 -> 7476.193471 | D111: =Y!P143 -> 4664.111706 | E111: =Y!R143 -> 1548.989844 | F111: =Y!T143 -> 246630 | G111: =Y!Q143 -> 1263.091921
A112: 18 | B112: 2018-07-05 | C112: =Y!S144 -> 7476.193471 | D112: =Y!P144 -> 4703.341019 | E112: =Y!R144 -> 1499.216036 | F112: =Y!T144 -> 240418 | G112: =Y!Q144 -> 1273.636415
A113: 19 | B113: 2018-08-05 | C113: =Y!S145 -> 7476.193471 | D113: =Y!P145 -> 4742.900286 | E113: =Y!R145 -> 1449.024248 | F113: =Y!T145 -> 234154 | G113: =Y!Q145 -> 1284.268937
A114: 20 | B114: 2018-09-05 | C114: =Y!S146 -> 7476.193471 | D114: =Y!P146 -> 4782.792281 | E114: =Y!R146 -> 1398.41097 | F114: =Y!T146 -> 227837 | G114: =Y!Q146 -> 1294.99022
A115: 21 | B115: 2018-10-05 | C115: =Y!S147 -> 7476.193471 | D115: =Y!P147 -> 4823.019803 | E115: =Y!R147 -> 1347.372662 | F115: =Y!T147 -> 221467 | G115: =Y!Q147 -> 1305.801007
A116: 22 | B116: 2018-11-05 | C116: =Y!S148 -> 7476.193471 | D116: =Y!P148 -> 4863.585674 | E116: =Y!R148 -> 1295.905754 | F116: =Y!T148 -> 215043 | G116: =Y!Q148 -> 1316.702043
A117: 23 | B117: 2018-12-05 | C117: =Y!S149 -> 7476.193471 | D117: =Y!P149 -> 4904.49274 | E117: =Y!R149 -> 1244.006648 | F117: =Y!T149 -> 208566 | G117: =Y!Q149 -> 1327.694083
A118: 24 | B118: 2019-01-05 | C118: =Y!S150 -> 7476.193471 | D118: =Y!P150 -> 4945.743871 | E118: =Y!R150 -> 1191.671713 | F118: =Y!T150 -> 216614 | G118: =Y!Q150 -> 1338.777887
A119: 25 | B119: 2019-02-05 | C119: =Y!S151 -> 7476.193471 | D119: =Y!P151 -> 4987.34196 | E119: =Y!R151 -> 1260.613473 | F119: =Y!T151 -> 210149 | G119: =Y!Q151 -> 1228.238038
A120: 26 | B120: 2019-03-05 | C120: =Y!S152 -> 7476.193471 | D120: =Y!P152 -> 5029.289926 | E120: =Y!R152 -> 1208.411978 | F120: =Y!T152 -> 203630 | G120: =Y!Q152 -> 1238.491566
A121: 27 | B121: 2019-04-05 | C121: =Y!S153 -> 7476.193471 | D121: =Y!P153 -> 5071.590712 | E121: =Y!R153 -> 1155.772066 | F121: =Y!T153 -> 197056 | G121: =Y!Q153 -> 1248.830693
A122: 28 | B122: 2019-05-05 | C122: =Y!S154 -> 7476.193471 | D122: =Y!P154 -> 5114.247285 | E122: =Y!R154 -> 1102.690054 | F122: =Y!T154 -> 190427 | G122: =Y!Q154 -> 1259.256132
A123: 29 | B123: 2019-06-05 | C123: =Y!S155 -> 7476.193471 | D123: =Y!P155 -> 5157.262637 | E123: =Y!R155 -> 1049.162229 | F123: =Y!T155 -> 183742 | G123: =Y!Q155 -> 1269.768604
A124: 30 | B124: 2019-07-05 | C124: =Y!S156 -> 7476.193471 | D124: =Y!P156 -> 5200.639787 | E124: =Y!R156 -> 995.1848473 | F124: =Y!T156 -> 177001 | G124: =Y!Q156 -> 1280.368837
A125: 31 | B125: 2019-08-05 | C125: =Y!S157 -> 7476.193471 | D125: =Y!P157 -> 5244.381777 | E125: =Y!R157 -> 940.7541327 | F125: =Y!T157 -> 170203 | G125: =Y!Q157 -> 1291.057561
A126: 32 | B126: 2019-09-05 | C126: =Y!S158 -> 7476.193471 | D126: =Y!P158 -> 5288.491676 | E126: =Y!R158 -> 885.866278 | F126: =Y!T158 -> 163348 | G126: =Y!Q158 -> 1301.835517
A127: 33 | B127: 2019-10-05 | C127: =Y!S159 -> 7476.193471 | D127: =Y!P159 -> 5332.972578 | E127: =Y!R159 -> 830.5174439 | F127: =Y!T159 -> 156436 | G127: =Y!Q159 -> 1312.703449
A128: 34 | B128: 2019-11-05 | C128: =Y!S160 -> 7476.193471 | D128: =Y!P160 -> 5377.827604 | E128: =Y!R160 -> 774.7037587 | F128: =Y!T160 -> 149466 | G128: =Y!Q160 -> 1323.662108
A129: 35 | B129: 2019-12-05 | C129: =Y!S161 -> 7476.193471 | D129: =Y!P161 -> 5423.0599 | E129: =Y!R161 -> 718.4213183 | F129: =Y!T161 -> 142437 | G129: =Y!Q161 -> 1334.712252
A130: 36 | B130: 2020-01-05 | C130: =Y!S162 -> 7476.193471 | D130: =Y!P162 -> 5468.672641 | E130: =Y!R162 -> 661.6661859 | F130: =Y!T162 -> 148469 | G130: =Y!Q162 -> 1345.854644
A131: 37 | B131: 2020-02-05 | C131: =Y!S163 -> 7476.193471 | D131: =Y!P163 -> 5514.669024 | E131: =Y!R163 -> 713.9622585 | F131: =Y!T163 -> 141431 | G131: =Y!Q163 -> 1247.562188
A132: 38 | B132: 2020-03-05 | C132: =Y!S164 -> 7476.193471 | D132: =Y!P164 -> 5561.052278 | E132: =Y!R164 -> 657.1641548 | F132: =Y!T164 -> 134334 | G132: =Y!Q164 -> 1257.977038
A133: 39 | B133: 2020-04-05 | C133: =Y!S165 -> 7476.193471 | D133: =Y!P165 -> 5607.825657 | E133: =Y!R165 -> 599.8889821 | F133: =Y!T165 -> 127177 | G133: =Y!Q165 -> 1268.478832
A134: 40 | B134: 2020-05-05 | C134: =Y!S166 -> 7476.193471 | D134: =Y!P166 -> 5654.992441 | E134: =Y!R166 -> 542.1327331 | F134: =Y!T166 -> 119960 | G134: =Y!Q166 -> 1279.068297
A135: 41 | B135: 2020-06-05 | C135: =Y!S167 -> 7476.193471 | D135: =Y!P167 -> 5702.555939 | E135: =Y!R167 -> 483.8913671 | F135: =Y!T167 -> 112683 | G135: =Y!Q167 -> 1289.746164
A136: 42 | B136: 2020-07-05 | C136: =Y!S168 -> 7476.193471 | D136: =Y!P168 -> 5750.519489 | E136: =Y!R168 -> 425.1608093 | F136: =Y!T168 -> 105344 | G136: =Y!Q168 -> 1300.513173
A137: 43 | B137: 2020-08-05 | C137: =Y!S169 -> 7476.193471 | D137: =Y!P169 -> 5798.886454 | E137: =Y!R169 -> 365.9369509 | F137: =Y!T169 -> 97944 | G137: =Y!Q169 -> 1311.370065
A138: 44 | B138: 2020-09-05 | C138: =Y!S170 -> 7476.193471 | D138: =Y!P170 -> 5847.660229 | E138: =Y!R170 -> 306.2156484 | F138: =Y!T170 -> 90482 | G138: =Y!Q170 -> 1322.317593
A139: 45 | B139: 2020-10-05 | C139: =Y!S171 -> 7476.193471 | D139: =Y!P171 -> 5896.844234 | E139: =Y!R171 -> 245.9927234 | F139: =Y!T171 -> 82957 | G139: =Y!Q171 -> 1333.356513
A140: 46 | B140: 2020-11-05 | C140: =Y!S172 -> 7476.193471 | D140: =Y!P172 -> 5946.441921 | E140: =Y!R172 -> 185.2639628 | F140: =Y!T172 -> 75368 | G140: =Y!Q172 -> 1344.487587
A141: 47 | B141: 2020-12-05 | C141: =Y!S173 -> 7476.193471 | D141: =Y!P173 -> 5996.456768 | E141: =Y!R173 -> 124.0251176 | F141: =Y!T173 -> 67716 | G141: =Y!Q173 -> 1355.711586
A142: 48 | B142: 2021-01-05 | C142: =Y!S174 -> 7476.193471 | D142: =Y!P174 -> 6046.892284 | E142: =Y!R174 -> 62.27190346 | F142: =Y!T174 -> 60000 | G142: =Y!Q174 -> 1367.029284
A143: Total | C143: =SUM(C95:C142) -> 358857.2866 | D143: =SUM(D95:D142) -> 240000 | E143: =SUM(E95:E142) -> 56957.2866 | G143: =SUM(G95:G142) -> 61900
A145: Inst | B145: Due Dt | C145: Rentals | D145: Dep- revised | E145: Net Profit | F145: Term. Value | G145: Takaful
A146: 1 | B146: =DATE(YEAR(Basic!C20),MONTH(Basic!C20)+1,DAY(Basic!C20)) -> 2017-02-05 | C146: =Y!S186 -> 6424.93271 | D146: =Y!P186 -> 3097.935831 | E146: =Y!R186 -> 2154.204127 | F146: =Y!T186 -> 325574 | G146: =Y!Q186 -> 1172.792751 | H146: These sheets should not be signed by customer
A147: =A146+1 -> 2 | B147: =DATE(YEAR(B146),MONTH(B146)+1,DAY(B146)) -> 2017-03-05 | C147: =Y!S187 -> 6424.93271 | D147: =Y!P187 -> 3123.794673 | E147: =Y!R187 -> 2118.513676 | F147: =Y!T187 -> 321112 | G147: =Y!Q187 -> 1182.62436
A148: 3 | B148: 2017-04-05 | C148: =Y!S188 -> 6424.93271 | D148: =Y!P188 -> 3149.869362 | E148: =Y!R188 -> 2082.52496 | F148: =Y!T188 -> 316612 | G148: =Y!Q188 -> 1192.538387
A149: 4 | B149: 2017-05-05 | C149: =Y!S189 -> 6424.93271 | D149: =Y!P189 -> 3176.1617 | E149: =Y!R189 -> 2046.235485 | F149: =Y!T189 -> 312074 | G149: =Y!Q189 -> 1202.535525
A150: 5 | B150: 2017-06-05 | C150: =Y!S190 -> 6424.93271 | D150: =Y!P190 -> 3202.673502 | E150: =Y!R190 -> 2009.642737 | F150: =Y!T190 -> 307499 | G150: =Y!Q190 -> 1212.61647
A151: 6 | B151: 2017-07-05 | C151: =Y!S191 -> 6424.93271 | D151: =Y!P191 -> 3229.406602 | E151: =Y!R191 -> 1972.744184 | F151: =Y!T191 -> 302885 | G151: =Y!Q191 -> 1222.781924
A152: 7 | B152: 2017-08-05 | C152: =Y!S192 -> 6424.93271 | D152: =Y!P192 -> 3256.362847 | E152: =Y!R192 -> 1935.537268 | F152: =Y!T192 -> 298233 | G152: =Y!Q192 -> 1233.032595
A153: 8 | B153: 2017-09-05 | C153: =Y!S193 -> 6424.93271 | D153: =Y!P193 -> 3283.544098 | E153: =Y!R193 -> 1898.019413 | F153: =Y!T193 -> 293542 | G153: =Y!Q193 -> 1243.369199
A154: 9 | B154: 2017-10-05 | C154: =Y!S194 -> 6424.93271 | D154: =Y!P194 -> 3310.952235 | E154: =Y!R194 -> 1860.18802 | F154: =Y!T194 -> 288812 | G154: =Y!Q194 -> 1253.792455
A155: 10 | B155: 2017-11-05 | C155: =Y!S195 -> 6424.93271 | D155: =Y!P195 -> 3338.58915 | E155: =Y!R195 -> 1822.040469 | F155: =Y!T195 -> 284042 | G155: =Y!Q195 -> 1264.30309
A156: 11 | B156: 2017-12-05 | C156: =Y!S196 -> 6424.93271 | D156: =Y!P196 -> 3366.456754 | E156: =Y!R196 -> 1783.574118 | F156: =Y!T196 -> 279232 | G156: =Y!Q196 -> 1274.901837
A157: 12 | B157: 2018-01-05 | C157: =Y!S197 -> 6424.93271 | D157: =Y!P197 -> 3394.556973 | E157: =Y!R197 -> 1744.786303 | F157: =Y!T197 -> 290582 | G157: =Y!Q197 -> 1285.589434
A158: 13 | B158: 2018-02-05 | C158: =Y!S198 -> 6424.93271 | D158: =Y!P198 -> 3422.891747 | E158: =Y!R198 -> 1841.480139 | F158: =Y!T198 -> 285828 | G158: =Y!Q198 -> 1160.560823
A159: 14 | B159: 2018-03-05 | C159: =Y!S199 -> 6424.93271 | D159: =Y!P199 -> 3451.463035 | E159: =Y!R199 -> 1803.179784 | F159: =Y!T199 -> 281033 | G159: =Y!Q199 -> 1170.289891
A160: 15 | B160: 2018-04-05 | C160: =Y!S200 -> 6424.93271 | D160: =Y!P200 -> 3480.272811 | E160: =Y!R200 -> 1764.559381 | F160: =Y!T200 -> 276199 | G160: =Y!Q200 -> 1180.100518
A161: 16 | B161: 2018-05-05 | C161: =Y!S201 -> 6424.93271 | D161: =Y!P201 -> 3509.323066 | E161: =Y!R201 -> 1725.616256 | F161: =Y!T201 -> 271324 | G161: =Y!Q201 -> 1189.993388
A162: 17 | B162: 2018-06-05 | C162: =Y!S202 -> 6424.93271 | D162: =Y!P202 -> 3538.615806 | E162: =Y!R202 -> 1686.347713 | F162: =Y!T202 -> 266409 | G162: =Y!Q202 -> 1199.969191
A163: 18 | B163: 2018-07-05 | C163: =Y!S203 -> 6424.93271 | D163: =Y!P203 -> 3568.153057 | E163: =Y!R203 -> 1646.751031 | F163: =Y!T203 -> 261452 | G163: =Y!Q203 -> 1210.028622
A164: 19 | B164: 2018-08-05 | C164: =Y!S204 -> 6424.93271 | D164: =Y!P204 -> 3597.936858 | E164: =Y!R204 -> 1606.82347 | F164: =Y!T204 -> 256454 | G164: =Y!Q204 -> 1220.172381
A165: 20 | B165: 2018-09-05 | C165: =Y!S205 -> 6424.93271 | D165: =Y!P205 -> 3627.969269 | E165: =Y!R205 -> 1566.562264 | F165: =Y!T205 -> 251414 | G165: =Y!Q205 -> 1230.401177
A166: 21 | B166: 2018-10-05 | C166: =Y!S206 -> 6424.93271 | D166: =Y!P206 -> 3658.252364 | E166: =Y!R206 -> 1525.964624 | F166: =Y!T206 -> 246332 | G166: =Y!Q206 -> 1240.715721
A167: 22 | B167: 2018-11-05 | C167: =Y!S207 -> 6424.93271 | D167: =Y!P207 -> 3688.788235 | E167: =Y!R207 -> 1485.027741 | F167: =Y!T207 -> 241208 | G167: =Y!Q207 -> 1251.116733
A168: 23 | B168: 2018-12-05 | C168: =Y!S208 -> 6424.93271 | D168: =Y!P208 -> 3719.578993 | E168: =Y!R208 -> 1443.748779 | F168: =Y!T208 -> 236041 | G168: =Y!Q208 -> 1261.604938
A169: 24 | B169: 2019-01-05 | C169: =Y!S209 -> 6424.93271 | D169: =Y!P209 -> 3750.626765 | E169: =Y!R209 -> 1402.124879 | F169: =Y!T209 -> 245411 | G169: =Y!Q209 -> 1272.181066
A170: 25 | B170: 2019-02-05 | C170: =Y!S210 -> 6424.93271 | D170: =Y!P210 -> 3781.933697 | E170: =Y!R210 -> 1482.378381 | F170: =Y!T210 -> 240279 | G170: =Y!Q210 -> 1160.620632
A171: 26 | B171: 2019-03-05 | C171: =Y!S211 -> 6424.93271 | D171: =Y!P211 -> 3813.501951 | E171: =Y!R211 -> 1441.080558 | F171: =Y!T211 -> 235104 | G171: =Y!Q211 -> 1170.350201
A172: 27 | B172: 2019-04-05 | C172: =Y!S212 -> 6424.93271 | D172: =Y!P212 -> 3845.333709 | E172: =Y!R212 -> 1399.437667 | F172: =Y!T212 -> 229887 | G172: =Y!Q212 -> 1180.161333
A173: 28 | B173: 2019-05-05 | C173: =Y!S213 -> 6424.93271 | D173: =Y!P213 -> 3877.431171 | E173: =Y!R213 -> 1357.446825 | F173: =Y!T213 -> 224625 | G173: =Y!Q213 -> 1190.054713
A174: 29 | B174: 2019-06-05 | C174: =Y!S214 -> 6424.93271 | D174: =Y!P214 -> 3909.796554 | E174: =Y!R214 -> 1315.105125 | F174: =Y!T214 -> 219320 | G174: =Y!Q214 -> 1200.03103
A175: 30 | B175: 2019-07-05 | C175: =Y!S215 -> 6424.93271 | D175: =Y!P215 -> 3942.432095 | E175: =Y!R215 -> 1272.409635 | F175: =Y!T215 -> 213970 | G175: =Y!Q215 -> 1210.09098
A176: 31 | B176: 2019-08-05 | C176: =Y!S216 -> 6424.93271 | D176: =Y!P216 -> 3975.340049 | E176: =Y!R216 -> 1229.357399 | F176: =Y!T216 -> 208576 | G176: =Y!Q216 -> 1220.235262
A177: 32 | B177: 2019-09-05 | C177: =Y!S217 -> 6424.93271 | D177: =Y!P217 -> 4008.522689 | E177: =Y!R217 -> 1185.945436 | F177: =Y!T217 -> 203137 | G177: =Y!Q217 -> 1230.464585
A178: 33 | B178: 2019-10-05 | C178: =Y!S218 -> 6424.93271 | D178: =Y!P218 -> 4041.982309 | E178: =Y!R218 -> 1142.17074 | F178: =Y!T218 -> 197652 | G178: =Y!Q218 -> 1240.779661
A179: =A178+1 -> 34 | B179: =DATE(YEAR(B178),MONTH(B178)+1,DAY(B178)) -> 2019-11-05 | C179: =Y!S219 -> 6424.93271 | D179: =Y!P219 -> 4075.72122 | E179: =Y!R219 -> 1098.030281 | F179: =Y!T219 -> 192121 | G179: =Y!Q219 -> 1251.181209
A180: 35 | B180: 2019-12-05 | C180: =Y!S220 -> 6424.93271 | D180: =Y!P220 -> 4109.741754 | E180: =Y!R220 -> 1053.521002 | F180: =Y!T220 -> 186544 | G180: =Y!Q220 -> 1261.669954
A181: 36 | B181: 2020-01-05 | C181: =Y!S221 -> 6424.93271 | D181: =Y!P221 -> 4144.046261 | E181: =Y!R221 -> 1008.639822 | F181: =Y!T221 -> 194041 | G181: =Y!Q221 -> 1272.246626
A182: 37 | B182: 2020-02-05 | C182: =Y!S222 -> 6424.93271 | D182: =Y!P222 -> 4178.637112 | E182: =Y!R222 -> 1073.369566 | F182: =Y!T222 -> 188480 | G182: =Y!Q222 -> 1172.926031
A183: 38 | B183: 2020-03-05 | C183: =Y!S223 -> 6424.93271 | D183: =Y!P223 -> 4213.516698 | E183: =Y!R223 -> 1028.657255 | F183: =Y!T223 -> 182873 | G183: =Y!Q223 -> 1182.758757
A184: 39 | B184: 2020-04-05 | C184: =Y!S224 -> 6424.93271 | D184: =Y!P224 -> 4248.687427 | E184: =Y!R224 -> 983.5713713 | F184: =Y!T224 -> 177219 | G184: =Y!Q224 -> 1192.673911
A185: 40 | B185: 2020-05-05 | C185: =Y!S225 -> 6424.93271 | D185: =Y!P225 -> 4284.151731 | E185: =Y!R225 -> 938.1087938 | F185: =Y!T225 -> 171518 | G185: =Y!Q225 -> 1202.672185
A186: 41 | B186: 2020-06-05 | C186: =Y!S226 -> 6424.93271 | D186: =Y!P226 -> 4319.912059 | E186: =Y!R226 -> 892.2663752 | F186: =Y!T226 -> 165770 | G186: =Y!Q226 -> 1212.754275
A187: 42 | B187: 2020-07-05 | C187: =Y!S227 -> 6424.93271 | D187: =Y!P227 -> 4355.970883 | E187: =Y!R227 -> 846.0409419 | F187: =Y!T227 -> 159973 | G187: =Y!Q227 -> 1222.920884
A188: 43 | B188: 2020-08-05 | C188: =Y!S228 -> 6424.93271 | D188: =Y!P228 -> 4392.330695 | E188: =Y!R228 -> 799.4292938 | F188: =Y!T228 -> 154128 | G188: =Y!Q228 -> 1233.172721
A189: 44 | B189: 2020-09-05 | C189: =Y!S229 -> 6424.93271 | D189: =Y!P229 -> 4428.994006 | E189: =Y!R229 -> 752.4282042 | F189: =Y!T229 -> 148234 | G189: =Y!Q229 -> 1243.510499
A190: 45 | B190: 2020-10-05 | C190: =Y!S230 -> 6424.93271 | D190: =Y!P230 -> 4465.96335 | E190: =Y!R230 -> 705.0344191 | F190: =Y!T230 -> 142291 | G190: =Y!Q230 -> 1253.93494
A191: 46 | B191: 2020-11-05 | C191: =Y!S231 -> 6424.93271 | D191: =Y!P231 -> 4503.241282 | E191: =Y!R231 -> 657.2446576 | F191: =Y!T231 -> 136298 | G191: =Y!Q231 -> 1264.44677
A192: 47 | B192: 2020-12-05 | C192: =Y!S232 -> 6424.93271 | D192: =Y!P232 -> 4540.830377 | E192: =Y!R232 -> 609.0556113 | F192: =Y!T232 -> 130255 | G192: =Y!Q232 -> 1275.046721
A193: 48 | B193: 2021-01-05 | C193: =Y!S233 -> 6424.93271 | D193: =Y!P233 -> 4578.733233 | E193: =Y!R233 -> 560.4639441 | F193: =Y!T233 -> 135972 | G193: =Y!Q233 -> 1285.735532
A194: 49 | B194: 2021-02-05 | C194: =Y!S234 -> 6424.93271 | D194: =Y!P234 -> 4616.952469 | E194: =Y!R234 -> 610.4703985 | F194: =Y!T234 -> 129926 | G194: =Y!Q234 -> 1197.509842
A195: 50 | B195: 2021-03-05 | C195: =Y!S235 -> 6424.93271 | D195: =Y!P235 -> 4655.490725 | E195: =Y!R235 -> 561.8933285 | F195: =Y!T235 -> 123830 | G195: =Y!Q235 -> 1207.548656
A196: 51 | B196: 2021-04-05 | C196: =Y!S236 -> 6424.93271 | D196: =Y!P236 -> 4694.350665 | E196: =Y!R236 -> 512.910419 | F196: =Y!T236 -> 117684 | G196: =Y!Q236 -> 1217.671626
A197: 52 | B197: 2021-05-05 | C197: =Y!S237 -> 6424.93271 | D197: =Y!P237 -> 4733.534973 | E197: =Y!R237 -> 463.5182792 | F197: =Y!T237 -> 111486 | G197: =Y!Q237 -> 1227.879457
A198: 53 | B198: 2021-06-05 | C198: =Y!S238 -> 6424.93271 | D198: =Y!P238 -> 4773.046357 | E198: =Y!R238 -> 413.7134903 | F198: =Y!T238 -> 105236 | G198: =Y!Q238 -> 1238.172862
A199: 54 | B199: 2021-07-05 | C199: =Y!S239 -> 6424.93271 | D199: =Y!P239 -> 4812.887548 | E199: =Y!R239 -> 363.4926048 | F199: =Y!T239 -> 98934 | G199: =Y!Q239 -> 1248.552557
A200: 55 | B200: 2021-08-05 | C200: =Y!S240 -> 6424.93271 | D200: =Y!P240 -> 4853.061297 | E200: =Y!R240 -> 312.8521464 | F200: =Y!T240 -> 92579 | G200: =Y!Q240 -> 1259.019266
A201: 56 | B201: 2021-09-05 | C201: =Y!S241 -> 6424.93271 | D201: =Y!P241 -> 4893.570382 | E201: =Y!R241 -> 261.7886096 | F201: =Y!T241 -> 86171 | G201: =Y!Q241 -> 1269.573718
A202: 57 | B202: 2021-10-05 | C202: =Y!S242 -> 6424.93271 | D202: =Y!P242 -> 4934.417601 | E202: =Y!R242 -> 210.2984599 | F202: =Y!T242 -> 79710 | G202: =Y!Q242 -> 1280.216648
A203: 58 | B203: 2021-11-05 | C203: =Y!S243 -> 6424.93271 | D203: =Y!P243 -> 4975.605777 | E203: =Y!R243 -> 158.378133 | F203: =Y!T243 -> 73194 | G203: =Y!Q243 -> 1290.9488
A204: 59 | B204: 2021-12-05 | C204: =Y!S244 -> 6424.93271 | D204: =Y!P244 -> 5017.137755 | E204: =Y!R244 -> 106.0240351 | F204: =Y!T244 -> 66625 | G204: =Y!Q244 -> 1301.770919
A205: 60 | B205: 2022-01-05 | C205: =Y!S245 -> 6424.93271 | D205: =Y!P245 -> 5059.016406 | E205: =Y!R245 -> 53.23254222 | F205: =Y!T245 -> 60000 | G205: =Y!Q245 -> 1312.683761
A206: Total | C206: =SUM(C146:C205) -> 385495.9626 | D206: =SUM(D146:D205) -> 240000 | E206: =SUM(E146:E205) -> 71785.96257 | G206: =SUM(G146:G205) -> 73710
... 135 more rows

Sheet Customer
A1: =Management!A1 -> BOK, Islamic Banking Group | E1: In case a schdule is not printed correctly, Note the Page number and print from Print command directly.
A2: =Management!A2 -> www.bok.com.pk
A3: =Management!A3 -> 0092-??-?????
A4: =Management!A4 -> Date | D4: =Management!E4 -> 2017-04-23
A5: =Management!A5 -> Customer | D5: =Management!E5 -> Bok
A6: =Management!A6 -> Account Number | D6: =Management!E6 -> 12312
A7: =Management!A7 -> Vehicle Description | D7: =Management!E7 -> 1908-07-19
A8: =Management!A8 -> Vehicle Price | D8: =Management!E8 -> 300000
A9: =Management!A9 -> Security Deposit | D9: =Management!E9 -> 60000
A10: =Management!A10 -> Profit Rate | D10: =Management!E10 -> 0.1
A11: Ins | B11: Due Date | C11: Rentals | D11: Terminal Value
A12: =Management!A12 -> 1 | B12: =Management!B12 -> 2017-02-05 | C12: =Management!C12 -> 22673.01518 | D12: =Management!F12 -> 308505
A13: =Management!A13 -> 2 | B13: =Management!B13 -> 2017-03-05 | C13: =Management!C13 -> 22673.01518 | D13: =Management!F13 -> 286832
A14: =Management!A14 -> 3 | B14: =Management!B14 -> 2017-04-05 | C14: =Management!C14 -> 22673.01518 | D14: =Management!F14 -> 264980
A15: =Management!A15 -> 4 | B15: =Management!B15 -> 2017-05-05 | C15: =Management!C15 -> 22673.01518 | D15: =Management!F15 -> 242948
A16: =Management!A16 -> 5 | B16: =Management!B16 -> 2017-06-05 | C16: =Management!C16 -> 22673.01518 | D16: =Management!F16 -> 220733
A17: =Management!A17 -> 6 | B17: =Management!B17 -> 2017-07-05 | C17: =Management!C17 -> 22673.01518 | D17: =Management!F17 -> 198334
A18: =Management!A18 -> 7 | B18: =Management!B18 -> 2017-08-05 | C18: =Management!C18 -> 22673.01518 | D18: =Management!F18 -> 175751
A19: =Management!A19 -> 8 | B19: =Management!B19 -> 2017-09-05 | C19: =Management!C19 -> 22673.01518 | D19: =Management!F19 -> 152980
A20: =Management!A20 -> 9 | B20: =Management!B20 -> 2017-10-05 | C20: =Management!C20 -> 22673.01518 | D20: =Management!F20 -> 130022
A21: =Management!A21 -> 10 | B21: =Management!B21 -> 2017-11-05 | C21: =Management!C21 -> 22673.01518 | D21: =Management!F21 -> 106873
A22: =Management!A22 -> 11 | B22: =Management!B22 -> 2017-12-05 | C22: =Management!C22 -> 22673.01518 | D22: =Management!F22 -> 83533
A23: =Management!A23 -> 12 | B23: =Management!B23 -> 2018-01-05 | C23: =Management!C23 -> 22673.01518 | D23: =Management!F23 -> 60000
A24: =Management!A24 -> Total | C24: =SUM(C12:C23) -> 272076.1822
A28: =Management!A28 -> Inst | B28: Due Date | C28: Rentals | D28: Terminal Value
A29: =Management!A29 -> 1 | B29: =Management!B29 -> 2017-02-05 | C29: =Management!C29 -> 12585.94186 | D29: =Management!F29 -> 319117 | E29: 2
A30: =Management!A30 -> 2 | B30: =Management!B30 -> 2017-03-05 | C30: =Management!C30 -> 12585.94186 | D30: =Management!F30 -> 308144
A31: =Management!A31 -> 3 | B31: =Management!B31 -> 2017-04-05 | C31: =Management!C31 -> 12585.94186 | D31: =Management!F31 -> 297078
A32: =Management!A32 -> 4 | B32: =Management!B32 -> 2017-05-05 | C32: =Management!C32 -> 12585.94186 | D32: =Management!F32 -> 285921
A33: =Management!A33 -> 5 | B33: =Management!B33 -> 2017-06-05 | C33: =Management!C33 -> 12585.94186 | D33: =Management!F33 -> 274669
A34: =Management!A34 -> 6 | B34: =Management!B34 -> 2017-07-05 | C34: =Management!C34 -> 12585.94186 | D34: =Management!F34 -> 263324
A35: =Management!A35 -> 7 | B35: =Management!B35 -> 2017-08-05 | C35: =Management!C35 -> 12585.94186 | D35: =Management!F35 -> 251884
A36: =Management!A36 -> 8 | B36: =Management!B36 -> 2017-09-05 | C36: =Management!C36 -> 12585.94186 | D36: =Management!F36 -> 240348
A37: =Management!A37 -> 9 | B37: =Management!B37 -> 2017-10-05 | C37: =Management!C37 -> 12585.94186 | D37: =Management!F37 -> 228716
A38: =Management!A38 -> 10 | B38: =Management!B38 -> 2017-11-05 | C38: =Management!C38 -> 12585.94186 | D38: =Management!F38 -> 216986
A39: =Management!A39 -> 11 | B39: =Management!B39 -> 2017-12-05 | C39: =Management!C39 -> 12585.94186 | D39: =Management!F39 -> 205159
A40: =Management!A40 -> 12 | B40: =Management!B40 -> 2018-01-05 | C40: =Management!C40 -> 12585.94186 | D40: =Management!F40 -> 209432
A41: =Management!A41 -> 13 | B41: =Management!B41 -> 2018-02-05 | C41: =Management!C41 -> 12585.94186 | D41: =Management!F41 -> 197542
A42: =Management!A42 -> 14 | B42: =Management!B42 -> 2018-03-05 | C42: =Management!C42 -> 12585.94186 | D42: =Management!F42 -> 185552
A43: =Management!A43 -> 15 | B43: =Management!B43 -> 2018-04-05 | C43: =Management!C43 -> 12585.94186 | D43: =Management!F43 -> 173462
A44: =Management!A44 -> 16 | B44: =Management!B44 -> 2018-05-05 | C44: =Management!C44 -> 12585.94186 | D44: =Management!F44 -> 161271
A45: =Management!A45 -> 17 | B45: =Management!B45 -> 2018-06-05 | C45: =Management!C45 -> 12585.94186 | D45: =Management!F45 -> 148978
A46: =Management!A46 -> 18 | B46: =Management!B46 -> 2018-07-05 | C46: =Management!C46 -> 12585.94186 | D46: =Management!F46 -> 136582
A47: =Management!A47 -> 19 | B47: =Management!B47 -> 2018-08-05 | C47: =Management!C47 -> 12585.94186 | D47: =Management!F47 -> 124083
A48: =Management!A48 -> 20 | B48: =Management!B48 -> 2018-09-05 | C48: =Management!C48 -> 12585.94186 | D48: =Management!F48 -> 111479
A49: =Management!A49 -> 21 | B49: =Management!B49 -> 2018-10-05 | C49: =Management!C49 -> 12585.94186 | D49: =Management!F49 -> 98769
A50: =Management!A50 -> 22 | B50: =Management!B50 -> 2018-11-05 | C50: =Management!C50 -> 12585.94186 | D50: =Management!F50 -> 85954
A51: =Management!A51 -> 23 | B51: =Management!B51 -> 2018-12-05 | C51: =Management!C51 -> 12585.94186 | D51: =Management!F51 -> 73031
A52: =Management!A52 -> 24 | B52: =Management!B52 -> 2019-01-05 | C52: =Management!C52 -> 12585.94186 | D52: =Management!F52 -> 60000
A53: =Management!A53 -> Total | C53: =SUM(C29:C52) -> 302062.6047
A55: =Management!A55 -> Inst | B55: Due Date | C55: Rentals | D55: Terminal Value
A56: =Management!A56 -> 1 | B56: =Management!B56 -> 2017-02-05 | C56: =Management!C56 -> 9189.8664 | D56: =Management!F56 -> 322684 | E56: 3
A57: =Management!A57 -> 2 | B57: =Management!B57 -> 2017-03-05 | C57: =Management!C57 -> 9189.8664 | D57: =Management!F57 -> 315307
A58: =Management!A58 -> 3 | B58: =Management!B58 -> 2017-04-05 | C58: =Management!C58 -> 9189.8664 | D58: =Management!F58 -> 307869
A59: =Management!A59 -> 4 | B59: =Management!B59 -> 2017-05-05 | C59: =Management!C59 -> 9189.8664 | D59: =Management!F59 -> 300368
A60: =Management!A60 -> 5 | B60: =Management!B60 -> 2017-06-05 | C60: =Management!C60 -> 9189.8664 | D60: =Management!F60 -> 292804
A61: =Management!A61 -> 6 | B61: =Management!B61 -> 2017-07-05 | C61: =Management!C61 -> 9189.8664 | D61: =Management!F61 -> 285177
A62: =Management!A62 -> 7 | B62: =Management!B62 -> 2017-08-05 | C62: =Management!C62 -> 9189.8664 | D62: =Management!F62 -> 277486
A63: =Management!A63 -> 8 | B63: =Management!B63 -> 2017-09-05 | C63: =Management!C63 -> 9189.8664 | D63: =Management!F63 -> 269730
A64: =Management!A64 -> 9 | B64: =Management!B64 -> 2017-10-05 | C64: =Management!C64 -> 9189.8664 | D64: =Management!F64 -> 261910
A65: =Management!A65 -> 10 | B65: =Management!B65 -> 2017-11-05 | C65: =Management!C65 -> 9189.8664 | D65: =Management!F65 -> 254024
A66: =Management!A66 -> 11 | B66: =Management!B66 -> 2017-12-05 | C66: =Management!C66 -> 9189.8664 | D66: =Management!F66 -> 246072
A67: =Management!A67 -> 12 | B67: =Management!B67 -> 2018-01-05 | C67: =Management!C67 -> 9189.8664 | D67: =Management!F67 -> 254254
A68: =Management!A68 -> 13 | B68: =Management!B68 -> 2018-02-05 | C68: =Management!C68 -> 9189.8664 | D68: =Management!F68 -> 246304
A69: =Management!A69 -> 14 | B69: =Management!B69 -> 2018-03-05 | C69: =Management!C69 -> 9189.8664 | D69: =Management!F69 -> 238287
A70: =Management!A70 -> 15 | B70: =Management!B70 -> 2018-04-05 | C70: =Management!C70 -> 9189.8664 | D70: =Management!F70 -> 230202
A71: =Management!A71 -> 16 | B71: =Management!B71 -> 2018-05-05 | C71: =Management!C71 -> 9189.8664 | D71: =Management!F71 -> 222051
A72: =Management!A72 -> 17 | B72: =Management!B72 -> 2018-06-05 | C72: =Management!C72 -> 9189.8664 | D72: =Management!F72 -> 213831
A73: =Management!A73 -> 18 | B73: =Management!B73 -> 2018-07-05 | C73: =Management!C73 -> 9189.8664 | D73: =Management!F73 -> 205542
A74: =Management!A74 -> 19 | B74: =Management!B74 -> 2018-08-05 | C74: =Management!C74 -> 9189.8664 | D74: =Management!F74 -> 197183
A75: =Management!A75 -> 20 | B75: =Management!B75 -> 2018-09-05 | C75: =Management!C75 -> 9189.8664 | D75: =Management!F75 -> 188755
A76: =Management!A76 -> 21 | B76: =Management!B76 -> 2018-10-05 | C76: =Management!C76 -> 9189.8664 | D76: =Management!F76 -> 180256
A77: =Management!A77 -> 22 | B77: =Management!B77 -> 2018-11-05 | C77: =Management!C77 -> 9189.8664 | D77: =Management!F77 -> 171686
A78: =Management!A78 -> 23 | B78: =Management!B78 -> 2018-12-05 | C78: =Management!C78 -> 9189.8664 | D78: =Management!F78 -> 163045
A79: =Management!A79 -> 24 | B79: =Management!B79 -> 2019-01-05 | C79: =Management!C79 -> 9189.8664 | D79: =Management!F79 -> 168911
A80: =Management!A80 -> 25 | B80: =Management!B80 -> 2019-02-05 | C80: =Management!C80 -> 9189.8664 | D80: =Management!F80 -> 160245
A81: =Management!A81 -> 26 | B81: =Management!B81 -> 2019-03-05 | C81: =Management!C81 -> 9189.8664 | D81: =Management!F81 -> 151507
A82: =Management!A82 -> 27 | B82: =Management!B82 -> 2019-04-05 | C82: =Management!C82 -> 9189.8664 | D82: =Management!F82 -> 142696
A83: =Management!A83 -> 28 | B83: =Management!B83 -> 2019-05-05 | C83: =Management!C83 -> 9189.8664 | D83: =Management!F83 -> 133811
A84: =Management!A84 -> 29 | B84: =Management!B84 -> 2019-06-05 | C84: =Management!C84 -> 9189.8664 | D84: =Management!F84 -> 124852
A85: =Management!A85 -> 30 | B85: =Management!B85 -> 2019-07-05 | C85: =Management!C85 -> 9189.8664 | D85: =Management!F85 -> 115817
A86: =Management!A86 -> 31 | B86: =Management!B86 -> 2019-08-05 | C86: =Management!C86 -> 9189.8664 | D86: =Management!F86 -> 106707
A87: =Management!A87 -> 32 | B87: =Management!B87 -> 2019-09-05 | C87: =Management!C87 -> 9189.8664 | D87: =Management!F87 -> 97521
A88: =Management!A88 -> 33 | B88: =Management!B88 -> 2019-10-05 | C88: =Management!C88 -> 9189.8664 | D88: =Management!F88 -> 88258
A89: =Management!A89 -> 34 | B89: =Management!B89 -> 2019-11-05 | C89: =Management!C89 -> 9189.8664 | D89: =Management!F89 -> 78917
A90: =Management!A90 -> 35 | B90: =Management!B90 -> 2019-12-05 | C90: =Management!C90 -> 9189.8664 | D90: =Management!F90 -> 69498
A91: =Management!A91 -> 36 | B91: =Management!B91 -> 2020-01-05 | C91: =Management!C91 -> 9189.8664 | D91: =Management!F91 -> 60000
A92: =Management!A92 -> Total | C92: =SUM(C56:C91) -> 330835.1904
A94: =Management!A94 -> Inst | B94: Due Date | C94: Rentals | D94: Terminal Value
A95: =Management!A95 -> 1 | B95: =Management!B95 -> 2017-02-05 | C95: =Management!C95 -> 7476.193471 | D95: =Management!F95 -> 324489 | E95: 4
A96: =Management!A96 -> 2 | B96: =Management!B96 -> 2017-03-05 | C96: =Management!C96 -> 7476.193471 | D96: =Management!F96 -> 318931
A97: =Management!A97 -> 3 | B97: =Management!B97 -> 2017-04-05 | C97: =Management!C97 -> 7476.193471 | D97: =Management!F97 -> 313327
A98: =Management!A98 -> 4 | B98: =Management!B98 -> 2017-05-05 | C98: =Management!C98 -> 7476.193471 | D98: =Management!F98 -> 307676
A99: =Management!A99 -> 5 | B99: =Management!B99 -> 2017-06-05 | C99: =Management!C99 -> 7476.193471 | D99: =Management!F99 -> 301977
A100: =Management!A100 -> 6 | B100: =Management!B100 -> 2017-07-05 | C100: =Management!C100 -> 7476.193471 | D100: =Management!F100 -> 296230
A101: =Management!A101 -> 7 | B101: =Management!B101 -> 2017-08-05 | C101: =Management!C101 -> 7476.193471 | D101: =Management!F101 -> 290436
A102: =Management!A102 -> 8 | B102: =Management!B102 -> 2017-09-05 | C102: =Management!C102 -> 7476.193471 | D102: =Management!F102 -> 284592
A103: =Management!A103 -> 9 | B103: =Management!B103 -> 2017-10-05 | C103: =Management!C103 -> 7476.193471 | D103: =Management!F103 -> 278700
A104: =Management!A104 -> 10 | B104: =Management!B104 -> 2017-11-05 | C104: =Management!C104 -> 7476.193471 | D104: =Management!F104 -> 272757
A105: =Management!A105 -> 11 | B105: =Management!B105 -> 2017-12-05 | C105: =Management!C105 -> 7476.193471 | D105: =Management!F105 -> 266766
A106: =Management!A106 -> 12 | B106: =Management!B106 -> 2018-01-05 | C106: =Management!C106 -> 7476.193471 | D106: =Management!F106 -> 276923
A107: =Management!A107 -> 13 | B107: =Management!B107 -> 2018-02-05 | C107: =Management!C107 -> 7476.193471 | D107: =Management!F107 -> 270966
A108: =Management!A108 -> 14 | B108: =Management!B108 -> 2018-03-05 | C108: =Management!C108 -> 7476.193471 | D108: =Management!F108 -> 264958
A109: =Management!A109 -> 15 | B109: =Management!B109 -> 2018-04-05 | C109: =Management!C109 -> 7476.193471 | D109: =Management!F109 -> 258900
A110: =Management!A110 -> 16 | B110: =Management!B110 -> 2018-05-05 | C110: =Management!C110 -> 7476.193471 | D110: =Management!F110 -> 252790
A111: =Management!A111 -> 17 | B111: =Management!B111 -> 2018-06-05 | C111: =Management!C111 -> 7476.193471 | D111: =Management!F111 -> 246630
A112: =Management!A112 -> 18 | B112: =Management!B112 -> 2018-07-05 | C112: =Management!C112 -> 7476.193471 | D112: =Management!F112 -> 240418
A113: =Management!A113 -> 19 | B113: =Management!B113 -> 2018-08-05 | C113: =Management!C113 -> 7476.193471 | D113: =Management!F113 -> 234154
A114: =Management!A114 -> 20 | B114: =Management!B114 -> 2018-09-05 | C114: =Management!C114 -> 7476.193471 | D114: =Management!F114 -> 227837
A115: =Management!A115 -> 21 | B115: =Management!B115 -> 2018-10-05 | C115: =Management!C115 -> 7476.193471 | D115: =Management!F115 -> 221467
A116: =Management!A116 -> 22 | B116: =Management!B116 -> 2018-11-05 | C116: =Management!C116 -> 7476.193471 | D116: =Management!F116 -> 215043
A117: =Management!A117 -> 23 | B117: =Management!B117 -> 2018-12-05 | C117: =Management!C117 -> 7476.193471 | D117: =Management!F117 -> 208566
A118: =Management!A118 -> 24 | B118: =Management!B118 -> 2019-01-05 | C118: =Management!C118 -> 7476.193471 | D118: =Management!F118 -> 216614
A119: =Management!A119 -> 25 | B119: =Management!B119 -> 2019-02-05 | C119: =Management!C119 -> 7476.193471 | D119: =Management!F119 -> 210149
A120: =Management!A120 -> 26 | B120: =Management!B120 -> 2019-03-05 | C120: =Management!C120 -> 7476.193471 | D120: =Management!F120 -> 203630
A121: =Management!A121 -> 27 | B121: =Management!B121 -> 2019-04-05 | C121: =Management!C121 -> 7476.193471 | D121: =Management!F121 -> 197056
A122: =Management!A122 -> 28 | B122: =Management!B122 -> 2019-05-05 | C122: =Management!C122 -> 7476.193471 | D122: =Management!F122 -> 190427
A123: =Management!A123 -> 29 | B123: =Management!B123 -> 2019-06-05 | C123: =Management!C123 -> 7476.193471 | D123: =Management!F123 -> 183742
A124: =Management!A124 -> 30 | B124: =Management!B124 -> 2019-07-05 | C124: =Management!C124 -> 7476.193471 | D124: =Management!F124 -> 177001
A125: =Management!A125 -> 31 | B125: =Management!B125 -> 2019-08-05 | C125: =Management!C125 -> 7476.193471 | D125: =Management!F125 -> 170203
A126: =Management!A126 -> 32 | B126: =Management!B126 -> 2019-09-05 | C126: =Management!C126 -> 7476.193471 | D126: =Management!F126 -> 163348
A127: =Management!A127 -> 33 | B127: =Management!B127 -> 2019-10-05 | C127: =Management!C127 -> 7476.193471 | D127: =Management!F127 -> 156436
A128: =Management!A128 -> 34 | B128: =Management!B128 -> 2019-11-05 | C128: =Management!C128 -> 7476.193471 | D128: =Management!F128 -> 149466
A129: =Management!A129 -> 35 | B129: =Management!B129 -> 2019-12-05 | C129: =Management!C129 -> 7476.193471 | D129: =Management!F129 -> 142437
A130: =Management!A130 -> 36 | B130: =Management!B130 -> 2020-01-05 | C130: =Management!C130 -> 7476.193471 | D130: =Management!F130 -> 148469
A131: =Management!A131 -> 37 | B131: =Management!B131 -> 2020-02-05 | C131: =Management!C131 -> 7476.193471 | D131: =Management!F131 -> 141431
A132: =Management!A132 -> 38 | B132: =Management!B132 -> 2020-03-05 | C132: =Management!C132 -> 7476.193471 | D132: =Management!F132 -> 134334
A133: =Management!A133 -> 39 | B133: =Management!B133 -> 2020-04-05 | C133: =Management!C133 -> 7476.193471 | D133: =Management!F133 -> 127177
A134: =Management!A134 -> 40 | B134: =Management!B134 -> 2020-05-05 | C134: =Management!C134 -> 7476.193471 | D134: =Management!F134 -> 119960
A135: =Management!A135 -> 41 | B135: =Management!B135 -> 2020-06-05 | C135: =Management!C135 -> 7476.193471 | D135: =Management!F135 -> 112683
A136: =Management!A136 -> 42 | B136: =Management!B136 -> 2020-07-05 | C136: =Management!C136 -> 7476.193471 | D136: =Management!F136 -> 105344
A137: =Management!A137 -> 43 | B137: =Management!B137 -> 2020-08-05 | C137: =Management!C137 -> 7476.193471 | D137: =Management!F137 -> 97944
A138: =Management!A138 -> 44 | B138: =Management!B138 -> 2020-09-05 | C138: =Management!C138 -> 7476.193471 | D138: =Management!F138 -> 90482
A139: =Management!A139 -> 45 | B139: =Management!B139 -> 2020-10-05 | C139: =Management!C139 -> 7476.193471 | D139: =Management!F139 -> 82957
A140: =Management!A140 -> 46 | B140: =Management!B140 -> 2020-11-05 | C140: =Management!C140 -> 7476.193471 | D140: =Management!F140 -> 75368
A141: =Management!A141 -> 47 | B141: =Management!B141 -> 2020-12-05 | C141: =Management!C141 -> 7476.193471 | D141: =Management!F141 -> 67716
A142: =Management!A142 -> 48 | B142: =Management!B142 -> 2021-01-05 | C142: =Management!C142 -> 7476.193471 | D142: =Management!F142 -> 60000
A143: =Management!A143 -> Total | C143: =SUM(C95:C142) -> 358857.2866
A145: =Management!A145 -> Inst | B145: Due Date | C145: Rentals | D145: Terminal Value | E145: 5
A146: =Management!A146 -> 1 | B146: =Management!B146 -> 2017-02-05 | C146: =Management!C146 -> 6424.93271 | D146: =Management!F146 -> 325574
A147: =Management!A147 -> 2 | B147: =Management!B147 -> 2017-03-05 | C147: =Management!C147 -> 6424.93271 | D147: =Management!F147 -> 321112
A148: =Management!A148 -> 3 | B148: =Management!B148 -> 2017-04-05 | C148: =Management!C148 -> 6424.93271 | D148: =Management!F148 -> 316612
A149: =Management!A149 -> 4 | B149: =Management!B149 -> 2017-05-05 | C149: =Management!C149 -> 6424.93271 | D149: =Management!F149 -> 312074
A150: =Management!A150 -> 5 | B150: =Management!B150 -> 2017-06-05 | C150: =Management!C150 -> 6424.93271 | D150: =Management!F150 -> 307499
A151: =Management!A151 -> 6 | B151: =Management!B151 -> 2017-07-05 | C151: =Management!C151 -> 6424.93271 | D151: =Management!F151 -> 302885
A152: =Management!A152 -> 7 | B152: =Management!B152 -> 2017-08-05 | C152: =Management!C152 -> 6424.93271 | D152: =Management!F152 -> 298233
A153: =Management!A153 -> 8 | B153: =Management!B153 -> 2017-09-05 | C153: =Management!C153 -> 6424.93271 | D153: =Management!F153 -> 293542
A154: =Management!A154 -> 9 | B154: =Management!B154 -> 2017-10-05 | C154: =Management!C154 -> 6424.93271 | D154: =Management!F154 -> 288812
A155: =Management!A155 -> 10 | B155: =Management!B155 -> 2017-11-05 | C155: =Management!C155 -> 6424.93271 | D155: =Management!F155 -> 284042
A156: =Management!A156 -> 11 | B156: =Management!B156 -> 2017-12-05 | C156: =Management!C156 -> 6424.93271 | D156: =Management!F156 -> 279232
A157: =Management!A157 -> 12 | B157: =Management!B157 -> 2018-01-05 | C157: =Management!C157 -> 6424.93271 | D157: =Management!F157 -> 290582
A158: =Management!A158 -> 13 | B158: =Management!B158 -> 2018-02-05 | C158: =Management!C158 -> 6424.93271 | D158: =Management!F158 -> 285828
A159: =Management!A159 -> 14 | B159: =Management!B159 -> 2018-03-05 | C159: =Management!C159 -> 6424.93271 | D159: =Management!F159 -> 281033
A160: =Management!A160 -> 15 | B160: =Management!B160 -> 2018-04-05 | C160: =Management!C160 -> 6424.93271 | D160: =Management!F160 -> 276199
A161: =Management!A161 -> 16 | B161: =Management!B161 -> 2018-05-05 | C161: =Management!C161 -> 6424.93271 | D161: =Management!F161 -> 271324
A162: =Management!A162 -> 17 | B162: =Management!B162 -> 2018-06-05 | C162: =Management!C162 -> 6424.93271 | D162: =Management!F162 -> 266409
A163: =Management!A163 -> 18 | B163: =Management!B163 -> 2018-07-05 | C163: =Management!C163 -> 6424.93271 | D163: =Management!F163 -> 261452
A164: =Management!A164 -> 19 | B164: =Management!B164 -> 2018-08-05 | C164: =Management!C164 -> 6424.93271 | D164: =Management!F164 -> 256454
A165: =Management!A165 -> 20 | B165: =Management!B165 -> 2018-09-05 | C165: =Management!C165 -> 6424.93271 | D165: =Management!F165 -> 251414
A166: =Management!A166 -> 21 | B166: =Management!B166 -> 2018-10-05 | C166: =Management!C166 -> 6424.93271 | D166: =Management!F166 -> 246332
A167: =Management!A167 -> 22 | B167: =Management!B167 -> 2018-11-05 | C167: =Management!C167 -> 6424.93271 | D167: =Management!F167 -> 241208
A168: =Management!A168 -> 23 | B168: =Management!B168 -> 2018-12-05 | C168: =Management!C168 -> 6424.93271 | D168: =Management!F168 -> 236041
A169: =Management!A169 -> 24 | B169: =Management!B169 -> 2019-01-05 | C169: =Management!C169 -> 6424.93271 | D169: =Management!F169 -> 245411
A170: =Management!A170 -> 25 | B170: =Management!B170 -> 2019-02-05 | C170: =Management!C170 -> 6424.93271 | D170: =Management!F170 -> 240279
A171: =Management!A171 -> 26 | B171: =Management!B171 -> 2019-03-05 | C171: =Management!C171 -> 6424.93271 | D171: =Management!F171 -> 235104
A172: =Management!A172 -> 27 | B172: =Management!B172 -> 2019-04-05 | C172: =Management!C172 -> 6424.93271 | D172: =Management!F172 -> 229887
A173: =Management!A173 -> 28 | B173: =Management!B173 -> 2019-05-05 | C173: =Management!C173 -> 6424.93271 | D173: =Management!F173 -> 224625
A174: =Management!A174 -> 29 | B174: =Management!B174 -> 2019-06-05 | C174: =Management!C174 -> 6424.93271 | D174: =Management!F174 -> 219320
A175: =Management!A175 -> 30 | B175: =Management!B175 -> 2019-07-05 | C175: =Management!C175 -> 6424.93271 | D175: =Management!F175 -> 213970
A176: =Management!A176 -> 31 | B176: =Management!B176 -> 2019-08-05 | C176: =Management!C176 -> 6424.93271 | D176: =Management!F176 -> 208576
A177: =Management!A177 -> 32 | B177: =Management!B177 -> 2019-09-05 | C177: =Management!C177 -> 6424.93271 | D177: =Management!F177 -> 203137
A178: =Management!A178 -> 33 | B178: =Management!B178 -> 2019-10-05 | C178: =Management!C178 -> 6424.93271 | D178: =Management!F178 -> 197652
A179: =Management!A179 -> 34 | B179: =Management!B179 -> 2019-11-05 | C179: =Management!C179 -> 6424.93271 | D179: =Management!F179 -> 192121
A180: =Management!A180 -> 35 | B180: =Management!B180 -> 2019-12-05 | C180: =Management!C180 -> 6424.93271 | D180: =Management!F180 -> 186544
A181: =Management!A181 -> 36 | B181: =Management!B181 -> 2020-01-05 | C181: =Management!C181 -> 6424.93271 | D181: =Management!F181 -> 194041
A182: =Management!A182 -> 37 | B182: =Management!B182 -> 2020-02-05 | C182: =Management!C182 -> 6424.93271 | D182: =Management!F182 -> 188480
A183: =Management!A183 -> 38 | B183: =Management!B183 -> 2020-03-05 | C183: =Management!C183 -> 6424.93271 | D183: =Management!F183 -> 182873
A184: =Management!A184 -> 39 | B184: =Management!B184 -> 2020-04-05 | C184: =Management!C184 -> 6424.93271 | D184: =Management!F184 -> 177219
A185: =Management!A185 -> 40 | B185: =Management!B185 -> 2020-05-05 | C185: =Management!C185 -> 6424.93271 | D185: =Management!F185 -> 171518
A186: =Management!A186 -> 41 | B186: =Management!B186 -> 2020-06-05 | C186: =Management!C186 -> 6424.93271 | D186: =Management!F186 -> 165770
A187: =Management!A187 -> 42 | B187: =Management!B187 -> 2020-07-05 | C187: =Management!C187 -> 6424.93271 | D187: =Management!F187 -> 159973
A188: =Management!A188 -> 43 | B188: =Management!B188 -> 2020-08-05 | C188: =Management!C188 -> 6424.93271 | D188: =Management!F188 -> 154128
A189: =Management!A189 -> 44 | B189: =Management!B189 -> 2020-09-05 | C189: =Management!C189 -> 6424.93271 | D189: =Management!F189 -> 148234
A190: =Management!A190 -> 45 | B190: =Management!B190 -> 2020-10-05 | C190: =Management!C190 -> 6424.93271 | D190: =Management!F190 -> 142291
A191: =Management!A191 -> 46 | B191: =Management!B191 -> 2020-11-05 | C191: =Management!C191 -> 6424.93271 | D191: =Management!F191 -> 136298
A192: =Management!A192 -> 47 | B192: =Management!B192 -> 2020-12-05 | C192: =Management!C192 -> 6424.93271 | D192: =Management!F192 -> 130255
A193: =Management!A193 -> 48 | B193: =Management!B193 -> 2021-01-05 | C193: =Management!C193 -> 6424.93271 | D193: =Management!F193 -> 135972
A194: =Management!A194 -> 49 | B194: =Management!B194 -> 2021-02-05 | C194: =Management!C194 -> 6424.93271 | D194: =Management!F194 -> 129926
A195: =Management!A195 -> 50 | B195: =Management!B195 -> 2021-03-05 | C195: =Management!C195 -> 6424.93271 | D195: =Management!F195 -> 123830
A196: =Management!A196 -> 51 | B196: =Management!B196 -> 2021-04-05 | C196: =Management!C196 -> 6424.93271 | D196: =Management!F196 -> 117684
A197: =Management!A197 -> 52 | B197: =Management!B197 -> 2021-05-05 | C197: =Management!C197 -> 6424.93271 | D197: =Management!F197 -> 111486
A198: =Management!A198 -> 53 | B198: =Management!B198 -> 2021-06-05 | C198: =Management!C198 -> 6424.93271 | D198: =Management!F198 -> 105236
A199: =Management!A199 -> 54 | B199: =Management!B199 -> 2021-07-05 | C199: =Management!C199 -> 6424.93271 | D199: =Management!F199 -> 98934
A200: =Management!A200 -> 55 | B200: =Management!B200 -> 2021-08-05 | C200: =Management!C200 -> 6424.93271 | D200: =Management!F200 -> 92579
A201: =Management!A201 -> 56 | B201: =Management!B201 -> 2021-09-05 | C201: =Management!C201 -> 6424.93271 | D201: =Management!F201 -> 86171
A202: =Management!A202 -> 57 | B202: =Management!B202 -> 2021-10-05 | C202: =Management!C202 -> 6424.93271 | D202: =Management!F202 -> 79710
A203: =Management!A203 -> 58 | B203: =Management!B203 -> 2021-11-05 | C203: =Management!C203 -> 6424.93271 | D203: =Management!F203 -> 73194
A204: =Management!A204 -> 59 | B204: =Management!B204 -> 2021-12-05 | C204: =Management!C204 -> 6424.93271 | D204: =Management!F204 -> 66625
A205: =Management!A205 -> 60 | B205: =Management!B205 -> 2022-01-05 | C205: =Management!C205 -> 6424.93271 | D205: =Management!F205 -> 60000
A206: =Management!A206 -> Total | C206: =SUM(C146:C205) -> 385495.9626
... 135 more rows

Sheet Y
A1: Req.IRR | B1: Car Rentl | D1: TKFL RNTL | E1: Rntl / Year | G1: Data for Errors | I1: Total Aditionl | J1: =Basic!$C$15 -> 0
A2: =Basic!$C$12 -> 0.1 | B2: 21091.17691 | C2: =B2 -> 21091.17691 | D2: 1581.838268 | E2: 12 | F2: =D2 -> 1581.838268 | G2: =-((B6)/I4)*1.2 -> 24000 | H2: =(Basic!$C$22/I$4)*1.2 -> 1800 | I2: =ROUND(J$1/I$4,0) -> 0 | U2: =E2 -> 12
A3: ok | B3: ok | C3: ok | D3: ok | E3: ok | F3: ok | G3: ok | H3: ok
B4: Cash Flow | E4: Profit Included In | G4: RDV | I4: =E2 -> 12 | K4: Rental | N4: W/O Ins | O4: With insu | P4: Depreciation | Q4: Takaful | R4: Profit | S4: Rental | T4: terminal Value
B5: =IRR(B6:B18,0.01)*E2 -> 0.09922622686 | D5: =IRR(D6:D18,0)*E2 -> 0.09922622686 | E5: Car Rental | F5: TKAFL | G5: RDV | H5: TKAFL | I5: Booking Period Profit | K5: Car Rental | L5: TKAFL | M5: Total | N5: Termination value | U5: =IRR(U6:U18,0)*$U$2 -> 0.09922622686
A6: 0 | B6: =-(Basic!C10-Basic!C8) -> -240000 | C6: =-Basic!C22 -> -18000 | D6: =C6 -> -18000 | G6: =-B6 -> 240000 | H6: =-D6 -> 18000 | L6: =-Basic!$C$22/2 -> -9000 | U6: =B6+D6 -> -258000
A7: 1 | B7: =$C$2 -> 21091.17691 | D7: =C7+$F$2 -> 1581.838268 | E7: =G6*B$5/E$2 -> 1984.524537 | F7: =H6*$D$5/$E$2 -> 148.8393403 | G7: =G6+E7-B7 -> 220893.3476 | H7: =H6-D7+F7 -> 16567.00107 | I7: =ROUND($I$2/1,0) -> 0 | J7: =SUM(I7:I$18) -> 0 | K7: =B7 -> 21091.17691 | L7: =D7-C7 -> 1581.838268 | M7: =L7+K7 -> 22673.01518 | N7: =Basic!$C$8+G7+G7*Basic!$C$11+J7-I7 -> 291938.015 | O7: =ROUND((N7+H7)/1,0) -> 308505 | P7: =G6-G7 -> 19106.65237 | Q7: =H6-H7-C7 -> 1432.998928 | R7: =E7+F7+I7 -> 2133.363878 | S7: =R7+Q7+P7 -> 22673.01518 | T7: =O7 -> 308505 | U7: =B7+D7 -> 22673.01518
A8: 2 | B8: =$C$2 -> 21091.17691 | D8: =C8+$F$2 -> 1581.838268 | E8: =G7*$B$5/$E$2 -> 1826.534452 | F8: 136.9900839 | G8: =G7+E8-B8 -> 201628.7052 | H8: 15122.15289 | I8: =ROUND($I$2/1,0) -> 0 | J8: =SUM(I8:I$18) -> 0 | K8: =B8 -> 21091.17691 | L8: =D8-C8 -> 1581.838268 | M8: =L8+K8 -> 22673.01518 | N8: =Basic!$C$8+G8+G8*Basic!$C$11+J8-I8 -> 271710.1404 | O8: 286832 | P8: =G7-G8 -> 19264.64246 | Q8: 1444.848184 | R8: 1963.524536 | S8: =R8+Q8+P8 -> 22673.01518 | T8: =O8 -> 286832 | U8: 22673.01518
A9: 3 | B9: 21091.17691 | D9: 1581.838268 | E9: 1667.23797 | F9: 125.0428477 | G9: 182204.7662 | H9: 13665.35747 | I9: 0 | J9: =SUM(I9:I$18) -> 0 | K9: 21091.17691 | L9: 1581.838268 | M9: 22673.01518 | N9: =Basic!$C$8+G9+G9*Basic!$C$11+J9-I9 -> 251315.0045 | O9: 264980 | P9: 19423.93894 | Q9: 1456.795421 | R9: 1792.280818 | S9: 22673.01518 | T9: 264980 | U9: 22673.01518
A10: 4 | B10: 21091.17691 | D10: 1581.838268 | E10: 1506.624289 | F10: 112.9968217 | G10: 162620.2136 | H10: 12196.51602 | I10: 0 | J10: =SUM(I10:I$18) -> 0 | K10: 21091.17691 | L10: 1581.838268 | M10: 22673.01518 | N10: =Basic!$C$8+G10+G10*Basic!$C$11+J10-I10 -> 230751.2243 | O10: 242948 | P10: 19584.55262 | Q10: 1468.841447 | R10: 1619.621111 | S10: 22673.01518 | T10: 242948 | U10: 22673.01518
A11: 5 | B11: 21091.17691 | D11: 1581.838268 | E11: 1344.682517 | F11: 100.8511888 | G11: 142873.7192 | H11: 10715.52894 | I11: 0 | J11: =SUM(I11:I$18) -> 0 | K11: 21091.17691 | L11: 1581.838268 | M11: 22673.01518 | N11: =Basic!$C$8+G11+G11*Basic!$C$11+J11-I11 -> 210017.4052 | O11: 220733 | P11: 19746.49439 | Q11: 1480.98708 | R11: 1445.533706 | S11: 22673.01518 | T11: 220733 | U11: 22673.01518
A12: 6 | B12: 21091.17691 | D12: 1581.838268 | E12: 1181.401673 | F12: 88.60512546 | G12: 122963.944 | H12: 9222.295798 | I12: 0 | J12: =SUM(I12:I$18) -> 0 | K12: 21091.17691 | L12: 1581.838268 | M12: 22673.01518 | N12: =Basic!$C$8+G12+G12*Basic!$C$11+J12-I12 -> 189112.1412 | O12: 198334 | P12: 19909.77524 | Q12: 1493.233143 | R12: 1270.006798 | S12: 22673.01518 | T12: 198334 | U12: 22673.01518
A13: 7 | B13: 21091.17691 | D13: 1581.838268 | E13: 1016.770683 | F13: 76.25780125 | G13: 102889.5377 | H13: 7716.715331 | I13: 0 | J13: =SUM(I13:I$18) -> 0 | K13: 21091.17691 | L13: 1581.838268 | M13: 22673.01518 | N13: =Basic!$C$8+G13+G13*Basic!$C$11+J13-I13 -> 168034.0146 | O13: 175751 | P13: 20074.40623 | Q13: 1505.580467 | R13: 1093.028485 | S13: 22673.01518 | T13: 175751 | U13: 22673.01518
A14: 8 | B14: 21091.17691 | D14: =C14+$F$2 -> 1581.838268 | E14: 850.7783845 | F14: 63.80837883 | G14: 82649.13922 | H14: 6198.685441 | I14: 0 | J14: =SUM(I14:I$18) -> 0 | K14: 21091.17691 | L14: 1581.838268 | M14: 22673.01518 | N14: =Basic!$C$8+G14+G14*Basic!$C$11+J14-I14 -> 146781.5962 | O14: 152980 | P14: 20240.39853 | Q14: 1518.029889 | R14: 914.5867633 | S14: 22673.01518 | T14: 152980 | U14: 22673.01518
A15: 9 | B15: 21091.17691 | D15: 1581.838268 | E15: 683.4135198 | F15: 51.25601398 | G15: 62241.37583 | H15: 4668.103187 | I15: 0 | J15: =SUM(I15:I$18) -> 0 | K15: 21091.17691 | L15: 1581.838268 | M15: 22673.01518 | N15: =Basic!$C$8+G15+G15*Basic!$C$11+J15-I15 -> 125353.4446 | O15: 130022 | P15: 20407.76339 | Q15: 1530.582254 | R15: 734.6695338 | S15: 22673.01518 | T15: 130022 | U15: 22673.01518
A16: 10 | B16: 21091.17691 | D16: 1581.838268 | E16: 514.6647398 | F16: 38.59985548 | G16: 41664.86366 | H16: 3124.864774 | I16: 0 | J16: =SUM(I16:I$18) -> 0 | K16: 21091.17691 | L16: 1581.838268 | M16: 22673.01518 | N16: =Basic!$C$8+G16+G16*Basic!$C$11+J16-I16 -> 103748.1068 | O16: 106873 | P16: 20576.51217 | Q16: 1543.238413 | R16: 553.2645953 | S16: 22673.01518 | T16: 106873 | U16: 22673.01518
A17: 11 | B17: 21091.17691 | D17: 1581.838268 | E17: 344.5206011 | F17: 25.83904508 | G17: 20918.20735 | H17: 1568.865551 | I17: 0 | J17: =SUM(I17:I$18) -> 0 | K17: 21091.17691 | L17: 1581.838268 | M17: 22673.01518 | N17: =Basic!$C$8+G17+G17*Basic!$C$11+J17-I17 -> 81964.11771 | O17: 83533 | P17: 20746.65631 | Q17: 1555.999223 | R17: 370.3596462 | S17: 22673.01518 | T17: 83533 | U17: 22673.01518
A18: 12 | B18: 21091.17691 | D18: 1581.838268 | E18: 172.9695656 | F18: 12.97271742 | G18: 1.855369192e-10 | H18: -5.905739719e-08 | I18: 0 | J18: =SUM(I18:I$18) -> 0 | K18: 21091.17691 | L18: 1581.838268 | M18: 22673.01518 | N18: =Basic!$C$8+G18+G18*Basic!$C$11+J18-I18 -> 60000 | O18: 60000 | P18: 20918.20735 | Q18: 1568.865551 | R18: 185.9422831 | S18: 22673.01518 | T18: 60000 | U18: 22673.01518
A19: Total | B19: =SUM(B6:B18) -> 13094.12293 | C19: =SUM(C6:C18) -> -18000 | D19: =SUM(D6:D18) -> 982.05922 | E19: =SUM(E6:E18) -> 13094.12293 | F19: =SUM(F6:F18) -> 982.0592199 | I19: =SUM(I5:I18) -> 0 | K19: =SUM(K6:K18) -> 253094.1229 | L19: =SUM(L6:L18) -> 9982.05922 | M19: =SUM(M6:M18) -> 272076.1822 | P19: =SUM(P7:P18) -> 240000 | Q19: =SUM(Q7:Q18) -> 18000 | R19: =SUM(R7:R18) -> 14076.18215 | S19: =SUM(S7:S18) -> 272076.1822 | U19: =SUM(U6:U18) -> 14076.18215
A21: Explanatory Notes for future
A23: Formula used for rental rounding off inside programe in D coloumn for premium rounding was creating problems. It was temporarily removed.
A24: This can also cause problems for very small rentals or low price formulas.
A25: program for low price items should be separate without rounding off formulas.
A26: Printing problems can be solved by in built macro for page setup or by giving direct command by user to print exact page number.
A27: We can round off the rental directly in Mangenment but the same may not change the effective rate and may involve hiding rates penalty.
C30: Two Years
A31: Req.IRR | B31: Car Rentl | D31: TKFL RNTL | E31: Rntl / Year | G31: Data for Errors
A32: =A2 -> 0.1 | B32: 11078.02467 | C32: =B32 -> 11078.02467 | D32: 1507.917192 | E32: =$E$2 -> 12 | F32: =D32 -> 1507.917192 | G32: =-(B36)/I33 -> 10000 | H32: =(Basic!C22+Basic!C23)/I33 -> 1425 | I32: =ROUND($J$1/$I$33,0) -> 0
A33: ok | B33: ok | C33: ok | D33: ok | E33: ok | F33: ok | G33: ok | H33: ok | I33: =$E$2*2 -> 24
B34: Cash Flow | E34: Profit Included In | G34: RDV | K34: Rental | N34: W/O Ins | O34: With insu
B35: =IRR(B36:B60,0.01)*E32 -> 0.1002926802 | D35: =IRR(D36:D60,0)*E32 -> 0.1007398178 | E35: Car Rental | F35: TKAFL | G35: RDV | H35: TKAFL | K35: Car Rental | L35: TKAFL | M35: Total | U35: =IRR(U36:U60,0)*$U$2 -> 0.1003240759
A36: 0 | B36: =-(Basic!C10-Basic!C8) -> -240000 | C36: =-Basic!C22 -> -18000 | D36: =C36 -> -18000 | G36: =-B36 -> 240000 | H36: =-D36 -> 18000 | L36: =-Basic!$C$22/2 -> -9000 | P36: Depreciation | Q36: Takaful | R36: Profit | S36: Rental | T36: terminal Value | U36: =B36+D36 -> -258000
A37: 1 | B37: =$C$32 -> 11078.02467 | D37: =C37+$F$32 -> 1507.917192 | E37: =G36*$B$35/$E$32 -> 2005.853605 | F37: =H36*$D$35/$E$32 -> 151.1097268 | G37: =G36+E37-B37 -> 230927.8289 | H37: =H36-D37+F37 -> 16643.19254 | I37: =ROUND($I$32/1,0) -> 0 | J37: =SUM(I37:$I$60) -> 0 | K37: =B37 -> 11078.02467 | L37: =D37-C37 -> 1507.917192 | M37: =L37+K37 -> 12585.94186 | N37: =Basic!$C$8+G37+G37*Basic!$C$11+J37-I37 -> 302474.2204 | O37: =ROUND((N37+H37)/1,0) -> 319117 | P37: =G36-G37 -> 9072.171066 | Q37: =H36-H37-C37 -> 1356.807465 | R37: =E37+F37+I37 -> 2156.963332 | S37: =R37+Q37+P37 -> 12585.94186 | T37: =O37 -> 319117 | U37: =B37+D37 -> 12585.94186
A38: 2 | B38: =$C$32 -> 11078.02467 | D38: =C38+$F$32 -> 1507.917192 | E38: 1930.030909 | F38: 139.7193487 | G38: 221779.8352 | H38: 15274.99469 | I38: 0 | J38: =SUM(I38:$I$60) -> 0 | K38: 11078.02467 | L38: 1507.917192 | M38: 12585.94186 | N38: =Basic!$C$8+G38+G38*Basic!$C$11+J38-I38 -> 292868.8269 | O38: =ROUND((N38+H38)/1,0) -> 308144 | P38: 9147.993762 | Q38: 1368.197843 | R38: 2069.750258 | S38: 12585.94186 | T38: 308144 | U38: 12585.94186
A39: 3 | B39: 11078.02467 | D39: 1507.917192 | E39: 1853.574508 | F39: 128.2333486 | G39: 212555.385 | H39: 13895.31085 | I39: 0 | J39: =SUM(I39:$I$60) -> 0 | K39: 11078.02467 | L39: 1507.917192 | M39: 12585.94186 | N39: =Basic!$C$8+G39+G39*Basic!$C$11+J39-I39 -> 283183.1543 | O39: 297078 | P39: 9224.450163 | Q39: 1379.683843 | R39: 1981.807856 | S39: 12585.94186 | T39: 297078 | U39: 12585.94186
A40: 4 | B40: 11078.02467 | D40: 1507.917192 | E40: 1776.479105 | F40: 116.6509236 | G40: 203253.8394 | H40: 12504.04458 | I40: 0 | J40: =SUM(I40:$I$60) -> 0 | K40: 11078.02467 | L40: 1507.917192 | M40: 12585.94186 | N40: =Basic!$C$8+G40+G40*Basic!$C$11+J40-I40 -> 273416.5314 | O40: 285921 | P40: 9301.545566 | Q40: 1391.266268 | R40: 1893.130029 | S40: 12585.94186 | T40: 285921 | U40: 12585.94186
A41: 5 | B41: 11078.02467 | D41: 1507.917192 | E41: 1698.739361 | F41: 104.9712644 | G41: 193874.5541 | H41: 11101.09865 | I41: 0 | J41: =SUM(I41:$I$60) -> 0 | K41: 11078.02467 | L41: 1507.917192 | M41: 12585.94186 | N41: =Basic!$C$8+G41+G41*Basic!$C$11+J41-I41 -> 263568.2818 | O41: 274669 | P41: 9379.285311 | Q41: 1402.945927 | R41: 1803.710625 | S41: 12585.94186 | T41: 274669 | U41: 12585.94186
A42: 6 | B42: 11078.02467 | D42: 1507.917192 | E42: 1620.349889 | F42: 93.19355469 | G42: 184416.8793 | H42: 9686.375017 | I42: 0 | J42: =SUM(I42:$I$60) -> 0 | K42: 11078.02467 | L42: 1507.917192 | M42: 12585.94186 | N42: =Basic!$C$8+G42+G42*Basic!$C$11+J42-I42 -> 253637.7233 | O42: 263324 | P42: 9457.674782 | Q42: 1414.723637 | R42: 1713.543443 | S42: 12585.94186 | T42: 263324 | U42: 12585.94186
A43: 7 | B43: 11078.02467 | D43: 1507.917192 | E43: 1541.305259 | F43: 81.31697123 | G43: 174880.1599 | H43: 8259.774797 | I43: 0 | J43: =SUM(I43:$I$60) -> 0 | K43: 11078.02467 | L43: 1507.917192 | M43: 12585.94186 | N43: =Basic!$C$8+G43+G43*Basic!$C$11+J43-I43 -> 243624.1679 | O43: 251884 | P43: 9536.719412 | Q43: 1426.60022 | R43: 1622.622231 | S43: 12585.94186 | T43: 251884 | U43: 12585.94186
A44: 8 | B44: 11078.02467 | D44: 1507.917192 | E44: 1461.599997 | F44: 69.34068404 | G44: 165263.7353 | H44: 6821.19829 | I44: 0 | J44: =SUM(I44:$I$60) -> 0 | K44: 11078.02467 | L44: 1507.917192 | M44: 12585.94186 | N44: =Basic!$C$8+G44+G44*Basic!$C$11+J44-I44 -> 233526.922 | O44: 240348 | P44: 9616.424674 | Q44: 1438.576508 | R44: 1530.940681 | S44: 12585.94186 | T44: 240348 | U44: 12585.94186
A45: 9 | B45: 11078.02467 | D45: 1507.917192 | E45: 1381.22858 | F45: 57.2638561 | G45: 155566.9392 | H45: 5370.544954 | I45: 0 | J45: =SUM(I45:$I$60) -> 0 | K45: 11078.02467 | L45: 1507.917192 | M45: 12585.94186 | N45: =Basic!$C$8+G45+G45*Basic!$C$11+J45-I45 -> 223345.2861 | O45: 228716 | P45: 9696.796091 | Q45: 1450.653335 | R45: 1438.492436 | S45: 12585.94186 | T45: 228716 | U45: 12585.94186
A46: 10 | B46: 11078.02467 | D46: 1507.917192 | E46: 1300.185441 | F46: 45.08564337 | G46: 145789.0999 | H46: 3907.713406 | I46: 0 | J46: =SUM(I46:$I$60) -> 0 | K46: 11078.02467 | L46: 1507.917192 | M46: 12585.94186 | N46: =Basic!$C$8+G46+G46*Basic!$C$11+J46-I46 -> 213078.5549 | O46: 216986 | P46: 9777.839231 | Q46: 1462.831548 | R46: 1345.271084 | S46: 12585.94186 | T46: 216986 | U46: 12585.94186
A47: 11 | B47: 11078.02467 | D47: 1507.917192 | E47: 1218.464965 | F47: 32.80519472 | G47: 135929.5402 | H47: =H46-D47+F47 -> 2432.601409 | I47: 0 | J47: =SUM(I47:$I$60) -> 0 | K47: 11078.02467 | L47: 1507.917192 | M47: 12585.94186 | N47: =Basic!$C$8+G47+G47*Basic!$C$11+J47-I47 -> 202726.0172 | O47: 205159 | P47: 9859.559706 | Q47: 1475.111997 | R47: 1251.27016 | S47: 12585.94186 | T47: 205159 | U47: 12585.94186
A48: 12 | B48: 11078.02467 | C48: =-Basic!C23 -> -16200 | D48: -14692.08281 | E48: 1136.061493 | F48: 20.4216519 | G48: 125987.5771 | H48: =H47-D48+F48 -> 17145.10587 | I48: 0 | J48: =SUM(I48:$I$60) -> 0 | K48: 11078.02467 | L48: 1507.917192 | M48: 12585.94186 | N48: =Basic!$C$8+G48+G48*Basic!$C$11+J48-I48 -> 192286.9559 | O48: 209432 | P48: 9941.963178 | Q48: 1487.49554 | R48: 1156.483145 | S48: 12585.94186 | T48: 209432 | U48: -3614.058137
A49: 13 | B49: 11078.02467 | D49: 1507.917192 | E49: 1052.969315 | F49: 143.9329035 | G49: 115962.5217 | H49: 15781.12158 | I49: 0 | J49: =SUM(I49:$I$60) -> 0 | K49: 11078.02467 | L49: 1507.917192 | M49: 12585.94186 | N49: =Basic!$C$8+G49+G49*Basic!$C$11+J49-I49 -> 181760.6478 | O49: 197542 | P49: 10025.05536 | Q49: 1363.984288 | R49: 1196.902219 | S49: 12585.94186 | T49: 197542 | U49: 12585.94186
A50: 14 | B50: 11078.02467 | D50: 1507.917192 | E50: 969.1826757 | F50: 132.4822761 | G50: 105853.6797 | H50: 14405.68667 | I50: 0 | J50: =SUM(I50:$I$60) -> 0 | K50: 11078.02467 | L50: 1507.917192 | M50: 12585.94186 | N50: =Basic!$C$8+G50+G50*Basic!$C$11+J50-I50 -> 171146.3637 | O50: 185552 | P50: 10108.842 | Q50: 1375.434915 | R50: 1101.664952 | S50: 12585.94186 | T50: 185552 | U50: 12585.94186
A51: 15 | B51: 11078.02467 | D51: 1507.917192 | E51: 884.6957709 | F51: 120.9355209 | G51: 95660.35081 | H51: 13018.705 | I51: 0 | J51: =SUM(I51:$I$60) -> 0 | K51: 11078.02467 | L51: 1507.917192 | M51: 12585.94186 | N51: =Basic!$C$8+G51+G51*Basic!$C$11+J51-I51 -> 160443.3683 | O51: 173462 | P51: 10193.3289 | Q51: 1386.981671 | R51: 1005.631292 | S51: 12585.94186 | T51: 173462 | U51: 12585.94186
A52: 16 | B52: 11078.02467 | D52: 1507.917192 | E52: 799.5027479 | F52: 109.2918308 | G52: 85381.82888 | H52: 11620.07963 | I52: 0 | J52: =SUM(I52:$I$60) -> 0 | K52: 11078.02467 | L52: 1507.917192 | M52: 12585.94186 | N52: =Basic!$C$8+G52+G52*Basic!$C$11+J52-I52 -> 149650.9203 | O52: 161271 | P52: 10278.52192 | Q52: 1398.625361 | R52: 908.7945787 | S52: 12585.94186 | T52: 161271 | U52: 12585.94186
A53: 17 | B53: 11078.02467 | D53: 1507.917192 | E53: 713.5977052 | F53: 97.55039214 | G53: 75017.40192 | H53: 10209.71284 | I53: 0 | J53: =SUM(I53:$I$60) -> 0 | K53: 11078.02467 | L53: 1507.917192 | M53: 12585.94186 | N53: =Basic!$C$8+G53+G53*Basic!$C$11+J53-I53 -> 138768.272 | O53: 148978 | P53: 10364.42697 | Q53: 1410.366799 | R53: 811.1480974 | S53: 12585.94186 | T53: 148978 | U53: 12585.94186
A54: 18 | B54: 11078.02467 | D54: 1507.917192 | E54: 626.9746919 | F54: 85.71038427 | G54: 64566.35194 | H54: 8787.506028 | I54: 0 | J54: =SUM(I54:$I$60) -> 0 | K54: 11078.02467 | L54: 1507.917192 | M54: 12585.94186 | N54: =Basic!$C$8+G54+G54*Basic!$C$11+J54-I54 -> 127794.6695 | O54: 136582 | P54: 10451.04998 | Q54: 1422.206807 | R54: 712.6850762 | S54: 12585.94186 | T54: 136582 | U54: 12585.94186
A55: 19 | B55: 11078.02467 | D55: 1507.917192 | E55: 539.6277074 | F55: 73.77097971 | G55: 54027.95497 | H55: 7353.359816 | I55: 0 | J55: =SUM(I55:$I$60) -> 0 | K55: 11078.02467 | L55: 1507.917192 | M55: 12585.94186 | N55: =Basic!$C$8+G55+G55*Basic!$C$11+J55-I55 -> 116729.3527 | O55: 124083 | P55: 10538.39696 | Q55: 1434.146212 | R55: 613.3986871 | S55: 12585.94186 | T55: 124083 | U55: 12585.94186
A56: 20 | B56: 11078.02467 | D56: 1507.917192 | E56: 451.550701 | F56: 61.73134403 | G56: 43401.481 | H56: 5907.173968 | I56: 0 | J56: =SUM(I56:$I$60) -> 0 | K56: 11078.02467 | L56: 1507.917192 | M56: 12585.94186 | N56: =Basic!$C$8+G56+G56*Basic!$C$11+J56-I56 -> 105571.5551 | O56: 111479 | P56: 10626.47397 | Q56: 1446.185848 | R56: 513.2820451 | S56: 12585.94186 | T56: 111479 | U56: 12585.94186
A57: 21 | B57: 11078.02467 | D57: 1507.917192 | E57: 362.7375714 | F57: 49.59063579 | G57: 32686.1939 | H57: 4448.847413 | I57: 0 | J57: =SUM(I57:$I$60) -> 0 | K57: 11078.02467 | L57: 1507.917192 | M57: 12585.94186 | N57: =Basic!$C$8+G57+G57*Basic!$C$11+J57-I57 -> 94320.5036 | O57: 98769 | P57: 10715.2871 | Q57: 1458.326556 | R57: 412.3282072 | S57: 12585.94186 | T57: 98769 | U57: 12585.94186
A58: 22 | B58: 11078.02467 | D58: 1507.917192 | E58: 273.1821661 | F58: 37.3480065 | G58: 21881.3514 | H58: 2978.278228 | I58: 0 | J58: =SUM(I58:$I$60) -> 0 | K58: 11078.02467 | L58: 1507.917192 | M58: 12585.94186 | N58: =Basic!$C$8+G58+G58*Basic!$C$11+J58-I58 -> 82975.41897 | O58: 85954 | P58: 10804.8425 | Q58: 1470.569185 | R58: 310.5301726 | S58: 12585.94186 | T58: 85954 | U58: 12585.94186
A59: 23 | B59: 11078.02467 | D59: 1507.917192 | E59: 182.8782816 | F59: 25.00260051 | G59: 10986.20501 | H59: 1495.363637 | I59: 0 | J59: =SUM(I59:$I$60) -> 0 | K59: 11078.02467 | L59: 1507.917192 | M59: 12585.94186 | N59: =Basic!$C$8+G59+G59*Basic!$C$11+J59-I59 -> 71535.51526 | O59: 73031 | P59: 10895.14639 | Q59: 1482.914591 | R59: 207.8808821 | S59: 12585.94186 | T59: 73031 | U59: 12585.94186
A60: 24 | B60: 11078.02467 | D60: 1507.917192 | E60: 91.81966217 | F60: 12.55355503 | G60: -3.255991032e-10 | H60: -7.5671025e-11 | I60: 0 | J60: =SUM(I60:$I$60) -> 0 | K60: 11078.02467 | L60: 1507.917192 | M60: 12585.94186 | N60: =Basic!$C$8+G60+G60*Basic!$C$11+J60-I60 -> 60000 | O60: 60000 | P60: 10986.20501 | Q60: 1495.363637 | R60: 104.3732172 | S60: 12585.94186 | T60: 60000 | U60: 12585.94186
A61: Total | B61: =SUM(B36:B60) -> 25872.59211 | C61: =SUM(C36:C60) -> -34200 | D61: =SUM(D36:D60) -> 1990.012597 | E61: =SUM(E36:E60) -> 25872.59211 | F61: =SUM(F36:F60) -> 1990.012597 | I61: =SUM(I37:I60) -> 0 | K61: =SUM(K36:K60) -> 265872.5921 | L61: =SUM(L36:L60) -> 27190.0126 | M61: =SUM(M36:M60) -> 302062.6047 | P61: =SUM(P37:P60) -> 240000 | Q61: =SUM(Q37:Q60) -> 34200 | R61: =SUM(R37:R60) -> 27862.6047 | S61: =SUM(S37:S60) -> 302062.6047 | U61: =SUM(U36:U60) -> 27862.6047
B62: =B61-B36 -> 265872.5921 | D62: =D61-C61 -> 36190.0126 | E62: =E61+F61 -> 27862.6047
M63: Error
C70: Three Years
A71: Req.IRR | B71: Car Rentl | D71: TKFL RNTL | E71: Rntl / Year | G71: Data for Errors
A72: =A2 -> 0.1 | B72: 7750.348128 | C72: =B72 -> 7750.348128 | D72: 1439.518272 | E72: =$E$2 -> 12 | F72: =D72 -> 1439.518272 | G72: =-(B76)/I73 -> 6666.666667 | H72: =(Basic!$C$22+Basic!$C$23+Basic!$C$24)/I73 -> 1355 | I72: =ROUND($J$1/$I$73,0) -> 0
A73: ok | B73: ok | C73: ok | D73: ok | E73: ok | F73: ok | G73: ok | H73: ok | I73: =$E$2*3 -> 36
B74: Cash Flow | E74: Profit Included In | G74: RDV | K74: Rental | N74: W/O Ins | O74: With insu
B75: =IRR(B76:B112,0)*E72 -> 0.1005521642 | D75: =IRR(D76:D112,0)*E72 -> 0.1000381465 | E75: Car Rental | F75: TKAFL | G75: RDV | H75: TKAFL | K75: Car Rental | L75: TKAFL | M75: Total | U75: =IRR(U76:U112,0)*$U$2 -> 0.1005157036
A76: 0 | B76: =-(Basic!C10-Basic!C8) -> -240000 | C76: =-Basic!C22 -> -18000 | D76: =C76 -> -18000 | G76: =-B76 -> 240000 | H76: =-D76 -> 18000 | L76: =-Basic!$C$22/2 -> -9000 | P76: Depreciation | Q76: Takaful | R76: Profit | S76: Rental | T76: terminal Value | U76: =B76+D76 -> -258000
A77: 1 | B77: =$C$72 -> 7750.348128 | D77: =C77+$F$72 -> 1439.518272 | E77: =G76*$B$75/$E$72 -> 2011.043284 | F77: =H76*$D$75/$E$72 -> 150.0572197 | G77: =G76+E77-B77 -> 234260.6952 | H77: =H76-D77+F77 -> 16710.53895 | I77: =ROUND($I$72/1,0) -> 0 | J77: =SUM(I77:$I$112) -> 0 | K77: =B77 -> 7750.348128 | L77: =D77-C77 -> 1439.518272 | M77: =L77+K77 -> 9189.8664 | N77: =Basic!$C$8+G77+G77*Basic!$C$11+J77-I77 -> 305973.7299 | O77: =ROUND((N77+H77)/1,0) -> 322684 | P77: =G76-G77 -> 5739.304844 | Q77: =H76-H77-C77 -> 1289.461053 | R77: =E77+F77+I77 -> 2161.100504 | S77: =R77+Q77+P77 -> 9189.8664 | T77: =O77 -> 322684 | U77: =B77+D77 -> 9189.8664
A78: 2 | B78: =$C$72 -> 7750.348128 | D78: =C78+$F$72 -> 1439.518272 | E78: 1962.951657 | F78: 139.3076119 | G78: 228473.2987 | H78: 15410.32829 | I78: 0 | J78: =SUM(I78:$I$112) -> 0 | K78: 7750.348128 | L78: 1439.518272 | M78: 9189.8664 | N78: =Basic!$C$8+G78+G78*Basic!$C$11+J78-I78 -> 299896.9636 | O78: =ROUND((N78+H78)/1,0) -> 315307 | P78: 5787.396471 | Q78: 1300.21066 | R78: 2102.259269 | S78: 9189.8664 | T78: 315307 | U78: 9189.8664
A79: 3 | B79: 7750.348128 | D79: 1439.518272 | E79: 1914.457054 | F79: 128.4683899 | G79: 222637.4076 | H79: 14099.2784 | I79: 0 | J79: =SUM(I79:$I$112) -> 0 | K79: 7750.348128 | L79: 1439.518272 | M79: 9189.8664 | N79: =Basic!$C$8+G79+G79*Basic!$C$11+J79-I79 -> 293769.278 | O79: 307869 | P79: 5835.891074 | Q79: 1311.049882 | R79: 2042.925444 | S79: 9189.8664 | T79: 307869 | U79: 9189.8664
A80: 4 | B80: 7750.348128 | D80: 1439.518272 | E80: 1865.556097 | F80: 117.5388066 | G80: 216752.6156 | H80: 12777.29894 | I80: 0 | J80: =SUM(I80:$I$112) -> 0 | K80: 7750.348128 | L80: 1439.518272 | M80: 9189.8664 | N80: =Basic!$C$8+G80+G80*Basic!$C$11+J80-I80 -> 287590.2464 | O80: 300368 | P80: 5884.792031 | Q80: 1321.979466 | R80: 1983.094904 | S80: 9189.8664 | T80: 300368 | U80: 9189.8664
A81: 5 | B81: 7750.348128 | D81: 1439.518272 | E81: 1816.245383 | F81: 106.5181086 | G81: 210818.5128 | H81: 11444.29878 | I81: 0 | J81: =SUM(I81:$I$112) -> 0 | K81: 7750.348128 | L81: 1439.518272 | M81: 9189.8664 | N81: =Basic!$C$8+G81+G81*Basic!$C$11+J81-I81 -> 281359.4385 | O81: 292804 | P81: 5934.102745 | Q81: 1333.000164 | R81: 1922.763491 | S81: 9189.8664 | T81: 292804 | U81: 9189.8664
A82: 6 | B82: 7750.348128 | D82: 1439.518272 | E82: 1766.521477 | F82: 95.40553646 | G82: 204834.6862 | H82: 10100.18604 | I82: 0 | J82: =SUM(I82:$I$112) -> 0 | K82: 7750.348128 | L82: 1439.518272 | M82: 9189.8664 | N82: =Basic!$C$8+G82+G82*Basic!$C$11+J82-I82 -> 275076.4205 | O82: 285177 | P82: 5983.826651 | Q82: 1344.112736 | R82: 1861.927013 | S82: 9189.8664 | T82: 285177 | U82: 9189.8664
A83: 7 | B83: 7750.348128 | D83: 1439.518272 | E83: 1716.380917 | F83: 84.20032423 | G83: 198800.719 | H83: 8744.868092 | I83: 0 | J83: =SUM(I83:$I$112) -> 0 | K83: 7750.348128 | L83: 1439.518272 | M83: 9189.8664 | N83: =Basic!$C$8+G83+G83*Basic!$C$11+J83-I83 -> 268740.7549 | O83: 277486 | P83: 6033.967211 | Q83: 1355.317948 | R83: 1800.581241 | S83: 9189.8664 | T83: 277486 | U83: 9189.8664
A84: 8 | B84: 7750.348128 | D84: 1439.518272 | E84: 1665.820211 | F84: 72.90169961 | G84: 192716.1911 | H84: 7378.251519 | I84: 0 | J84: =SUM(I84:$I$112) -> 0 | K84: 7750.348128 | L84: 1439.518272 | M84: 9189.8664 | N84: =Basic!$C$8+G84+G84*Basic!$C$11+J84-I84 -> 262352.0006 | O84: 269730 | P84: 6084.527916 | Q84: 1366.616573 | R84: 1738.721911 | S84: 9189.8664 | T84: 269730 | U84: 9189.8664
A85: 9 | B85: 7750.348128 | D85: 1439.518272 | E85: 1614.835841 | F85: 61.50888386 | G85: 186580.6788 | H85: 6000.242131 | I85: 0 | J85: =SUM(I85:$I$112) -> 0 | K85: 7750.348128 | L85: 1439.518272 | M85: 9189.8664 | N85: =Basic!$C$8+G85+G85*Basic!$C$11+J85-I85 -> 255909.7127 | O85: 261910 | P85: 6135.512287 | Q85: 1378.009388 | R85: 1676.344724 | S85: 9189.8664 | T85: 261910 | U85: 9189.8664
A86: 10 | B86: 7750.348128 | D86: 1439.518272 | E86: 1563.424254 | F86: 50.02109177 | G86: 180393.7549 | H86: 4610.74495 | I86: 0 | J86: =SUM(I86:$I$112) -> 0 | K86: 7750.348128 | L86: 1439.518272 | M86: 9189.8664 | N86: =Basic!$C$8+G86+G86*Basic!$C$11+J86-I86 -> 249413.4426 | O86: 254024 | P86: 6186.923874 | Q86: 1389.49718 | R86: 1613.445346 | S86: 9189.8664 | T86: 254024 | U86: 9189.8664
A87: 11 | B87: 7750.348128 | D87: 1439.518272 | E87: 1511.581872 | F87: 38.43753157 | G87: 174154.9886 | H87: 3209.664209 | I87: 0 | J87: =SUM(I87:$I$112) -> 0 | K87: 7750.348128 | L87: 1439.518272 | M87: 9189.8664 | N87: =Basic!$C$8+G87+G87*Basic!$C$11+J87-I87 -> 242862.7381 | O87: 246072 | P87: 6238.766256 | Q87: 1401.080741 | R87: 1550.019403 | S87: 9189.8664 | T87: 246072 | U87: 9189.8664
A88: 12 | B88: 7750.348128 | C88: =-Basic!C23 -> -16200 | D88: -14760.48173 | E88: 1459.305084 | F88: 26.75740487 | G88: 167863.9456 | H88: 17996.90334 | I88: 0 | J88: =SUM(I88:$I$112) -> 0 | K88: 7750.348128 | L88: 1439.518272 | M88: 9189.8664 | N88: =Basic!$C$8+G88+G88*Basic!$C$11+J88-I88 -> 236257.1429 | O88: 254254 | P88: 6291.043043 | Q88: 1412.760867 | R88: 1486.062489 | S88: 9189.8664 | T88: 254254 | U88: -7010.1336
A89: 13 | B89: 7750.348128 | D89: 1439.518272 | E89: 1406.590252 | F89: 150.0314044 | G89: 161520.1877 | H89: 16707.41647 | I89: 0 | J89: =SUM(I89:$I$112) -> 0 | K89: 7750.348128 | L89: 1439.518272 | M89: 9189.8664 | N89: =Basic!$C$8+G89+G89*Basic!$C$11+J89-I89 -> 229596.1971 | O89: 246304 | P89: 6343.757876 | Q89: 1289.486868 | R89: 1556.621656 | S89: 9189.8664 | T89: 246304 | U89: 9189.8664
A90: 14 | B90: 7750.348128 | D90: 1439.518272 | E90: 1353.433703 | F90: 139.2815814 | G90: 155123.2733 | H90: 15407.17978 | I90: 0 | J90: =SUM(I90:$I$112) -> 0 | K90: 7750.348128 | L90: 1439.518272 | M90: 9189.8664 | N90: =Basic!$C$8+G90+G90*Basic!$C$11+J90-I90 -> 222879.437 | O90: 238287 | P90: 6396.914425 | Q90: 1300.236691 | R90: 1492.715284 | S90: 9189.8664 | T90: 238287 | U90: 9189.8664
A91: 15 | B91: 7750.348128 | D91: 1439.518272 | E91: 1299.831737 | F91: 128.4421424 | G91: 148672.7569 | H91: 14096.10365 | I91: 0 | J91: =SUM(I91:$I$112) -> 0 | K91: 7750.348128 | L91: 1439.518272 | M91: 9189.8664 | N91: =Basic!$C$8+G91+G91*Basic!$C$11+J91-I91 -> 216106.3947 | O91: 230202 | P91: 6450.516391 | Q91: 1311.07613 | R91: 1428.27388 | S91: 9189.8664 | T91: 230202 | U91: 9189.8664
A92: 16 | B92: 7750.348128 | D92: 1439.518272 | E92: 1245.780622 | F92: 117.5123402 | G92: 142168.1894 | H92: 12774.09772 | I92: 0 | J92: =SUM(I92:$I$112) -> 0 | K92: 7750.348128 | L92: 1439.518272 | M92: 9189.8664 | N92: =Basic!$C$8+G92+G92*Basic!$C$11+J92-I92 -> 209276.5989 | O92: 222051 | P92: 6504.567506 | Q92: 1322.005932 | R92: 1363.292962 | S92: 9189.8664 | T92: 222051 | U92: 9189.8664
A93: 17 | B93: 7750.348128 | D93: 1439.518272 | E93: 1191.276594 | F93: 106.4914216 | G93: 135609.1179 | H93: 11441.07087 | I93: 0 | J93: =SUM(I93:$I$112) -> 0 | K93: 7750.348128 | L93: 1439.518272 | M93: 9189.8664 | N93: =Basic!$C$8+G93+G93*Basic!$C$11+J93-I93 -> 202389.5738 | O93: 213831 | P93: 6559.071534 | Q93: 1333.026851 | R93: 1297.768015 | S93: 9189.8664 | T93: 213831 | U93: 9189.8664
A94: 18 | B94: 7750.348128 | D94: 1439.518272 | E94: 1136.315857 | F94: 95.37862699 | G94: 128995.0856 | H94: 10096.93123 | I94: 0 | J94: =SUM(I94:$I$112) -> 0 | K94: 7750.348128 | L94: 1439.518272 | M94: 9189.8664 | N94: =Basic!$C$8+G94+G94*Basic!$C$11+J94-I94 -> 195444.8399 | O94: 205542 | P94: 6614.032271 | Q94: 1344.139645 | R94: 1231.694484 | S94: 9189.8664 | T94: 205542 | U94: 9189.8664
A95: 19 | B95: 7750.348128 | D95: 1439.518272 | E95: 1080.894586 | F95: 84.17319043 | G95: 122325.6321 | H95: 8741.586144 | I95: 0 | J95: =SUM(I95:$I$112) -> 0 | K95: 7750.348128 | L95: 1439.518272 | M95: 9189.8664 | N95: =Basic!$C$8+G95+G95*Basic!$C$11+J95-I95 -> 188441.9137 | O95: 197183 | P95: 6669.453542 | Q95: 1355.345082 | R95: 1165.067776 | S95: 9189.8664 | T95: 197183 | U95: 9189.8664
A96: 20 | B96: 7750.348128 | D96: 1439.518272 | E96: 1025.00892 | F96: 72.87433961 | G96: 115600.2928 | H96: 7374.942211 | I96: 0 | J96: =SUM(I96:$I$112) -> 0 | K96: 7750.348128 | L96: 1439.518272 | M96: 9189.8664 | N96: =Basic!$C$8+G96+G96*Basic!$C$11+J96-I96 -> 181380.3075 | O96: 188755 | P96: 6725.339208 | Q96: 1366.643933 | R96: 1097.88326 | S96: 9189.8664 | T96: 188755 | U96: 9189.8664
A97: 21 | B97: 7750.348128 | D97: 1439.518272 | E97: 968.6549689 | F97: 61.48129578 | G97: 108818.5997 | H97: 5996.905234 | I97: 0 | J97: =SUM(I97:$I$112) -> 0 | K97: 7750.348128 | L97: 1439.518272 | M97: 9189.8664 | N97: =Basic!$C$8+G97+G97*Basic!$C$11+J97-I97 -> 174259.5297 | O97: 180256 | P97: 6781.693159 | Q97: 1378.036976 | R97: 1030.136265 | S97: 9189.8664 | T97: 180256 | U97: 9189.8664
A98: 22 | B98: 7750.348128 | D98: 1439.518272 | E98: 911.8288086 | F98: 49.9932737 | G98: 101980.0804 | H98: 4607.380236 | I98: 0 | J98: =SUM(I98:$I$112) -> 0 | K98: 7750.348128 | L98: 1439.518272 | M98: 9189.8664 | N98: =Basic!$C$8+G98+G98*Basic!$C$11+J98-I98 -> 167079.0844 | O98: 171686 | P98: 6838.519319 | Q98: 1389.524999 | R98: 961.8220823 | S98: 9189.8664 | T98: 171686 | U98: 9189.8664
A99: 23 | B99: 7750.348128 | D99: 1439.518272 | E99: 854.5264821 | F99: 38.40948158 | G99: 95084.25872 | H99: 3206.271445 | I99: 0 | J99: =SUM(I99:$I$112) -> 0 | K99: 7750.348128 | L99: 1439.518272 | M99: 9189.8664 | N99: =Basic!$C$8+G99+G99*Basic!$C$11+J99-I99 -> 159838.4717 | O99: 163045 | P99: 6895.821646 | Q99: 1401.108791 | R99: 892.9359637 | S99: 9189.8664 | T99: 163045 | U99: 9189.8664
A100: 24 | B100: 7750.348128 | C100: =-Basic!C24 -> -14580 | D100: -13140.48173 | E100: 796.7439996 | F100: 26.72912105 | G100: 88130.65459 | H100: 16373.48229 | I100: 0 | J100: =SUM(I100:$I$112) -> 0 | K100: 7750.348128 | L100: 1439.518272 | M100: 9189.8664 | N100: =Basic!$C$8+G100+G100*Basic!$C$11+J100-I100 -> 152537.1873 | O100: 168911 | P100: 6953.604128 | Q100: 1412.789151 | R100: 823.4731206 | S100: 9189.8664 | T100: 168911 | U100: -5390.1336
A101: 25 | B101: 7750.348128 | D101: 1439.518272 | E101: 738.4773376 | F101: 136.497735 | G101: 81118.7838 | H101: 15070.46176 | I101: 0 | J101: =SUM(I101:$I$112) -> 0 | K101: 7750.348128 | L101: 1439.518272 | M101: 9189.8664 | N101: =Basic!$C$8+G101+G101*Basic!$C$11+J101-I101 -> 145174.723 | O101: 160245 | P101: 7011.87079 | Q101: 1303.020537 | R101: 874.9750726 | S101: 9189.8664 | T101: 160245 | U101: 9189.8664
A102: 26 | B102: 7750.348128 | D102: 1439.518272 | E102: 679.722439 | F102: 125.6350884 | G102: 74048.15811 | H102: 13756.57857 | I102: 0 | J102: =SUM(I102:$I$112) -> 0 | K102: 7750.348128 | L102: 1439.518272 | M102: 9189.8664 | N102: =Basic!$C$8+G102+G102*Basic!$C$11+J102-I102 -> 137750.566 | O102: 151507 | P102: 7070.625689 | Q102: 1313.883184 | R102: 805.3575274 | S102: 9189.8664 | T102: 151507 | U102: 9189.8664
A103: 27 | B103: 7750.348128 | D103: 1439.518272 | E103: 620.4752127 | F103: 114.6818852 | G103: 66918.2852 | H103: 12431.74219 | I103: 0 | J103: =SUM(I103:$I$112) -> 0 | K103: 7750.348128 | L103: 1439.518272 | M103: 9189.8664 | N103: =Basic!$C$8+G103+G103*Basic!$C$11+J103-I103 -> 130264.1995 | O103: 142696 | P103: 7129.872915 | Q103: 1324.836387 | R103: 735.157098 | S103: 9189.8664 | T103: 142696 | U103: 9189.8664
A104: 28 | B104: 7750.348128 | D104: 1439.518272 | E104: 560.7315334 | F104: 103.6373705 | G104: 59728.6686 | H104: 11095.86128 | I104: 0 | J104: =SUM(I104:$I$112) -> 0 | K104: 7750.348128 | L104: 1439.518272 | M104: 9189.8664 | N104: =Basic!$C$8+G104+G104*Basic!$C$11+J104-I104 -> 122715.102 | O104: 133811 | P104: 7189.616594 | Q104: 1335.880902 | R104: 664.3689039 | S104: 9189.8664 | T104: 133811 | U104: 9189.8664
A105: 29 | B105: 7750.348128 | D105: 1439.518272 | E105: 500.4872411 | F105: 92.50078306 | G105: 52478.80772 | H105: 9748.843795 | I105: 0 | J105: =SUM(I105:$I$112) -> 0 | K105: 7750.348128 | L105: 1439.518272 | M105: 9189.8664 | N105: =Basic!$C$8+G105+G105*Basic!$C$11+J105-I105 -> 115102.7481 | O105: 124852 | P105: 7249.860887 | Q105: 1347.017489 | R105: 592.9880241 | S105: 9189.8664 | T105: 124852 | U105: 9189.8664
A106: 30 | B106: 7750.348128 | D106: 1439.518272 | E106: 439.7381409 | F106: 81.27135531 | G106: 45168.19773 | H106: 8390.596878 | I106: 0 | J106: =SUM(I106:$I$112) -> 0 | K106: 7750.348128 | L106: 1439.518272 | M106: 9189.8664 | N106: =Basic!$C$8+G106+G106*Basic!$C$11+J106-I106 -> 107426.6076 | O106: 115817 | P106: 7310.609987 | Q106: 1358.246917 | R106: 521.0094962 | S106: 9189.8664 | T106: 115817 | U106: 9189.8664
A107: 31 | B107: 7750.348128 | D107: 1439.518272 | E107: 378.4800029 | F107: 69.94831331 | G107: 37796.32961 | H107: 7021.026919 | I107: 0 | J107: =SUM(I107:$I$112) -> 0 | K107: 7750.348128 | L107: 1439.518272 | M107: 9189.8664 | N107: =Basic!$C$8+G107+G107*Basic!$C$11+J107-I107 -> 99686.14609 | O107: 106707 | P107: 7371.868125 | Q107: 1369.569959 | R107: 448.4283162 | S107: 9189.8664 | T107: 106707 | U107: 9189.8664
A108: 32 | B108: 7750.348128 | D108: 1439.518272 | E108: 316.7085617 | F108: 58.53087662 | G108: 30362.69004 | H108: 5640.039523 | I108: 0 | J108: =SUM(I108:$I$112) -> 0 | K108: 7750.348128 | L108: 1439.518272 | M108: 9189.8664 | N108: =Basic!$C$8+G108+G108*Basic!$C$11+J108-I108 -> 91880.82454 | O108: 97521 | P108: 7433.639566 | Q108: 1380.987396 | R108: 375.2394383 | S108: 9189.8664 | T108: 97521 | U108: 9189.8664
A109: 33 | B109: 7750.348128 | D109: 1439.518272 | E109: 254.4195162 | F109: 47.01825834 | G109: 22866.76143 | H109: 4247.539509 | I109: 0 | J109: =SUM(I109:$I$112) -> 0 | K109: 7750.348128 | L109: 1439.518272 | M109: 9189.8664 | N109: =Basic!$C$8+G109+G109*Basic!$C$11+J109-I109 -> 84010.0995 | O109: 88258 | P109: 7495.928612 | Q109: 1392.500014 | R109: 301.4377745 | S109: 9189.8664 | T109: 88258 | U109: 9189.8664
A110: 34 | B110: 7750.348128 | D110: 1439.518272 | E110: 191.6085291 | F110: 35.40966498 | G110: 15308.02183 | H110: 2843.430902 | I110: 0 | J110: =SUM(I110:$I$112) -> 0 | K110: 7750.348128 | L110: 1439.518272 | M110: 9189.8664 | N110: =Basic!$C$8+G110+G110*Basic!$C$11+J110-I110 -> 76073.42292 | O110: 78917 | P110: 7558.739599 | Q110: 1404.108607 | R110: 227.0181941 | S110: 9189.8664 | T110: 78917 | U110: 9189.8664
A111: 35 | B111: 7750.348128 | D111: 1439.518272 | E111: 128.271227 | F111: 23.70429643 | G111: 7685.944928 | H111: 1427.616926 | I111: 0 | J111: =SUM(I111:$I$112) -> 0 | K111: 7750.348128 | L111: 1439.518272 | M111: 9189.8664 | N111: =Basic!$C$8+G111+G111*Basic!$C$11+J111-I111 -> 68070.24217 | O111: 69498 | P111: 7622.076901 | Q111: 1415.813976 | R111: 151.9755235 | S111: 9189.8664 | T111: 69498 | U111: 9189.8664
A112: 36 | B112: 7750.348128 | D112: 1439.518272 | E112: 64.4031997 | F112: 11.90134593 | G112: -1.733315003e-08 | H112: -1.562024643e-08 | I112: 0 | J112: =SUM(I112:$I$112) -> 0 | K112: 7750.348128 | L112: 1439.518272 | M112: 9189.8664 | N112: =Basic!$C$8+G112+G112*Basic!$C$11+J112-I112 -> 60000 | O112: 60000 | P112: 7685.944928 | Q112: 1427.616926 | R112: 76.30454564 | S112: 9189.8664 | T112: 60000 | U112: 9189.8664
A113: Total | B113: =SUM(B76:B112) -> 39012.5326 | C113: =SUM(C76:C112) -> -48780 | D113: =SUM(D76:D112) -> 3042.657801 | E113: =SUM(E76:E112) -> 39012.5326 | F113: =SUM(F76:F112) -> 3042.657801 | I113: =SUM(I77:I112) -> 0 | K113: =SUM(K76:K112) -> 279012.5326 | L113: =SUM(L76:L112) -> 42822.6578 | M113: =SUM(M76:M112) -> 330835.1904 | P113: =SUM(P77:P112) -> 240000 | Q113: =SUM(Q77:Q112) -> 48780 | R113: =SUM(R77:R112) -> 42055.1904 | S113: =SUM(S77:S112) -> 330835.1904 | U113: =SUM(U76:U112) -> 42055.1904
B114: =B113-B76 -> 279012.5326 | D114: =D113-C113 -> 51822.6578 | E114: =E113+F113 -> 42055.1904
M115: Error
C120: Four Years
A121: Req.IRR | B121: Car Rentl | D121: TKFL RNTL | E121: Rntl / Year | G121: Data for Errors
A122: =A2 -> 0.1 | B122: 6097.752007 | C122: =B122 -> 6097.752007 | D122: 1378.441464 | E122: =$E$2 -> 12 | F122: =D122 -> 1378.441464 | G122: =-(B126)/I123 -> 5000 | H122: =(Basic!$C$22+Basic!$C$23+Basic!$C$24+Basic!$C$25)/I123 -> 1289.583333 | I122: =ROUND($J$1/$I$123,0) -> 0
A123: ok | B123: ok | C123: ok | D123: ok | E123: ok | F123: ok | G123: ok | H123: ok | I123: =$E$2*4 -> 48
B124: Cash Flow | E124: Profit Included In | G124: RDV | K124: Rental | N124: W/O Ins | O124: With insu
B125: =IRR(B126:B174,0)*E122 -> 0.1009306356 | D125: =IRR(D126:D174,0)*E122 -> 0.1001779272 | E125: Car Rental | F125: TKAFL | G125: RDV | H125: TKAFL | K125: Car Rental | L125: TKAFL | M125: Total | U125: =IRR(U126:U174,0)*$U$2 -> 0.1008758437
A126: 0 | B126: =-(Basic!C10-Basic!C8) -> -240000 | C126: =-Basic!C22 -> -18000 | D126: =C126 -> -18000 | G126: =-B126 -> 240000 | H126: =-D126 -> 18000 | L126: =-Basic!$C$22/2 -> -9000 | P126: Depreciation | Q126: Takaful | R126: Profit | S126: Rental | T126: terminal Value | U126: =B126+D126 -> -258000
A127: 1 | B127: =$C$122 -> 6097.752007 | D127: =C127+$F$122 -> 1378.441464 | E127: =G126*$B$125/$E$122 -> 2018.612712 | F127: =H126*$D$125/$E$122 -> 150.2668908 | G127: =G126+E127-B127 -> 235920.8607 | H127: =H126-D127+F127 -> 16771.82543 | I127: =ROUND($I$122/1,0) -> 0 | J127: =SUM(I127:$I$174) -> 0 | K127: =B127 -> 6097.752007 | L127: =D127-C127 -> 1378.441464 | M127: =L127+K127 -> 7476.193471 | N127: =Basic!$C$8+G127+G127*Basic!$C$11+J127-I127 -> 307716.9037 | O127: =ROUND((N127+H127)/1,0) -> 324489 | P127: =G126-G127 -> 4079.139296 | Q127: =H126-H127-C127 -> 1228.174573 | R127: =E127+F127+I127 -> 2168.879602 | S127: =R127+Q127+P127 -> 7476.193471 | T127: =O127 -> 324489 | U127: =B127+D127 -> 7476.193471
A128: 2 | B128: 6097.752007 | D128: =C128+$F$122 -> 1378.441464 | E128: 1984.303535 | F128: 140.0138923 | G128: 231807.4122 | H128: 15533.39786 | I128: 0 | J128: =SUM(I128:$I$174) -> 0 | K128: 6097.752007 | L128: 1378.441464 | M128: 7476.193471 | N128: =Basic!$C$8+G128+G128*Basic!$C$11+J128-I128 -> 303397.7828 | O128: =ROUND((N128+H128)/1,0) -> 318931 | P128: 4113.448472 | Q128: 1238.427571 | R128: 2124.317427 | S128: 7476.193471 | T128: 318931 | U128: 7476.193471
A129: 3 | B129: 6097.752007 | D129: 1378.441464 | E129: 1949.705787 | F129: 129.6753 | G129: 227659.366 | H129: 14284.63169 | I129: 0 | J129: =SUM(I129:$I$174) -> 0 | K129: 6097.752007 | L129: 1378.441464 | M129: 7476.193471 | N129: =Basic!$C$8+G129+G129*Basic!$C$11+J129-I129 -> 299042.3343 | O129: 313327 | P129: 4148.04622 | Q129: 1248.766164 | R129: 2079.381087 | S129: 7476.193471 | T129: 313327 | U129: 7476.193471
A130: 4 | B130: 6097.752007 | D130: 1378.441464 | E130: 1914.817042 | F130: 119.2503995 | G130: 223476.431 | H130: 13025.44063 | I130: 0 | J130: =SUM(I130:$I$174) -> 0 | K130: 6097.752007 | L130: 1378.441464 | M130: 7476.193471 | N130: =Basic!$C$8+G130+G130*Basic!$C$11+J130-I130 -> 294650.2526 | O130: 307676 | P130: 4182.934965 | Q130: 1259.191064 | R130: 2034.067442 | S130: 7476.193471 | T130: 307676 | U130: 7476.193471
A131: 5 | B131: 6097.752007 | D131: 1378.441464 | E131: 1879.634852 | F131: 108.7384703 | G131: 219258.3139 | H131: 11755.73763 | I131: 0 | J131: =SUM(I131:$I$174) -> 0 | K131: 6097.752007 | L131: 1378.441464 | M131: 7476.193471 | N131: =Basic!$C$8+G131+G131*Basic!$C$11+J131-I131 -> 290221.2296 | O131: 301977 | P131: 4218.117155 | Q131: 1269.702993 | R131: 1988.373322 | S131: 7476.193471 | T131: 301977 | U131: 7476.193471
A132: 6 | B132: 6097.752007 | D132: 1378.441464 | E132: 1844.156748 | F132: 98.13878578 | G132: 215004.7186 | H132: 10475.43496 | I132: 0 | J132: =SUM(I132:$I$174) -> 0 | K132: 6097.752007 | L132: 1378.441464 | M132: 7476.193471 | N132: =Basic!$C$8+G132+G132*Basic!$C$11+J132-I132 -> 285754.9546 | O132: 296230 | P132: 4253.595259 | Q132: 1280.302678 | R132: 1942.295534 | S132: 7476.193471 | T132: 296230 | U132: 7476.193471
A133: 7 | B133: 6097.752007 | D133: 1378.441464 | E133: 1808.380242 | F133: 87.4506134 | G133: 210715.3469 | H133: 9184.444107 | I133: 0 | J133: =SUM(I133:$I$174) -> 0 | K133: 6097.752007 | L133: 1378.441464 | M133: 7476.193471 | N133: =Basic!$C$8+G133+G133*Basic!$C$11+J133-I133 -> 281251.1142 | O133: 290436 | P133: 4289.371765 | Q133: 1290.99085 | R133: 1895.830855 | S133: 7476.193471 | T133: 290436 | U133: 7476.193471
A134: 8 | B134: 6097.752007 | D134: 1378.441464 | E134: 1772.302824 | F134: 76.67321445 | G134: 206389.8977 | H134: 7882.675858 | I134: 0 | J134: =SUM(I134:$I$174) -> 0 | K134: 6097.752007 | L134: 1378.441464 | M134: 7476.193471 | N134: =Basic!$C$8+G134+G134*Basic!$C$11+J134-I134 -> 276709.3926 | O134: 284592 | P134: 4325.449183 | Q134: 1301.768249 | R134: 1848.976038 | S134: 7476.193471 | T134: 284592 | U134: 7476.193471
A135: 9 | B135: 6097.752007 | D135: 1378.441464 | E135: 1735.921963 | F135: 65.80584404 | G135: 202028.0676 | H135: 6570.040238 | I135: 0 | J135: =SUM(I135:$I$174) -> 0 | K135: 6097.752007 | L135: 1378.441464 | M135: 7476.193471 | N135: =Basic!$C$8+G135+G135*Basic!$C$11+J135-I135 -> 272129.471 | O135: 278700 | P135: 4361.830045 | Q135: 1312.63562 | R135: 1801.727807 | S135: 7476.193471 | T135: 278700 | U135: 7476.193471
A136: 10 | B136: 6097.752007 | D136: 1378.441464 | E136: 1699.235106 | F136: 54.84775107 | G136: 197629.5507 | H136: 5246.446526 | I136: 0 | J136: =SUM(I136:$I$174) -> 0 | K136: 6097.752007 | L136: 1378.441464 | M136: 7476.193471 | N136: =Basic!$C$8+G136+G136*Basic!$C$11+J136-I136 -> 267511.0283 | O136: 272757 | P136: 4398.516901 | Q136: 1323.593713 | R136: 1754.082857 | S136: 7476.193471 | T136: 272757 | U136: 7476.193471
A137: 11 | B137: 6097.752007 | D137: 1378.441464 | E137: 1662.23968 | F137: 43.79817819 | G137: 193194.0384 | H137: 3911.80324 | I137: 0 | J137: =SUM(I137:$I$174) -> 0 | K137: 6097.752007 | L137: 1378.441464 | M137: 7476.193471 | N137: =Basic!$C$8+G137+G137*Basic!$C$11+J137-I137 -> 262853.7403 | O137: 266766 | P137: 4435.512327 | Q137: 1334.643285 | R137: 1706.037859 | S137: 7476.193471 | T137: 266766 | U137: 7476.193471
A138: 12 | B138: 6097.752007 | C138: =-Basic!C23 -> -16200 | D138: -14821.55854 | E138: 1624.933091 | F138: 32.6563617 | G138: 188721.2195 | H138: 18766.01814 | I138: 0 | J138: =SUM(I138:$I$174) -> 0 | K138: 6097.752007 | L138: 1378.441464 | M138: 7476.193471 | N138: =Basic!$C$8+G138+G138*Basic!$C$11+J138-I138 -> 258157.2805 | O138: 276923 | P138: 4472.818917 | Q138: 1345.785102 | R138: 1657.589452 | S138: 7476.193471 | T138: 276923 | U138: -8723.806529
A139: 13 | B139: 6097.752007 | D139: 1378.441464 | E139: 1587.312719 | F139: 156.6617333 | G139: 184210.7802 | H139: 17544.23841 | I139: 0 | J139: =SUM(I139:$I$174) -> 0 | K139: 6097.752007 | L139: 1378.441464 | M139: 7476.193471 | N139: =Basic!$C$8+G139+G139*Basic!$C$11+J139-I139 -> 253421.3192 | O139: 270966 | P139: 4510.439288 | Q139: 1221.77973 | R139: 1743.974453 | S139: 7476.193471 | T139: 270966 | U139: 7476.193471
A140: 14 | B140: 6097.752007 | D140: 1378.441464 | E140: 1549.375927 | F140: 146.4621199 | G140: 179662.4041 | H140: 16312.25906 | I140: 0 | J140: =SUM(I140:$I$174) -> 0 | K140: 6097.752007 | L140: 1378.441464 | M140: 7476.193471 | N140: =Basic!$C$8+G140+G140*Basic!$C$11+J140-I140 -> 248645.5243 | O140: 264958 | P140: 4548.37608 | Q140: 1231.979344 | R140: 1695.838047 | S140: 7476.193471 | T140: 264958 | U140: 7476.193471
A141: 15 | B141: 6097.752007 | D141: 1378.441464 | E141: 1511.120053 | F141: 136.1773585 | G141: 175075.7722 | H141: 15069.99496 | I141: 0 | J141: =SUM(I141:$I$174) -> 0 | K141: 6097.752007 | L141: 1378.441464 | M141: 7476.193471 | N141: =Basic!$C$8+G141+G141*Basic!$C$11+J141-I141 -> 243829.5608 | O141: 258900 | P141: 4586.631954 | Q141: 1242.264105 | R141: 1647.297412 | S141: 7476.193471 | T141: 258900 | U141: 7476.193471
A142: 16 | B142: 6097.752007 | D142: 1378.441464 | E142: 1472.542413 | F142: 125.8067382 | G142: 170450.5626 | H142: 13817.36023 | I142: 0 | J142: =SUM(I142:$I$174) -> 0 | K142: 6097.752007 | L142: 1378.441464 | M142: 7476.193471 | N142: =Basic!$C$8+G142+G142*Basic!$C$11+J142-I142 -> 238973.0907 | O142: 252790 | P142: 4625.209594 | Q142: 1252.634725 | R142: 1598.349152 | S142: 7476.193471 | T142: 252790 | U142: 7476.193471
A143: 17 | B143: 6097.752007 | D143: 1378.441464 | E143: 1433.640301 | F143: 115.3495423 | G143: 165786.4509 | H143: 12554.26831 | I143: 0 | J143: =SUM(I143:$I$174) -> 0 | K143: 6097.752007 | L143: 1378.441464 | M143: 7476.193471 | N143: =Basic!$C$8+G143+G143*Basic!$C$11+J143-I143 -> 234075.7734 | O143: 246630 | P143: 4664.111706 | Q143: 1263.091921 | R143: 1548.989844 | S143: 7476.193471 | T143: 246630 | U143: 7476.193471
A144: 18 | B144: 6097.752007 | D144: 1378.441464 | E144: 1394.410988 | F144: 104.8050481 | G144: 161083.1099 | H144: 11280.6319 | I144: 0 | J144: =SUM(I144:$I$174) -> 0 | K144: 6097.752007 | L144: 1378.441464 | M144: 7476.193471 | N144: =Basic!$C$8+G144+G144*Basic!$C$11+J144-I144 -> 229137.2653 | O144: 240418 | P144: 4703.341019 | Q144: 1273.636415 | R144: 1499.216036 | S144: 7476.193471 | T144: 240418 | U144: 7476.193471
A145: 19 | B145: 6097.752007 | D145: 1378.441464 | E145: 1354.851722 | F145: 94.17252677 | G145: 156340.2096 | H145: 9996.36296 | I145: 0 | J145: =SUM(I145:$I$174) -> 0 | K145: 6097.752007 | L145: 1378.441464 | M145: 7476.193471 | N145: =Basic!$C$8+G145+G145*Basic!$C$11+J145-I145 -> 224157.22 | O145: 234154 | P145: 4742.900286 | Q145: 1284.268937 | R145: 1449.024248 | S145: 7476.193471 | T145: 234154 | U145: 7476.193471
A146: 20 | B146: 6097.752007 | D146: 1378.441464 | E146: 1314.959727 | F146: 83.45124343 | G146: 151557.4173 | H146: 8701.37274 | I146: 0 | J146: =SUM(I146:$I$174) -> 0 | K146: 6097.752007 | L146: 1378.441464 | M146: 7476.193471 | N146: =Basic!$C$8+G146+G146*Basic!$C$11+J146-I146 -> 219135.2882 | O146: 227837 | P146: 4782.792281 | Q146: 1294.99022 | R146: 1398.41097 | S146: 7476.193471 | T146: 227837 | U146: 7476.193471
A147: 21 | B147: 6097.752007 | D147: 1378.441464 | E147: 1274.732204 | F147: 72.6404571 | G147: 146734.3975 | H147: 7395.571734 | I147: 0 | J147: =SUM(I147:$I$174) -> 0 | K147: 6097.752007 | L147: 1378.441464 | M147: 7476.193471 | N147: =Basic!$C$8+G147+G147*Basic!$C$11+J147-I147 -> 214071.1174 | O147: 221467 | P147: 4823.019803 | Q147: 1305.801007 | R147: 1347.372662 | S147: 7476.193471 | T147: 221467 | U147: 7476.193471
A148: 22 | B148: 6097.752007 | D148: 1378.441464 | E148: 1234.166333 | F148: 61.73942058 | G148: 141870.8118 | H148: 6078.869691 | I148: 0 | J148: =SUM(I148:$I$174) -> 0 | K148: 6097.752007 | L148: 1378.441464 | M148: 7476.193471 | N148: =Basic!$C$8+G148+G148*Basic!$C$11+J148-I148 -> 208964.3524 | O148: 215043 | P148: 4863.585674 | Q148: 1316.702043 | R148: 1295.905754 | S148: 7476.193471 | T148: 215043 | U148: 7476.193471
A149: 23 | B149: 6097.752007 | D149: 1378.441464 | E149: 1193.259267 | F149: 50.74738046 | G149: 136966.3191 | H149: 4751.175607 | I149: 0 | J149: =SUM(I149:$I$174) -> 0 | K149: 6097.752007 | L149: 1378.441464 | M149: 7476.193471 | N149: =Basic!$C$8+G149+G149*Basic!$C$11+J149-I149 -> 203814.635 | O149: 208566 | P149: 4904.49274 | Q149: 1327.694083 | R149: 1244.006648 | S149: 7476.193471 | T149: 208566 | U149: 7476.193471
A150: 24 | B150: 6097.752007 | C150: =-Basic!C24 -> -14580 | D150: -13201.55854 | E150: 1152.008136 | F150: 39.66357702 | G150: 132020.5752 | H150: 17992.39772 | I150: 0 | J150: =SUM(I150:$I$174) -> 0 | K150: 6097.752007 | L150: 1378.441464 | M150: 7476.193471 | N150: =Basic!$C$8+G150+G150*Basic!$C$11+J150-I150 -> 198621.604 | O150: 216614 | P150: 4945.743871 | Q150: 1338.777887 | R150: 1191.671713 | S150: 7476.193471 | T150: 216614 | U150: -7103.806529
A151: 25 | B151: 6097.752007 | D151: 1378.441464 | E151: 1110.410047 | F151: 150.2034258 | G151: 127033.2332 | H151: 16764.15968 | I151: 0 | J151: =SUM(I151:$I$174) -> 0 | K151: 6097.752007 | L151: 1378.441464 | M151: 7476.193471 | N151: =Basic!$C$8+G151+G151*Basic!$C$11+J151-I151 -> 193384.8949 | O151: 210149 | P151: 4987.34196 | Q151: 1228.238038 | R151: 1260.613473 | S151: 7476.193471 | T151: 210149 | U151: 7476.193471
A152: 26 | B152: 6097.752007 | D152: 1378.441464 | E152: 1068.462081 | F152: 139.9498974 | G152: 122003.9433 | H152: 15525.66812 | I152: 0 | J152: =SUM(I152:$I$174) -> 0 | K152: 6097.752007 | L152: 1378.441464 | M152: 7476.193471 | N152: =Basic!$C$8+G152+G152*Basic!$C$11+J152-I152 -> 188104.1405 | O152: 203630 | P152: 5029.289926 | Q152: 1238.491566 | R152: 1208.411978 | S152: 7476.193471 | T152: 203630 | U152: 7476.193471
A153: 27 | B153: 6097.752007 | D153: 1378.441464 | E153: 1026.161295 | F153: 129.6107709 | G153: 116932.3526 | H153: 14276.83742 | I153: 0 | J153: =SUM(I153:$I$174) -> 0 | K153: 6097.752007 | L153: 1378.441464 | M153: 7476.193471 | N153: =Basic!$C$8+G153+G153*Basic!$C$11+J153-I153 -> 182778.9702 | O153: 197056 | P153: 5071.590712 | Q153: 1248.830693 | R153: 1155.772066 | S153: 7476.193471 | T153: 197056 | U153: 7476.193471
A154: 28 | B154: 6097.752007 | D154: 1378.441464 | E154: 983.5047223 | F154: 119.1853317 | G154: 111818.1053 | H154: 13017.58129 | I154: 0 | J154: =SUM(I154:$I$174) -> 0 | K154: 6097.752007 | L154: 1378.441464 | M154: 7476.193471 | N154: =Basic!$C$8+G154+G154*Basic!$C$11+J154-I154 -> 177409.0106 | O154: 190427 | P154: 5114.247285 | Q154: 1259.256132 | R154: 1102.690054 | S154: 7476.193471 | T154: 190427 | U154: 7476.193471
A155: 29 | B155: 6097.752007 | D155: 1378.441464 | E155: 940.4893699 | F155: 108.6728593 | G155: 106660.8427 | H155: 11747.81269 | I155: 0 | J155: =SUM(I155:$I$174) -> 0 | K155: 6097.752007 | L155: 1378.441464 | M155: 7476.193471 | N155: =Basic!$C$8+G155+G155*Basic!$C$11+J155-I155 -> 171993.8848 | O155: 183742 | P155: 5157.262637 | Q155: 1269.768604 | R155: 1049.162229 | S155: 7476.193471 | T155: 183742 | U155: 7476.193471
A156: 30 | B156: 6097.752007 | D156: 1378.441464 | E156: 897.1122203 | F156: 98.07262705 | G156: 101460.2029 | H156: 10467.44385 | I156: 0 | J156: =SUM(I156:$I$174) -> 0 | K156: 6097.752007 | L156: 1378.441464 | M156: 7476.193471 | N156: =Basic!$C$8+G156+G156*Basic!$C$11+J156-I156 -> 166533.213 | O156: 177001 | P156: 5200.639787 | Q156: 1280.368837 | R156: 995.1848473 | S156: 7476.193471 | T156: 177001 | U156: 7476.193471
A157: 31 | B157: 6097.752007 | D157: 1378.441464 | E157: 853.3702304 | F157: 87.38390237 | G157: 96215.82112 | H157: 9176.38629 | I157: 0 | J157: =SUM(I157:$I$174) -> 0 | K157: 6097.752007 | L157: 1378.441464 | M157: 7476.193471 | N157: =Basic!$C$8+G157+G157*Basic!$C$11+J157-I157 -> 161026.6122 | O157: 170203 | P157: 5244.381777 | Q157: 1291.057561 | R157: 940.7541327 | S157: 7476.193471 | T157: 170203 | U157: 7476.193471
A158: 32 | B158: 6097.752007 | D158: 1378.441464 | E158: 809.2603315 | F158: 76.6059465 | G158: 90927.32944 | H158: 7874.550773 | I158: 0 | J158: =SUM(I158:$I$174) -> 0 | K158: 6097.752007 | L158: 1378.441464 | M158: 7476.193471 | N158: =Basic!$C$8+G158+G158*Basic!$C$11+J158-I158 -> 155473.6959 | O158: 163348 | P158: 5288.491676 | Q158: 1301.835517 | R158: 885.866278 | S158: 7476.193471 | T158: 163348 | U158: 7476.193471
A159: 33 | B159: 6097.752007 | D159: 1378.441464 | E159: 764.7794293 | F159: 65.73801453 | G159: 85594.35686 | H159: 6561.847324 | I159: 0 | J159: =SUM(I159:$I$174) -> 0 | K159: 6097.752007 | L159: 1378.441464 | M159: 7476.193471 | N159: =Basic!$C$8+G159+G159*Basic!$C$11+J159-I159 -> 149874.0747 | O159: 156436 | P159: 5332.972578 | Q159: 1312.703449 | R159: 830.5174439 | S159: 7476.193471 | T159: 156436 | U159: 7476.193471
A160: 34 | B160: 6097.752007 | D160: 1378.441464 | E160: 719.9244034 | F160: 54.77935531 | G160: 80216.52926 | H160: 5238.185216 | I160: 0 | J160: =SUM(I160:$I$174) -> 0 | K160: 6097.752007 | L160: 1378.441464 | M160: 7476.193471 | N160: =Basic!$C$8+G160+G160*Basic!$C$11+J160-I160 -> 144227.3557 | O160: 149466 | P160: 5377.827604 | Q160: 1323.662108 | R160: 774.7037587 | S160: 7476.193471 | T160: 149466 | U160: 7476.193471
A161: 35 | B161: 6097.752007 | D161: 1378.441464 | E161: 674.6921069 | F161: 43.72921145 | G161: 74793.46936 | H161: 3903.472964 | I161: 0 | J161: =SUM(I161:$I$174) -> 0 | K161: 6097.752007 | L161: 1378.441464 | M161: 7476.193471 | N161: =Basic!$C$8+G161+G161*Basic!$C$11+J161-I161 -> 138533.1428 | O161: 142437 | P161: 5423.0599 | Q161: 1334.712252 | R161: 718.4213183 | S161: 7476.193471 | T161: 142437 | U161: 7476.193471
A162: 36 | B162: 6097.752007 | C162: =-Basic!C25 -> -13120 | D162: -11741.55854 | E162: 629.0793666 | F162: 32.58681921 | G162: 69324.79672 | H162: 15677.61832 | I162: 0 | J162: =SUM(I162:$I$174) -> 0 | K162: 6097.752007 | L162: 1378.441464 | M162: 7476.193471 | N162: =Basic!$C$8+G162+G162*Basic!$C$11+J162-I162 -> 132791.0366 | O162: 148469 | P162: 5468.672641 | Q162: 1345.854644 | R162: 661.6661859 | S162: 7476.193471 | T162: 148469 | U162: -5643.806529
A163: 37 | B163: 6097.752007 | D163: 1378.441464 | E163: 583.0829829 | F163: 130.8792756 | G163: 63810.12769 | H163: 14430.05613 | I163: 0 | J163: =SUM(I163:$I$174) -> 0 | K163: 6097.752007 | L163: 1378.441464 | M163: 7476.193471 | N163: =Basic!$C$8+G163+G163*Basic!$C$11+J163-I163 -> 127000.6341 | O163: 141431 | P163: 5514.669024 | Q163: 1247.562188 | R163: 713.9622585 | S163: 7476.193471 | T163: 141431 | U163: 7476.193471
A164: 38 | B164: 6097.752007 | D164: 1378.441464 | E164: 536.6997287 | F164: 120.4644261 | G164: 58249.07542 | H164: 13172.07909 | I164: 0 | J164: =SUM(I164:$I$174) -> 0 | K164: 6097.752007 | L164: 1378.441464 | M164: 7476.193471 | N164: =Basic!$C$8+G164+G164*Basic!$C$11+J164-I164 -> 121161.5292 | O164: 134334 | P164: 5561.052278 | Q164: 1257.977038 | R164: 657.1641548 | S164: 7476.193471 | T164: 134334 | U164: 7476.193471
A165: 39 | B165: 6097.752007 | D165: 1378.441464 | E165: 489.9263503 | F165: 109.9626317 | G165: 52641.24976 | H165: 11903.60026 | I165: 0 | J165: =SUM(I165:$I$174) -> 0 | K165: 6097.752007 | L165: 1378.441464 | M165: 7476.193471 | N165: =Basic!$C$8+G165+G165*Basic!$C$11+J165-I165 -> 115273.3122 | O165: 127177 | P165: 5607.825657 | Q165: 1268.478832 | R165: 599.8889821 | S165: 7476.193471 | T165: 127177 | U165: 7476.193471
A166: 40 | B166: 6097.752007 | D166: 1378.441464 | E166: 442.7595663 | F166: 99.37316673 | G166: 46986.25732 | H166: 10624.53196 | I166: 0 | J166: =SUM(I166:$I$174) -> 0 | K166: 6097.752007 | L166: 1378.441464 | M166: 7476.193471 | N166: =Basic!$C$8+G166+G166*Basic!$C$11+J166-I166 -> 109335.5702 | O166: 119960 | P166: 5654.992441 | Q166: 1279.068297 | R166: 542.1327331 | S166: 7476.193471 | T166: 119960 | U166: 7476.193471
A167: 41 | B167: 6097.752007 | D167: 1378.441464 | E167: 395.1960679 | F167: 88.69529917 | G167: 41283.70138 | H167: 9334.785801 | I167: 0 | J167: =SUM(I167:$I$174) -> 0 | K167: 6097.752007 | L167: 1378.441464 | M167: 7476.193471 | N167: =Basic!$C$8+G167+G167*Basic!$C$11+J167-I167 -> 103347.8864 | O167: 112683 | P167: 5702.555939 | Q167: 1289.746164 | R167: 483.8913671 | S167: 7476.193471 | T167: 112683 | U167: 7476.193471
A168: 42 | B168: 6097.752007 | D168: 1378.441464 | E168: 347.2325183 | F168: 77.92829105 | G168: 35533.18189 | H168: 8034.272628 | I168: 0 | J168: =SUM(I168:$I$174) -> 0 | K168: 6097.752007 | L168: 1378.441464 | M168: 7476.193471 | N168: =Basic!$C$8+G168+G168*Basic!$C$11+J168-I168 -> 97309.84098 | O168: 105344 | P168: 5750.519489 | Q168: 1300.513173 | R168: 425.1608093 | S168: 7476.193471 | T168: 105344 | U168: 7476.193471
A169: 43 | B169: 6097.752007 | D169: 1378.441464 | E169: 298.8655527 | F169: 67.07139822 | G169: 29734.29544 | H169: 6722.902563 | I169: 0 | J169: =SUM(I169:$I$174) -> 0 | K169: 6097.752007 | L169: 1378.441464 | M169: 7476.193471 | N169: =Basic!$C$8+G169+G169*Basic!$C$11+J169-I169 -> 91221.01021 | O169: 97944 | P169: 5798.886454 | Q169: 1311.370065 | R169: 365.9369509 | S169: 7476.193471 | T169: 97944 | U169: 7476.193471
A170: 44 | B170: 6097.752007 | D170: 1378.441464 | E170: 250.0917781 | F170: 56.12387031 | G170: 23886.63521 | H170: 5400.584969 | I170: 0 | J170: =SUM(I170:$I$174) -> 0 | K170: 6097.752007 | L170: 1378.441464 | M170: 7476.193471 | N170: =Basic!$C$8+G170+G170*Basic!$C$11+J170-I170 -> 85080.96697 | O170: 90482 | P170: 5847.660229 | Q170: 1322.317593 | R170: 306.2156484 | S170: 7476.193471 | T170: 90482 | U170: 7476.193471
A171: 45 | B171: 6097.752007 | D171: 1378.441464 | E171: 200.9077728 | F171: 45.08495067 | G171: 17989.79097 | H171: 4067.228456 | I171: 0 | J171: =SUM(I171:$I$174) -> 0 | K171: 6097.752007 | L171: 1378.441464 | M171: 7476.193471 | N171: =Basic!$C$8+G171+G171*Basic!$C$11+J171-I171 -> 78889.28052 | O171: 82957 | P171: 5896.844234 | Q171: 1333.356513 | R171: 245.9927234 | S171: 7476.193471 | T171: 82957 | U171: 7476.193471
A172: 46 | B172: 6097.752007 | D172: 1378.441464 | E172: 151.3100864 | F172: 33.95387636 | G172: 12043.34905 | H172: 2722.740869 | I172: 0 | J172: =SUM(I172:$I$174) -> 0 | K172: 6097.752007 | L172: 1378.441464 | M172: 7476.193471 | N172: =Basic!$C$8+G172+G172*Basic!$C$11+J172-I172 -> 72645.5165 | O172: 75368 | P172: 5946.441921 | Q172: 1344.487587 | R172: 185.2639628 | S172: 7476.193471 | T172: 75368 | U172: 7476.193471
A173: 47 | B173: 6097.752007 | D173: 1378.441464 | E173: 101.2952395 | F173: 22.72987805 | G173: 6046.892284 | H173: 1367.029284 | I173: 0 | J173: =SUM(I173:$I$174) -> 0 | K173: 6097.752007 | L173: 1378.441464 | M173: 7476.193471 | N173: =Basic!$C$8+G173+G173*Basic!$C$11+J173-I173 -> 66349.2369 | O173: 67716 | P173: 5996.456768 | Q173: 1355.711586 | R173: 124.0251176 | S173: 7476.193471 | T173: 67716 | U173: 7476.193471
A174: 48 | B174: =$C$122 -> 6097.752007 | D174: 1378.441464 | E174: 50.85972346 | F174: 11.41218001 | G174: -7.639755495e-10 | H174: 5.013589544e-11 | I174: 0 | J174: =SUM(I174:$I$174) -> 0 | K174: 6097.752007 | L174: 1378.441464 | M174: 7476.193471 | N174: =Basic!$C$8+G174+G174*Basic!$C$11+J174-I174 -> 60000 | O174: 60000 | P174: 6046.892284 | Q174: 1367.029284 | R174: 62.27190346 | S174: 7476.193471 | T174: 60000 | U174: 7476.193471
A175: Total | B175: =SUM(B126:B174) -> 52692.09634 | C175: =SUM(C126:C174) -> -61900 | D175: =SUM(D126:D174) -> 4265.190253 | E175: =SUM(E126:E174) -> 52692.09634 | F175: =SUM(F126:F174) -> 4265.190253 | I175: =SUM(I127:I174) -> 0 | K175: =SUM(K126:K174) -> 292692.0963 | L175: =SUM(L126:L174) -> 57165.19025 | M175: =SUM(M126:M174) -> 358857.2866 | P175: =SUM(P127:P174) -> 240000 | Q175: =SUM(Q127:Q174) -> 61900 | R175: =SUM(R127:R174) -> 56957.2866 | S175: =SUM(S127:S174) -> 358857.2866 | U175: =SUM(U126:U174) -> 56957.2866
B176: =B175-B126 -> 292692.0963 | D176: =D175-C175 -> 66165.19025 | E176: =E175+F175 -> 56957.2866
M177: Error
C179: Five Years
A180: Req.IRR | B180: Car Rentl | D180: TKFL RNTL | E180: Rntl / Year | G180: Data for Errors
A181: =A2 -> 0.1 | B181: 5101.244623 | C181: =B181 -> 5101.244623 | D181: 1323.688087 | E181: =$E$2 -> 12 | F181: =D181 -> 1323.688087 | G181: =-(B185)/I183 -> 4000 | H181: =(Basic!$C$22+Basic!$C$23+Basic!$C$24+Basic!$C$25+Basic!$C$26)/I183 -> 1228.5 | I181: =ROUND($J$1/$I$183,0) -> 0
A182: ok | B182: ok | C182: ok | D182: ok | E182: ok | F182: ok | G182: ok | H182: ok
B183: Cash Flow | E183: Profit Included In | G183: RDV | I183: =$E$2*5 -> 60 | K183: Rental | N183: W/O Ins | O183: With insu
B184: =IRR(B185:B245,0)*E181 -> 0.1001654396 | D184: =IRR(D185:D245,0)*E181 -> 0.1005968904 | E184: Car Rental | F184: TKAFL | G184: RDV | H184: TKAFL | K184: Car Rental | L184: TKAFL | M184: Total | U184: =IRR(U185:U245,0)*$U$2 -> 0.1001981263
A185: 0 | B185: =-(Basic!C10-Basic!C8) -> -240000 | C185: =-Basic!C22 -> -18000 | D185: =C185 -> -18000 | G185: =-B185 -> 240000 | H185: =-D185 -> 18000 | L185: =-Basic!$C$22/2 -> -9000 | P185: Depreciation | Q185: Takaful | R185: Profit | S185: Rental | T185: terminal Value | U185: =B185+D185 -> -258000
A186: 1 | B186: =$C$181 -> 5101.244623 | D186: =C186+$F$181 -> 1323.688087 | E186: =G185*$B$184/$E$181 -> 2003.308791 | F186: =H185*$D$184/$E$181 -> 150.8953356 | G186: =G185+E186-B186 -> 236902.0642 | H186: =H185-D186+F186 -> 16827.20725 | I186: =ROUND($I$181/1,0) -> 0 | J186: =SUM(I186:$I$245) -> 0 | K186: =B186 -> 5101.244623 | L186: =D186-C186 -> 1323.688087 | M186: =L186+K186 -> 6424.93271 | N186: =Basic!$C$8+G186+G186*Basic!$C$11+J186-I186 -> 308747.1674 | O186: =ROUND((N186+H186)/1,0) -> 325574 | P186: =G185-G186 -> 3097.935831 | Q186: =H185-H186-C186 -> 1172.792751 | R186: =E186+F186+I186 -> 2154.204127 | S186: =R186+Q186+P186 -> 6424.93271 | T186: =O186 -> 325574 | U186: =B186+D186 -> 6424.93271
A187: 2 | B187: =$C$181 -> 5101.244623 | D187: =C187+$F$181 -> 1323.688087 | E187: 1977.449949 | F187: 141.063727 | G187: 233778.2695 | H187: 15644.58289 | I187: 0 | J187: =SUM(I187:$I$245) -> 0 | K187: 5101.244623 | L187: 1323.688087 | M187: 6424.93271 | N187: =Basic!$C$8+G187+G187*Basic!$C$11+J187-I187 -> 305467.183 | O187: =ROUND((N187+H187)/1,0) -> 321112 | P187: 3123.794673 | Q187: 1182.62436 | R187: 2118.513676 | S187: 6424.93271 | T187: 321112 | U187: 6424.93271
A188: 3 | B188: 5101.244623 | D188: 1323.688087 | E188: 1951.375261 | F188: 131.1496992 | G188: 230628.4001 | H188: 14452.0445 | I188: 0 | J188: =SUM(I188:$I$245) -> 0 | K188: 5101.244623 | L188: 1323.688087 | M188: 6424.93271 | N188: =Basic!$C$8+G188+G188*Basic!$C$11+J188-I188 -> 302159.8201 | O188: 316612 | P188: 3149.869362 | Q188: 1192.538387 | R188: 2082.52496 | S188: 6424.93271 | T188: 316612 | U188: 6424.93271
A189: 4 | B189: 5101.244623 | D189: 1323.688087 | E189: 1925.082923 | F189: 121.1525614 | G189: 227452.2384 | H189: 13249.50898 | I189: 0 | J189: =SUM(I189:$I$245) -> 0 | K189: 5101.244623 | L189: 1323.688087 | M189: 6424.93271 | N189: =Basic!$C$8+G189+G189*Basic!$C$11+J189-I189 -> 298824.8504 | O189: 312074 | P189: 3176.1617 | Q189: 1202.535525 | R189: 2046.235485 | S189: 6424.93271 | T189: 312074 | U189: 6424.93271
A190: 5 | B190: 5101.244623 | D190: 1323.688087 | E190: 1898.57112 | F190: 111.0716169 | G190: 224249.5649 | H190: 12036.89251 | I190: 0 | J190: =SUM(I190:$I$245) -> 0 | K190: 5101.244623 | L190: 1323.688087 | M190: 6424.93271 | N190: =Basic!$C$8+G190+G190*Basic!$C$11+J190-I190 -> 295462.0432 | O190: 307499 | P190: 3202.673502 | Q190: 1212.61647 | R190: 2009.642737 | S190: 6424.93271 | T190: 307499 | U190: 6424.93271
A191: 6 | B191: 5101.244623 | D191: 1323.688087 | E191: 1871.83802 | F191: 100.9061631 | G191: 221020.1583 | H191: 10814.11058 | I191: 0 | J191: =SUM(I191:$I$245) -> 0 | K191: 5101.244623 | L191: 1323.688087 | M191: 6424.93271 | N191: =Basic!$C$8+G191+G191*Basic!$C$11+J191-I191 -> 292071.1662 | O191: 302885 | P191: 3229.406602 | Q191: 1222.781924 | R191: 1972.744184 | S191: 6424.93271 | T191: 302885 | U191: 6424.93271
A192: 7 | B192: 5101.244623 | D192: 1323.688087 | E192: 1844.881776 | F192: 90.65549145 | G192: 217763.7955 | H192: 9581.077988 | I192: 0 | J192: =SUM(I192:$I$245) -> 0 | K192: 5101.244623 | L192: 1323.688087 | M192: 6424.93271 | N192: =Basic!$C$8+G192+G192*Basic!$C$11+J192-I192 -> 288651.9853 | O192: 298233 | P192: 3256.362847 | Q192: 1233.032595 | R192: 1935.537268 | S192: 6424.93271 | T192: 298233 | U192: 6424.93271
A193: 8 | B193: 5101.244623 | D193: 1323.688087 | E193: 1817.700525 | F193: 80.31888771 | G193: 214480.2514 | H193: 8337.708789 | I193: 0 | J193: =SUM(I193:$I$245) -> 0 | K193: 5101.244623 | L193: 1323.688087 | M193: 6424.93271 | N193: =Basic!$C$8+G193+G193*Basic!$C$11+J193-I193 -> 285204.264 | O193: 293542 | P193: 3283.544098 | Q193: 1243.369199 | R193: 1898.019413 | S193: 6424.93271 | T193: 293542 | U193: 6424.93271
A194: 9 | B194: 5101.244623 | D194: 1323.688087 | E194: 1790.292388 | F194: 69.89563145 | G194: 211169.2991 | H194: 7083.916333 | I194: 0 | J194: =SUM(I194:$I$245) -> 0 | K194: 5101.244623 | L194: 1323.688087 | M194: 6424.93271 | N194: =Basic!$C$8+G194+G194*Basic!$C$11+J194-I194 -> 281727.7641 | O194: 288812 | P194: 3310.952235 | Q194: 1253.792455 | R194: 1860.18802 | S194: 6424.93271 | T194: 288812 | U194: 6424.93271
A195: 10 | B195: 5101.244623 | D195: 1323.688087 | E195: 1762.655473 | F195: 59.38499627 | G195: 207830.71 | H195: 5819.613243 | I195: 0 | J195: =SUM(I195:$I$245) -> 0 | K195: 5101.244623 | L195: 1323.688087 | M195: 6424.93271 | N195: =Basic!$C$8+G195+G195*Basic!$C$11+J195-I195 -> 278222.2455 | O195: 284042 | P195: 3338.58915 | Q195: 1264.30309 | R195: 1822.040469 | S195: 6424.93271 | T195: 284042 | U195: 6424.93271
A196: 11 | B196: 5101.244623 | D196: 1323.688087 | E196: 1734.787869 | F196: 48.78624965 | G196: 204464.2532 | H196: 4544.711406 | I196: 0 | J196: =SUM(I196:$I$245) -> 0 | K196: 5101.244623 | L196: 1323.688087 | M196: 6424.93271 | N196: =Basic!$C$8+G196+G196*Basic!$C$11+J196-I196 -> 274687.4659 | O196: 279232 | P196: 3366.456754 | Q196: 1274.901837 | R196: 1783.574118 | S196: 6424.93271 | T196: 279232 | U196: 6424.93271
A197: 12 | B197: 5101.244623 | C197: =-Basic!C23 -> -16200 | D197: -14876.31191 | E197: 1706.68765 | F197: 38.09865294 | G197: 201069.6963 | H197: 19459.12197 | I197: 0 | J197: =SUM(I197:$I$245) -> 0 | K197: 5101.244623 | L197: 1323.688087 | M197: 6424.93271 | N197: =Basic!$C$8+G197+G197*Basic!$C$11+J197-I197 -> 271123.1811 | O197: 290582 | P197: 3394.556973 | Q197: 1285.589434 | R197: 1744.786303 | S197: 6424.93271 | T197: 290582 | U197: -9775.06729
A198: 13 | B198: 5101.244623 | D198: 1323.688087 | E198: 1678.352876 | F198: 163.1272634 | G198: 197646.8045 | H198: 18298.56115 | I198: 0 | J198: =SUM(I198:$I$245) -> 0 | K198: 5101.244623 | L198: 1323.688087 | M198: 6424.93271 | N198: =Basic!$C$8+G198+G198*Basic!$C$11+J198-I198 -> 267529.1448 | O198: 285828 | P198: 3422.891747 | Q198: 1160.560823 | R198: 1841.480139 | S198: 6424.93271 | T198: 285828 | U198: 6424.93271
A199: 14 | B199: 5101.244623 | D199: 1323.688087 | E199: 1649.781588 | F199: 153.3981959 | G199: 194195.3415 | H199: 17128.27126 | I199: 0 | J199: =SUM(I199:$I$245) -> 0 | K199: 5101.244623 | L199: 1323.688087 | M199: 6424.93271 | N199: =Basic!$C$8+G199+G199*Basic!$C$11+J199-I199 -> 263905.1086 | O199: 281033 | P199: 3451.463035 | Q199: 1170.289891 | R199: 1803.179784 | S199: 6424.93271 | T199: 281033 | U199: 6424.93271
A200: 15 | B200: 5101.244623 | D200: 1323.688087 | E200: 1620.971812 | F200: 143.5875689 | G200: 190715.0687 | H200: 15948.17074 | I200: 0 | J200: =SUM(I200:$I$245) -> 0 | K200: 5101.244623 | L200: 1323.688087 | M200: 6424.93271 | N200: =Basic!$C$8+G200+G200*Basic!$C$11+J200-I200 -> 260250.8221 | O200: 276199 | P200: 3480.272811 | Q200: 1180.100518 | R200: 1764.559381 | S200: 6424.93271 | T200: 276199 | U200: 6424.93271
A201: 16 | B201: 5101.244623 | D201: 1323.688087 | E201: 1591.921557 | F201: 133.6946987 | G201: 187205.7456 | H201: 14758.17735 | I201: 0 | J201: =SUM(I201:$I$245) -> 0 | K201: 5101.244623 | L201: 1323.688087 | M201: 6424.93271 | N201: =Basic!$C$8+G201+G201*Basic!$C$11+J201-I201 -> 256566.0329 | O201: 271324 | P201: 3509.323066 | Q201: 1189.993388 | R201: 1725.616256 | S201: 6424.93271 | T201: 271324 | U201: 6424.93271
A202: 17 | B202: 5101.244623 | D202: 1323.688087 | E202: 1562.628817 | F202: 123.7188958 | G202: 183667.1298 | H202: 13558.20816 | I202: 0 | J202: =SUM(I202:$I$245) -> 0 | K202: 5101.244623 | L202: 1323.688087 | M202: 6424.93271 | N202: =Basic!$C$8+G202+G202*Basic!$C$11+J202-I202 -> 252850.4863 | O202: 266409 | P202: 3538.615806 | Q202: 1199.969191 | R202: 1686.347713 | S202: 6424.93271 | T202: 266409 | U202: 6424.93271
A203: 18 | B203: 5101.244623 | D203: 1323.688087 | E203: 1533.091566 | F203: 113.6594651 | G203: 180098.9768 | H203: 12348.17954 | I203: 0 | J203: =SUM(I203:$I$245) -> 0 | K203: 5101.244623 | L203: 1323.688087 | M203: 6424.93271 | N203: =Basic!$C$8+G203+G203*Basic!$C$11+J203-I203 -> 249103.9256 | O203: 261452 | P203: 3568.153057 | Q203: 1210.028622 | R203: 1646.751031 | S203: 6424.93271 | T203: 261452 | U203: 6424.93271
A204: 19 | B204: 5101.244623 | D204: 1323.688087 | E204: 1503.307764 | F204: 103.5157053 | G204: 176501.0399 | H204: 11128.00716 | I204: 0 | J204: =SUM(I204:$I$245) -> 0 | K204: 5101.244623 | L204: 1323.688087 | M204: 6424.93271 | N204: =Basic!$C$8+G204+G204*Basic!$C$11+J204-I204 -> 245326.0919 | O204: 256454 | P204: 3597.936858 | Q204: 1220.172381 | R204: 1606.82347 | S204: 6424.93271 | T204: 256454 | U204: 6424.93271
A205: 20 | B205: 5101.244623 | D205: 1323.688087 | E205: 1473.275354 | F205: 93.28690973 | G205: 172873.0706 | H205: 9897.605981 | I205: 0 | J205: =SUM(I205:$I$245) -> 0 | K205: 5101.244623 | L205: 1323.688087 | M205: 6424.93271 | N205: =Basic!$C$8+G205+G205*Basic!$C$11+J205-I205 -> 241516.7242 | O205: 251414 | P205: 3627.969269 | Q205: 1230.401177 | R205: 1566.562264 | S205: 6424.93271 | T205: 251414 | U205: 6424.93271
A206: 21 | B206: 5101.244623 | D206: 1323.688087 | E206: 1442.992259 | F206: 82.97236537 | G206: 169214.8183 | H206: 8656.89026 | I206: 0 | J206: =SUM(I206:$I$245) -> 0 | K206: 5101.244623 | L206: 1323.688087 | M206: 6424.93271 | N206: =Basic!$C$8+G206+G206*Basic!$C$11+J206-I206 -> 237675.5592 | O206: 246332 | P206: 3658.252364 | Q206: 1240.715721 | R206: 1525.964624 | S206: 6424.93271 | T206: 246332 | U206: 6424.93271
A207: 22 | B207: 5101.244623 | D207: 1323.688087 | E207: 1412.456388 | F207: 72.57135341 | G207: 165526.03 | H207: 7405.773527 | I207: 0 | J207: =SUM(I207:$I$245) -> 0 | K207: 5101.244623 | L207: 1323.688087 | M207: 6424.93271 | N207: =Basic!$C$8+G207+G207*Basic!$C$11+J207-I207 -> 233802.3315 | O207: 241208 | P207: 3688.788235 | Q207: 1251.116733 | R207: 1485.027741 | S207: 6424.93271 | T207: 241208 | U207: 6424.93271
A208: 23 | B208: 5101.244623 | D208: 1323.688087 | E208: 1381.66563 | F208: 62.083149 | G208: 161806.451 | H208: 6144.168589 | I208: 0 | J208: =SUM(I208:$I$245) -> 0 | K208: 5101.244623 | L208: 1323.688087 | M208: 6424.93271 | N208: =Basic!$C$8+G208+G208*Basic!$C$11+J208-I208 -> 229896.7736 | O208: 236041 | P208: 3719.578993 | Q208: 1261.604938 | R208: 1443.748779 | S208: 6424.93271 | T208: 236041 | U208: 6424.93271
A209: 24 | B209: 5101.244623 | C209: =-Basic!C24 -> -14580 | D209: -13256.31191 | E209: 1350.617858 | F209: 51.50702119 | G209: 158055.8243 | H209: 19451.98752 | I209: 0 | J209: =SUM(I209:$I$245) -> 0 | K209: 5101.244623 | L209: 1323.688087 | M209: 6424.93271 | N209: =Basic!$C$8+G209+G209*Basic!$C$11+J209-I209 -> 225958.6155 | O209: 245411 | P209: 3750.626765 | Q209: 1272.181066 | R209: 1402.124879 | S209: 6424.93271 | T209: 245411 | U209: -8155.06729
A210: 25 | B210: 5101.244623 | D210: 1323.688087 | E210: 1319.310926 | F210: 163.0674548 | G210: 154273.8906 | H210: 18291.36689 | I210: 0 | J210: =SUM(I210:$I$245) -> 0 | K210: 5101.244623 | L210: 1323.688087 | M210: 6424.93271 | N210: =Basic!$C$8+G210+G210*Basic!$C$11+J210-I210 -> 221987.5851 | O210: 240279 | P210: 3781.933697 | Q210: 1160.620632 | R210: 1482.378381 | S210: 6424.93271 | T210: 240279 | U210: 6424.93271
A211: 26 | B211: 5101.244623 | D211: 1323.688087 | E211: 1287.742672 | F211: 153.3378859 | G211: 150460.3886 | H211: 17121.01669 | I211: 0 | J211: =SUM(I211:$I$245) -> 0 | K211: 5101.244623 | L211: 1323.688087 | M211: 6424.93271 | N211: =Basic!$C$8+G211+G211*Basic!$C$11+J211-I211 -> 217983.4081 | O211: 235104 | P211: 3813.501951 | Q211: 1170.350201 | R211: 1441.080558 | S211: 6424.93271 | T211: 235104 | U211: 6424.93271
A212: 27 | B212: 5101.244623 | D212: 1323.688087 | E212: 1255.910914 | F212: 143.5267533 | G212: 146615.0549 | H212: 15940.85536 | I212: 0 | J212: =SUM(I212:$I$245) -> 0 | K212: 5101.244623 | L212: 1323.688087 | M212: 6424.93271 | N212: =Basic!$C$8+G212+G212*Basic!$C$11+J212-I212 -> 213945.8077 | O212: 229887 | P212: 3845.333709 | Q212: 1180.161333 | R212: 1399.437667 | S212: 6424.93271 | T212: 229887 | U212: 6424.93271
A213: 28 | B213: 5101.244623 | D213: 1323.688087 | E213: 1223.813452 | F213: 133.6333733 | G213: 142737.6237 | H213: 14750.80064 | I213: 0 | J213: =SUM(I213:$I$245) -> 0 | K213: 5101.244623 | L213: 1323.688087 | M213: 6424.93271 | N213: =Basic!$C$8+G213+G213*Basic!$C$11+J213-I213 -> 209874.5049 | O213: 224625 | P213: 3877.431171 | Q213: 1190.054713 | R213: 1357.446825 | S213: 6424.93271 | T213: 224625 | U213: 6424.93271
A214: 29 | B214: 5101.244623 | D214: 1323.688087 | E214: 1191.448069 | F214: 123.6570563 | G214: 138827.8272 | H214: 13550.76961 | I214: 0 | J214: =SUM(I214:$I$245) -> 0 | K214: 5101.244623 | L214: 1323.688087 | M214: 6424.93271 | N214: =Basic!$C$8+G214+G214*Basic!$C$11+J214-I214 -> 205769.2185 | O214: 219320 | P214: 3909.796554 | Q214: 1200.03103 | R214: 1315.105125 | S214: 6424.93271 | T214: 219320 | U214: 6424.93271
A215: 30 | B215: 5101.244623 | D215: 1323.688087 | E215: 1158.812528 | F215: 113.5971072 | G215: 134885.3951 | H215: 12340.67863 | I215: 0 | J215: =SUM(I215:$I$245) -> 0 | K215: 5101.244623 | L215: 1323.688087 | M215: 6424.93271 | N215: =Basic!$C$8+G215+G215*Basic!$C$11+J215-I215 -> 201629.6648 | O215: 213970 | P215: 3942.432095 | Q215: 1210.09098 | R215: 1272.409635 | S215: 6424.93271 | T215: 213970 | U215: 6424.93271
... 33 more rows

Sheet Yq
A1: Req.IRR | B1: Car Rentl | D1: TKFL RNTL | E1: Rntl / Year | G1: Data for Errors | I1: Total Aditionl | J1: =Basic!C15 -> 0
A2: =Basic!C12 -> 0.1 | B2: 63790.10388 | C2: =B2 -> 63790.10388 | D2: 4784.257791 | E2: 4 | F2: =D2 -> 4784.257791 | G2: =-(B6/E2)*1.3 -> 78000 | H2: =Basic!C22/I4 -> 4500 | I2: =ROUND($J$1/$I$4,0) -> 0 | U2: =E2 -> 4
A3: ok | B3: ok | C3: ok | D3: ok | E3: ok | F3: ok | G3: ok | H3: ok
B4: Cash Flow | E4: Profit Included In | G4: RDV | I4: =E2 -> 4 | K4: Rental | N4: W/O Ins | O4: With insu | P4: Depreciation | Q4: Takaful | R4: Profit | S4: Rental | T4: terminal Value
B5: =IRR(B6:B10,0)*E2 -> 0.09983896687 | D5: =IRR(D6:D10,0)*E2 -> 0.09983896687 | E5: Car Rental | F5: TKAFL | G5: RDV | H5: TKAFL | I5: Booking Period Profit | K5: Car Rental | L5: TKAFL | M5: Total | N5: Termination value | U5: =IRR(U6:U10,0)*$U$2 -> 0.09983896687
A6: 0 | B6: =-(Basic!C10-Basic!C8) -> -240000 | C6: =-Basic!C22 -> -18000 | D6: =C6 -> -18000 | G6: =-B6 -> 240000 | H6: =-D6 -> 18000 | L6: =-Basic!$C$22/2 -> -9000 | U6: =B6+D6 -> -258000
A7: 1 | B7: =$C$2 -> 63790.10388 | D7: =C7+$F$2 -> 4784.257791 | E7: =G6*$B$5/$E$2 -> 5990.338012 | F7: =H6*$D$5/$E$2 -> 449.2753509 | G7: =G6+E7-B7 -> 182200.2341 | H7: =H6-D7+F7 -> 13665.01756 | I7: =ROUND($I$2/1,0) -> 0 | J7: =SUM(I7:$I$10) -> 0 | K7: =B7 -> 63790.10388 | L7: =D7-C7 -> 4784.257791 | M7: =L7+K7 -> 68574.36167 | N7: =Basic!$C$8+G7+G7*Basic!$C$11+J7-I7 -> 251310.2458 | O7: =ROUND((N7+H7)/1,0) -> 264975 | P7: =G6-G7 -> 57799.76587 | Q7: =H6-H7-C7 -> 4334.98244 | R7: =E7+F7+I7 -> 6439.613363 | S7: =R7+Q7+P7 -> 68574.36167 | T7: =O7 -> 264975 | U7: =B7+D7 -> 68574.36167
A8: 2 | B8: =$C$2 -> 63790.10388 | D8: =C8+$F$2 -> 4784.257791 | E8: =G7*$B$5/$E$2 -> 4547.670785 | F8: =H7*$D$5/$E$2 -> 341.0753088 | G8: =G7+E8-B8 -> 122957.801 | H8: =H7-D8+F8 -> 9221.835078 | I8: =ROUND($I$2/1,0) -> 0 | J8: =SUM(I8:$I$10) -> 0 | K8: =B8 -> 63790.10388 | L8: =D8-C8 -> 4784.257791 | M8: =L8+K8 -> 68574.36167 | N8: =Basic!$C$8+G8+G8*Basic!$C$11+J8-I8 -> 189105.6911 | O8: =ROUND((N8+H8)/1,0) -> 198328 | P8: =G7-G8 -> 59242.43309 | Q8: =H7-H8-C8 -> 4443.182482 | R8: =E8+F8+I8 -> 4888.746093 | S8: =R8+Q8+P8 -> 68574.36167 | T8: =O8 -> 198328 | U8: =B8+D8 -> 68574.36167
A9: 3 | B9: =$C$2 -> 63790.10388 | D9: =C9+$F$2 -> 4784.257791 | E9: =G8*$B$5/$E$2 -> 3068.994956 | F9: =H8*$D$5/$E$2 -> 230.1746217 | G9: =G8+E9-B9 -> 62236.69212 | H9: =H8-D9+F9 -> 4667.751909 | I9: =ROUND($I$2/1,0) -> 0 | J9: =SUM(I9:$I$10) -> 0 | K9: =B9 -> 63790.10388 | L9: =D9-C9 -> 4784.257791 | M9: =L9+K9 -> 68574.36167 | N9: =Basic!$C$8+G9+G9*Basic!$C$11+J9-I9 -> 125348.5267 | O9: =ROUND((N9+H9)/1,0) -> 130016 | P9: =G8-G9 -> 60721.10892 | Q9: =H8-H9-C9 -> 4554.083169 | R9: =E9+F9+I9 -> 3299.169578 | S9: =R9+Q9+P9 -> 68574.36167 | T9: =O9 -> 130016 | U9: =B9+D9 -> 68574.36167
A10: 4 | B10: =$C$2 -> 63790.10388 | D10: =C10+$F$2 -> 4784.257791 | E10: =G9*$B$5/$E$2 -> 1553.411761 | F10: =H9*$D$5/$E$2 -> 116.505882 | G10: =G9+E10-B10 -> 9.458744898e-11 | H10: =H9-D10+F10 -> -5.96855898e-13 | I10: =ROUND($I$2/1,0) -> 0 | J10: =SUM(I10:$I$10) -> 0 | K10: =B10 -> 63790.10388 | L10: =D10-C10 -> 4784.257791 | M10: =L10+K10 -> 68574.36167 | N10: =Basic!$C$8+G10+G10*Basic!$C$11+J10-I10 -> 60000 | O10: =ROUND((N10+H10)/1,0) -> 60000 | P10: =G9-G10 -> 62236.69212 | Q10: =H9-H10-C10 -> 4667.751909 | R10: =E10+F10+I10 -> 1669.917643 | S10: =R10+Q10+P10 -> 68574.36167 | T10: =O10 -> 60000 | U10: =B10+D10 -> 68574.36167
A11: Total | B11: =SUM(B6:B10) -> 15160.41551 | C11: =SUM(C6:C10) -> -18000 | D11: =SUM(D6:D10) -> 1137.031163 | E11: =SUM(E6:E10) -> 15160.41551 | F11: =SUM(F6:F10) -> 1137.031163 | I11: =SUM(I5:I10) -> 0 | K11: =SUM(K6:K10) -> 255160.4155 | L11: =SUM(L6:L10) -> 10137.03116 | M11: =SUM(M6:M10) -> 274297.4467 | P11: =SUM(P7:P10) -> 240000 | Q11: =SUM(Q7:Q10) -> 18000 | R11: =SUM(R7:R10) -> 16297.44668 | S11: =SUM(S7:S10) -> 274297.4467 | U11: =SUM(U6:U10) -> 16297.44668
A21: Explanatory Notes for future
A23: Formula used for rental rounding off inside programe in D coloumn for premium rounding was creating problems. It was temporarily removed.
A24: This can also cause problems for very small rentals or low price formulas.
A25: program for low price items should be separate without rounding off formulas.
A26: Printing problems can be solved by in built macro for page setup or by giving direct command by user to print exact page number.
A27: We can round off the rental directly in Mangenment but the same may not change the effective rate and may involve hiding rates penalty.
C30: Two Years
A31: Req.IRR | B31: Car Rentl | D31: TKFL RNTL | E31: Rntl / Year | G31: Data for Errors
A32: =Basic!C12 -> 0.1 | B32: 33476.42014 | C32: =B32 -> 33476.42014 | D32: 4557.715154 | E32: =$E$2 -> 4 | F32: =D32 -> 4557.715154 | G32: =-(B36)/I33 -> 30000 | H32: =(Basic!C22+Basic!C23)/I33 -> 4275 | I32: =ROUND($J$1/$I$33,0) -> 0
A33: ok | B33: ok | C33: ok | D33: ok | E33: ok | F33: ok | G33: ok | H33: ok | I33: =$E$2*2 -> 8
B34: Cash Flow | E34: Profit Included In | G34: RDV | K34: Rental | N34: W/O Ins | O34: With insu
B35: =IRR(B36:B44,0)*E32 -> 0.1001193104 | D35: =IRR(D36:D44,0)*E32 -> 0.1001483088 | E35: Car Rental | F35: TKAFL | G35: RDV | H35: TKAFL | K35: Car Rental | L35: TKAFL | M35: Total | U35: =IRR(U36:U44,0)*$U$2 -> 0.1001214629
A36: 0 | B36: =-(Basic!C10-Basic!C8) -> -240000 | C36: =-Basic!C22 -> -18000 | D36: =C36 -> -18000 | G36: =-B36 -> 240000 | H36: =-D36 -> 18000 | L36: =-Basic!$C$22/2 -> -9000 | P36: Depreciation | Q36: Takaful | R36: Profit | S36: Rental | T36: terminal Value | U36: =B36+D36 -> -258000
A37: 1 | B37: =$C$32 -> 33476.42014 | D37: =C37+$F$32 -> 4557.715154 | E37: =G36*$B$35/$E$32 -> 6007.158623 | F37: =H36*$D$35/$E$32 -> 450.6673896 | G37: =G36+E37-B37 -> 212530.7385 | H37: =H36-D37+F37 -> 13892.95224 | I37: =ROUND($I$32/1,0) -> 0 | J37: =SUM(I37:$I$44) -> 0 | K37: =B37 -> 33476.42014 | L37: =D37-C37 -> 4557.715154 | M37: =L37+K37 -> 38034.13529 | N37: =Basic!$C$8+G37+G37*Basic!$C$11+J37-I37 -> 283157.2754 | O37: =ROUND((N37+H37)/1,0) -> 297050 | P37: =G36-G37 -> 27469.26152 | Q37: =H36-H37-C37 -> 4107.047764 | R37: =E37+F37+I37 -> 6457.826013 | S37: =R37+Q37+P37 -> 38034.13529 | T37: =O37 -> 297050 | U37: =B37+D37 -> 38034.13529
A38: 2 | B38: 33476.42014 | D38: 4557.715154 | E38: 5319.607743 | F38: 347.8389176 | G38: 184373.9261 | H38: 9683.076 | I38: 0 | J38: =SUM(I38:$I$44) -> 0 | K38: 33476.42014 | L38: 4557.715154 | M38: 38034.13529 | N38: =Basic!$C$8+G38+G38*Basic!$C$11+J38-I38 -> 253592.6224 | O38: =ROUND((N38+H38)/1,0) -> 263276 | P38: 28156.8124 | Q38: 4209.876236 | R38: 5667.446661 | S38: 38034.13529 | T38: 263276 | U38: 38034.13529
A39: 3 | B39: 33476.42014 | D39: 4557.715154 | E39: 4614.847583 | F39: 242.4359213 | G39: 155512.3535 | H39: 5367.796767 | I39: 0 | J39: =SUM(I39:$I$44) -> 0 | K39: 33476.42014 | L39: 4557.715154 | M39: 38034.13529 | N39: =Basic!$C$8+G39+G39*Basic!$C$11+J39-I39 -> 223287.9712 | O39: 228656 | P39: 28861.57256 | Q39: 4315.279232 | R39: 4857.283504 | S39: 38034.13529 | T39: 228656 | U39: 38034.13529
A40: 4 | B40: 33476.42014 | C40: =-Basic!C23 -> -16200 | D40: -11642.28485 | E40: 3892.447398 | F40: 134.393942 | G40: 125928.3808 | H40: 17144.47556 | I40: 0 | J40: =SUM(I40:$I$44) -> 0 | K40: 33476.42014 | L40: =D40 -> -11642.28485 | M40: 21834.13529 | N40: =Basic!$C$8+G40+G40*Basic!$C$11+J40-I40 -> 192224.7998 | O40: 209369 | P40: 29583.97274 | Q40: 4423.321212 | R40: 4026.84134 | S40: 38034.13529 | T40: 209369 | U40: 21834.13529
A41: 5 | B41: 33476.42014 | D41: 4557.715154 | E41: 3151.965661 | F41: 429.247558 | G41: 95603.92631 | H41: 13016.00796 | I41: 0 | J41: =SUM(I41:$I$44) -> 0 | K41: 33476.42014 | L41: 4557.715154 | M41: 38034.13529 | N41: =Basic!$C$8+G41+G41*Basic!$C$11+J41-I41 -> 160384.1226 | O41: 173400 | P41: 30324.45448 | Q41: 4128.467596 | R41: 3581.213218 | S41: 38034.13529 | T41: 173400 | U41: 38034.13529
A42: 6 | B42: 33476.42014 | D42: 4557.715154 | E42: 2392.949793 | F42: 325.8827961 | G42: 64520.45596 | H42: 8784.175602 | I42: 0 | J42: =SUM(I42:$I$44) -> 0 | K42: 33476.42014 | L42: 4557.715154 | M42: 38034.13529 | N42: =Basic!$C$8+G42+G42*Basic!$C$11+J42-I42 -> 127746.4788 | O42: 136531 | P42: 31083.47035 | Q42: 4231.832358 | R42: 2718.832589 | S42: 38034.13529 | T42: 136531 | U42: 38034.13529
A43: 7 | B43: 33476.42014 | D43: 4557.715154 | E43: 1614.935889 | F43: 219.9300827 | G43: 32658.97171 | H43: 4446.390531 | I43: 0 | J43: =SUM(I43:$I$44) -> 0 | K43: 33476.42014 | L43: 4557.715154 | M43: 38034.13529 | N43: =Basic!$C$8+G43+G43*Basic!$C$11+J43-I43 -> 94291.92029 | O43: 98738 | P43: 31861.48425 | Q43: 4337.785071 | R43: 1834.865972 | S43: 38034.13529 | T43: 98738 | U43: 38034.13529
A44: 8 | B44: 33476.42014 | D44: 4557.715154 | E44: 817.4484313 | F44: 111.324623 | G44: -1.28056854e-09 | H44: -6.479581316e-10 | I44: 0 | J44: =SUM(I44:$I$44) -> 0 | K44: 33476.42014 | L44: 4557.715154 | M44: 38034.13529 | N44: =Basic!$C$8+G44+G44*Basic!$C$11+J44-I44 -> 60000 | O44: 60000 | P44: 32658.97171 | Q44: 4446.390531 | R44: 928.7730543 | S44: 38034.13529 | T44: 60000 | U44: 38034.13529
A45: Total | B45: =SUM(B36:B44) -> 27811.36112 | C45: =SUM(C36:C44) -> -34200 | D45: =SUM(D36:D44) -> 2261.72123 | E45: =SUM(E36:E44) -> 27811.36112 | F45: =SUM(F36:F44) -> 2261.72123 | I45: =SUM(I37:I44) -> 0 | K45: =SUM(K36:K44) -> 267811.3611 | L45: =SUM(L36:L44) -> 11261.72123 | M45: =SUM(M36:M44) -> 288073.0824 | P45: =SUM(P37:P44) -> 240000 | Q45: =SUM(Q37:Q44) -> 34200 | R45: =SUM(R37:R44) -> 30073.08235 | S45: =SUM(S37:S44) -> 304273.0824 | U45: =SUM(U36:U44) -> 30073.08235
B46: =B45-B36 -> 267811.3611 | D46: =D45-C45 -> 36461.72123 | E46: =E45+F45 -> 30073.08235
C70: Three Years
A71: Req.IRR | B71: Car Rentl | D71: TKFL RNTL | E71: Rntl / Year | G71: Data for Errors
A72: =Basic!C12 -> 0.1 | B72: 23413.48941 | C72: =B72 -> 23413.48941 | D72: 4352.217027 | E72: =$E$2 -> 4 | F72: =D72 -> 4352.217027 | G72: =-(B76)/I73 -> 20000 | H72: =(Basic!$C$22+Basic!$C$23+Basic!$C$24)/I73 -> 4065 | I72: =ROUND($J$1/$I$73,0) -> 0
A73: ok | B73: ok | C73: ok | D73: ok | E73: ok | F73: ok | G73: ok | H73: ok | I73: =$E$2*3 -> 12
B74: Cash Flow | E74: Profit Included In | G74: RDV | K74: Rental | N74: W/O Ins | O74: With insu
B75: =IRR(B76:B88,0)*E72 -> 0.1004680324 | D75: =IRR(D76:D88,0)*E72 -> 0.1000378586 | E75: Car Rental | F75: TKAFL | G75: RDV | H75: TKAFL | K75: Car Rental | L75: TKAFL | M75: Total | U75: =IRR(U76:U88,0)*$U$2 -> 0.1004353202
A76: 0 | B76: =-(Basic!C10-Basic!C8) -> -240000 | C76: =-Basic!C22 -> -18000 | D76: =C76 -> -18000 | G76: =-B76 -> 240000 | H76: =-D76 -> 18000 | L76: =-Basic!$C$22/2 -> -9000 | P76: Depreciation | Q76: Takaful | R76: Profit | S76: Rental | T76: terminal Value | U76: =B76+D76 -> -258000
A77: 1 | B77: =$C$72 -> 23413.48941 | D77: =C77+$F$72 -> 4352.217027 | E77: =G76*$B$75/$E$72 -> 6028.081943 | F77: =H76*$D$75/$E$72 -> 450.1703635 | G77: =G76+E77-B77 -> 222614.5925 | H77: =H76-D77+F77 -> 14097.95334 | I77: =ROUND($I$72/1,0) -> 0 | J77: =SUM(I77:$I$88) -> 0 | K77: =B77 -> 23413.48941 | L77: =D77-C77 -> 4352.217027 | M77: =L77+K77 -> 27765.70643 | N77: =Basic!$C$8+G77+G77*Basic!$C$11+J77-I77 -> 293745.3222 | O77: =ROUND((N77+H77)/1,0) -> 307843 | P77: =G76-G77 -> 17385.40746 | Q77: =H76-H77-C77 -> 3902.046663 | R77: =E77+F77+I77 -> 6478.252306 | S77: =R77+Q77+P77 -> 27765.70643 | T77: =O77 -> 307843 | U77: =B77+D77 -> 27765.70643
A78: 2 | B78: 23413.48941 | D78: 4352.217027 | E78: 5591.412523 | F78: 352.5822654 | G78: 204792.5157 | H78: 10098.31858 | I78: 0 | J78: =SUM(I78:$I$88) -> 0 | K78: 23413.48941 | L78: 4352.217027 | M78: 27765.70643 | N78: =Basic!$C$8+G78+G78*Basic!$C$11+J78-I78 -> 275032.1414 | O78: 285130 | P78: 17822.07688 | Q78: 3999.634761 | R78: 5943.994788 | S78: 27765.70643 | T78: 285130 | U78: 27765.70643
A79: 3 | B79: 23413.48941 | D79: 4352.217027 | E79: 5143.775273 | F79: 252.5535413 | G79: 186522.8015 | H79: 5998.65509 | I79: 0 | J79: =SUM(I79:$I$88) -> 0 | K79: 23413.48941 | L79: 4352.217027 | M79: 27765.70643 | N79: =Basic!$C$8+G79+G79*Basic!$C$11+J79-I79 -> 255848.9416 | O79: 261848 | P79: 18269.71413 | Q79: 4099.663486 | R79: 5396.328815 | S79: 27765.70643 | T79: 261848 | U79: 27765.70643
A80: 4 | B80: 23413.48941 | C80: =-Basic!C23 -> -16200 | D80: -11847.78297 | E80: 4684.894715 | F80: 150.0231523 | G80: 167794.2068 | H80: 17996.46122 | I80: 0 | J80: =SUM(I80:$I$88) -> 0 | K80: 23413.48941 | L80: 4352.217027 | M80: 27765.70643 | N80: =Basic!$C$8+G80+G80*Basic!$C$11+J80-I80 -> 236183.9172 | O80: 254180 | P80: 18728.59469 | Q80: 4202.193875 | R80: 4834.917868 | S80: 27765.70643 | T80: 254180 | U80: 11565.70643
A81: 5 | B81: 23413.48941 | D81: 4352.217027 | E81: 4214.488451 | F81: 450.0818604 | G81: 148595.2059 | H81: 14094.32605 | I81: 0 | J81: =SUM(I81:$I$88) -> 0 | K81: 23413.48941 | L81: 4352.217027 | M81: 27765.70643 | N81: =Basic!$C$8+G81+G81*Basic!$C$11+J81-I81 -> 216024.9662 | O81: 230119 | P81: 19199.00096 | Q81: 3902.135166 | R81: 4664.570311 | S81: 27765.70643 | T81: 230119 | U81: 27765.70643
A82: 6 | B82: 23413.48941 | D82: 4352.217027 | E82: 3732.266989 | F82: 352.4915489 | G82: 128913.9834 | H82: 10094.60057 | I82: 0 | J82: =SUM(I82:$I$88) -> 0 | K82: 23413.48941 | L82: 4352.217027 | M82: 27765.70643 | N82: =Basic!$C$8+G82+G82*Basic!$C$11+J82-I82 -> 195359.6826 | O82: 205454 | P82: 19681.22242 | Q82: 3999.725478 | R82: 4084.758537 | S82: 27765.70643 | T82: 205454 | U82: 27765.70643
A83: 7 | B83: 23413.48941 | D83: 4352.217027 | E83: 3237.933566 | F83: 252.460556 | G83: 108738.4276 | H83: 5994.8441 | I83: 0 | J83: =SUM(I83:$I$88) -> 0 | K83: 23413.48941 | L83: 4352.217027 | M83: 27765.70643 | N83: =Basic!$C$8+G83+G83*Basic!$C$11+J83-I83 -> 174175.349 | O83: 180170 | P83: 20175.55584 | Q83: 4099.756471 | R83: 3490.394122 | S83: 27765.70643 | T83: 180170 | U83: 27765.70643
A84: 8 | B84: 23413.48941 | C84: =-Basic!C24 -> -14580 | D84: -10227.78297 | E84: 2731.183966 | F84: 149.9278415 | G84: 88056.12217 | H84: 16372.55491 | I84: 0 | J84: =SUM(I84:$I$88) -> 0 | K84: 23413.48941 | L84: 4352.217027 | M84: 27765.70643 | N84: =Basic!$C$8+G84+G84*Basic!$C$11+J84-I84 -> 152458.9283 | O84: 168831 | P84: 20682.30544 | Q84: 4202.289185 | R84: 2881.111808 | S84: 27765.70643 | T84: 168831 | U84: 13185.70643
A85: 9 | B85: 23413.48941 | D85: 4352.217027 | E85: 2211.706333 | F85: 409.4688332 | G85: 66854.33909 | H85: 12429.80672 | I85: 0 | J85: =SUM(I85:$I$88) -> 0 | K85: 23413.48941 | L85: 4352.217027 | M85: 27765.70643 | N85: =Basic!$C$8+G85+G85*Basic!$C$11+J85-I85 -> 130197.056 | O85: 142627 | P85: 21201.78307 | Q85: 3942.748194 | R85: 2621.175166 | S85: 27765.70643 | T85: 142627 | U85: 27765.70643
A86: 10 | B86: 23413.48941 | D86: 4352.217027 | E86: 1679.180976 | F86: 310.8628116 | G86: 45120.03066 | H86: 8388.452506 | I86: 0 | J86: =SUM(I86:$I$88) -> 0 | K86: 23413.48941 | L86: 4352.217027 | M86: 27765.70643 | N86: =Basic!$C$8+G86+G86*Basic!$C$11+J86-I86 -> 107376.0322 | O86: 115764 | P86: 21734.30843 | Q86: 4041.354215 | R86: 1990.043788 | S86: 27765.70643 | T86: 115764 | U86: 27765.70643
A87: 11 | B87: 23413.48941 | D87: 4352.217027 | E87: 1133.280175 | F87: 209.7907063 | G87: 22839.82143 | H87: 4246.026185 | I87: 0 | J87: =SUM(I87:$I$88) -> 0 | K87: 23413.48941 | L87: 4352.217027 | M87: 27765.70643 | N87: =Basic!$C$8+G87+G87*Basic!$C$11+J87-I87 -> 83981.8125 | O87: 88228 | P87: 22280.20923 | Q87: =H86-H87-C87 -> 4142.426321 | R87: 1343.070882 | S87: 27765.70643 | T87: 88228 | U87: 27765.70643
A88: 12 | B88: 23413.48941 | D88: 4352.217027 | E88: 573.6679797 | F88: 106.1908417 | G88: -1.008120307e-07 | H88: -7.843409833e-08 | I88: 0 | J88: =SUM(I88:$I$88) -> 0 | K88: 23413.48941 | L88: =D88-C80 -> 20552.21703 | M88: 43965.70643 | N88: =Basic!$C$8+G88+G88*Basic!$C$11+J88-I88 -> 60000 | O88: 60000 | P88: 22839.82143 | Q88: =H87-H88-C88 -> 4246.026185 | R88: 679.8588214 | S88: 27765.70643 | T88: 60000 | U88: 27765.70643
A89: Total | B89: =SUM(B76:B88) -> 40961.87289 | C89: =SUM(C76:C88) -> -48780 | D89: =SUM(D76:D88) -> 3446.604322 | E89: =SUM(E76:E88) -> 40961.87289 | F89: =SUM(F76:F88) -> 3446.604322 | I89: =SUM(I77:I88) -> 0 | K89: =SUM(K76:K88) -> 280961.8729 | L89: =SUM(L76:L88) -> 59426.60432 | M89: =SUM(M76:M88) -> 349388.4772 | P89: =SUM(P77:P88) -> 240000 | Q89: =SUM(Q77:Q88) -> 48780 | R89: =SUM(R77:R88) -> 44408.47721 | S89: =SUM(S77:S88) -> 333188.4772 | U89: =SUM(U76:U88) -> 44408.47721
B90: =B89-B76 -> 280961.8729 | D90: =D89-C89 -> 52226.60432 | E90: =E89+F89 -> 44408.47721
M115: Error
C120: Four Years
A121: Req.IRR | B121: Car Rentl | D121: TKFL RNTL | E121: Rntl / Year | G121: Data for Errors
A122: =Basic!C12 -> 0.1 | B122: 18407.7104 | C122: =B122 -> 18407.7104 | D122: 4166.990232 | E122: =$E$2 -> 4 | F122: =D122 -> 4166.990232 | G122: =-(B126)/I123 -> 15000 | H122: =(Basic!$C$22+Basic!$C$23+Basic!$C$24+Basic!$C$25)/I123 -> 3868.75 | I122: =ROUND($J$1/$I$123,0) -> 0
A123: ok | B123: ok | C123: ok | D123: ok | E123: ok | F123: ok | G123: ok | H123: ok | I123: =$E$2*4 -> 16
B124: Cash Flow | E124: Profit Included In | G124: RDV | K124: Rental | N124: W/O Ins | O124: With insu
B125: =IRR(B126:B142,0)*E122 -> 0.1006694804 | D125: =IRR(D126:D142,0)*E122 -> 0.1000436696 | E125: Car Rental | F125: TKAFL | G125: RDV | H125: TKAFL | K125: Car Rental | L125: TKAFL | M125: Total | U125: =IRR(U126:U142,0)*$U$2 -> 0.1006205655
A126: 0 | B126: =-(Basic!C10-Basic!C8) -> -240000 | C126: =-Basic!C22 -> -18000 | D126: =C126 -> -18000 | G126: =-B126 -> 240000 | H126: =-D126 -> 18000 | L126: =-Basic!$C$22/2 -> -9000 | P126: Depreciation | Q126: Takaful | R126: Profit | S126: Rental | T126: terminal Value | U126: =B126+D126 -> -258000
A127: 1 | B127: =$C$122 -> 18407.7104 | D127: =C127+$F$122 -> 4166.990232 | E127: =G126*$B$125/$E$122 -> 6040.168824 | F127: =H126*$D$125/$E$122 -> 450.1965134 | G127: =G126+E127-B127 -> 227632.4584 | H127: =H126-D127+F127 -> 14283.20628 | I127: =ROUND($I$122/1,0) -> 0 | J127: =SUM(I127:$I$142) -> 0 | K127: =B127 -> 18407.7104 | L127: =D127-C127 -> 4166.990232 | M127: =L127+K127 -> 22574.70063 | N127: =Basic!$C$8+G127+G127*Basic!$C$11+J127-I127 -> 299014.0813 | O127: =ROUND((N127+H127)/1,0) -> 313297 | P127: =G126-G127 -> 12367.54157 | Q127: =H126-H127-C127 -> 3716.793718 | R127: =E127+F127+I127 -> 6490.365338 | S127: =R127+Q127+P127 -> 22574.70063 | T127: =O127 -> 313297 | U127: =B127+D127 -> 22574.70063
A128: 2 | B128: 18407.7104 | D128: 4166.990232 | E128: 5728.910328 | F128: 357.2360927 | G128: 214953.6584 | H128: 10473.45214 | I128: 0 | J128: =SUM(I128:$I$142) -> 0 | K128: 18407.7104 | L128: 4166.990232 | M128: 22574.70063 | N128: =Basic!$C$8+G128+G128*Basic!$C$11+J128-I128 -> 285701.3413 | O128: 296175 | P128: 12678.80007 | Q128: 3809.754139 | R128: 6086.146421 | S128: 22574.70063 | T128: 296175 | U128: 22574.70063
A129: 3 | B129: 18407.7104 | D129: 4166.990232 | E129: 5409.818275 | F129: 261.9506466 | G129: 201955.7662 | H129: 6568.412557 | I129: 0 | J129: =SUM(I129:$I$142) -> 0 | K129: 18407.7104 | L129: 4166.990232 | M129: 22574.70063 | N129: =Basic!$C$8+G129+G129*Basic!$C$11+J129-I129 -> 272053.5546 | O129: 278622 | P129: 12997.89212 | Q129: 3905.039585 | R129: 5671.768921 | S129: 22574.70063 | T129: 278622 | U129: 22574.70063
A130: 4 | B130: 18407.7104 | C130: =-Basic!C23 -> -16200 | D130: -12033.00977 | E130: 5082.695513 | F130: 164.282024 | G130: 188630.7514 | H130: 18765.70435 | I130: 0 | J130: =SUM(I130:$I$142) -> 0 | K130: 18407.7104 | L130: 4166.990232 | M130: 22574.70063 | N130: =Basic!$C$8+G130+G130*Basic!$C$11+J130-I130 -> 258062.2889 | O130: 276828 | P130: 13325.01488 | Q130: 4002.708208 | R130: 5246.977537 | S130: 22574.70063 | T130: 276828 | U130: 6374.700628
A131: 5 | B131: 18407.7104 | D131: 4166.990232 | E131: 4747.339932 | F131: 469.3474817 | G131: 174970.3809 | H131: 15068.0616 | I131: 0 | J131: =SUM(I131:$I$142) -> 0 | K131: 18407.7104 | L131: 4166.990232 | M131: 22574.70063 | N131: =Basic!$C$8+G131+G131*Basic!$C$11+J131-I131 -> 243718.8999 | O131: 258787 | P131: 13660.37046 | Q131: 3697.64275 | R131: 5216.687414 | S131: 22574.70063 | T131: 258787 | U131: 22574.70063
A132: 6 | B132: 18407.7104 | D132: 4166.990232 | E132: 4403.544333 | F132: 376.8660442 | G132: 160966.2148 | H132: 11277.93741 | I132: 0 | J132: =SUM(I132:$I$142) -> 0 | K132: 18407.7104 | L132: 4166.990232 | M132: 22574.70063 | N132: =Basic!$C$8+G132+G132*Basic!$C$11+J132-I132 -> 229014.5256 | O132: 240292 | P132: 14004.16606 | Q132: 3790.124188 | R132: 4780.410377 | S132: 22574.70063 | T132: 240292 | U132: 22574.70063
A133: 7 | B133: 18407.7104 | D133: 4166.990232 | E133: 4051.096303 | F133: 282.0715612 | G133: 146609.6007 | H133: 7393.018741 | I133: 0 | J133: =SUM(I133:$I$142) -> 0 | K133: 18407.7104 | L133: 4166.990232 | M133: 22574.70063 | N133: =Basic!$C$8+G133+G133*Basic!$C$11+J133-I133 -> 213940.0808 | O133: 221333 | P133: 14356.61409 | Q133: 3884.918671 | R133: 4333.167864 | S133: 22574.70063 | T133: 221333 | U133: 22574.70063
A134: 8 | B134: 18407.7104 | C134: =-Basic!C24 -> -14580 | D134: -10413.00977 | E134: 3689.778082 | F134: 184.9061812 | G134: 131891.6684 | H134: 17990.93469 | I134: 0 | J134: =SUM(I134:$I$142) -> 0 | K134: 18407.7104 | L134: 4166.990232 | M134: 22574.70063 | N134: =Basic!$C$8+G134+G134*Basic!$C$11+J134-I134 -> 198486.2518 | O134: 216477 | P134: 14717.93231 | Q134: 3982.084051 | R134: 3874.684263 | S134: 22574.70063 | T134: 216477 | U134: 7994.700628
A135: 9 | B135: 18407.7104 | D135: 4166.990232 | E135: 3319.366433 | F135: 449.9697817 | G135: 116803.3245 | H135: 14273.91424 | I135: 0 | J135: =SUM(I135:$I$142) -> 0 | K135: 18407.7104 | L135: 4166.990232 | M135: 22574.70063 | N135: =Basic!$C$8+G135+G135*Basic!$C$11+J135-I135 -> 182643.4907 | O135: 196917 | P135: 15088.34396 | Q135: 3717.02045 | R135: 3769.336214 | S135: 22574.70063 | T135: 196917 | U135: 22574.70063
A136: 10 | B136: 18407.7104 | D136: 4166.990232 | E136: 2939.632496 | F136: 357.0036902 | G136: 101335.2466 | H136: 10463.9277 | I136: 0 | J136: =SUM(I136:$I$142) -> 0 | K136: 18407.7104 | L136: 4166.990232 | M136: 22574.70063 | N136: =Basic!$C$8+G136+G136*Basic!$C$11+J136-I136 -> 166402.0089 | O136: 176866 | P136: 15468.0779 | Q136: 3809.986542 | R136: 3296.636186 | S136: 22574.70063 | T136: 176866 | U136: 22574.70063
A137: 11 | B137: 18407.7104 | D137: 4166.990232 | E137: 2550.341655 | F137: 261.7124315 | G137: 85477.87782 | H137: 6558.649898 | I137: 0 | J137: =SUM(I137:$I$142) -> 0 | K137: 18407.7104 | L137: 4166.990232 | M137: 22574.70063 | N137: =Basic!$C$8+G137+G137*Basic!$C$11+J137-I137 -> 149751.7717 | O137: 156310 | P137: 15857.36874 | Q137: 3905.2778 | R137: 2812.054086 | S137: 22574.70063 | T137: 156310 | U137: 22574.70063
A138: 12 | B138: 18407.7104 | C138: =-Basic!C25 -> -13120 | D138: -8953.009768 | E138: 2151.253387 | F138: 164.0378509 | G138: 69221.42081 | H138: 15675.69752 | I138: 0 | J138: =SUM(I138:$I$142) -> 0 | K138: 18407.7104 | L138: =D138-C130 -> 7246.990232 | M138: 25654.70063 | N138: =Basic!$C$8+G138+G138*Basic!$C$11+J138-I138 -> 132682.4918 | O138: 148358 | P138: 16256.45701 | Q138: =H137-H138-C130 -> 7082.952381 | R138: 2315.291238 | S138: 25654.70063 | T138: 148358 | U138: 9454.700628
A139: 13 | B139: 18407.7104 | D139: 4166.990232 | E139: 1742.121116 | F139: 392.063576 | G139: 52555.83153 | H139: 11900.77086 | I139: 0 | J139: =SUM(I139:$I$142) -> 0 | K139: 18407.7104 | L139: 4166.990232 | M139: 22574.70063 | N139: =Basic!$C$8+G139+G139*Basic!$C$11+J139-I139 -> 115183.6231 | O139: 127084 | P139: 16665.58928 | Q139: 3774.926656 | R139: 2134.184692 | S139: 22574.70063 | T139: 127084 | U139: 22574.70063
A140: 14 | B140: 18407.7104 | D140: 4166.990232 | E140: 1322.692063 | F140: 297.6491972 | G140: 35470.8132 | H140: 8031.429827 | I140: 0 | J140: =SUM(I140:$I$142) -> 0 | K140: 18407.7104 | L140: 4166.990232 | M140: 22574.70063 | N140: =Basic!$C$8+G140+G140*Basic!$C$11+J140-I140 -> 97244.35386 | O140: 105276 | P140: 17085.01833 | Q140: 3869.341035 | R140: 1620.34126 | S140: 22574.70063 | T140: 105276 | U140: 22574.70063
A141: 15 | B141: 18407.7104 | D141: 4166.990232 | E141: 892.7070835 | F141: 200.8734281 | G141: 17955.80988 | H141: 4065.313024 | I141: 0 | J141: =SUM(I141:$I$142) -> 0 | K141: 18407.7104 | L141: 4166.990232 | M141: 22574.70063 | N141: =Basic!$C$8+G141+G141*Basic!$C$11+J141-I141 -> 78853.60038 | O141: 82919 | P141: 17515.00331 | Q141: 3966.116804 | R141: 1093.580512 | S141: 22574.70063 | T141: 82919 | U141: 22574.70063
A142: 16 | B142: 18407.7104 | D142: 4166.990232 | E142: 451.9005128 | F142: 101.6772083 | G142: 5.456968211e-11 | H142: 1.008970685e-12 | I142: 0 | J142: =SUM(I142:$I$142) -> 0 | K142: 18407.7104 | L142: 4166.990232 | M142: 22574.70063 | N142: =Basic!$C$8+G142+G142*Basic!$C$11+J142-I142 -> 60000 | O142: 60000 | P142: 17955.80988 | Q142: 4065.313024 | R142: 553.5777211 | S142: 22574.70063 | T142: 60000 | U142: 22574.70063
A143: Total | B143: =SUM(B126:B142) -> 54523.36634 | C143: =SUM(C126:C142) -> -61900 | D143: =SUM(D126:D142) -> 4771.843709 | E143: =SUM(E126:E142) -> 54523.36634 | F143: =SUM(F126:F142) -> 4771.843709 | I143: =SUM(I127:I142) -> 0 | K143: =SUM(K126:K142) -> 294523.3663 | L143: =SUM(L126:L142) -> 60751.84371 | M143: =SUM(M126:M142) -> 364275.21 | P143: =SUM(P127:P142) -> 240000 | Q143: =SUM(Q127:Q142) -> 64980 | R143: =SUM(R127:R142) -> 59295.21004 | S143: =SUM(S127:S142) -> 364275.21 | U143: =SUM(U126:U142) -> 59295.21004
B144: =B143-B126 -> 294523.3663 | D144: =D143-C143 -> 66671.84371 | E144: =E143+F143 -> 59295.21004
M177: Error
C179: Five Years
A180: Req.IRR | B180: Car Rentl | D180: TKFL RNTL | E180: Rntl / Year | G180: Data for Errors
A181: =Basic!C12 -> 0.1 | B181: 15399.32178 | C181: =B181 -> 15399.32178 | D181: 4000.251995 | E181: =$E$2 -> 4 | F181: =D181 -> 4000.251995 | G181: =-(B185)/I183 -> 12000 | H181: =(Basic!$C$22+Basic!$C$23+Basic!$C$24+Basic!$C$25+Basic!$C$26)/I183 -> 3685.5 | I181: =ROUND($J$1/$I$183,0) -> 0
A182: ok | B182: ok | C182: ok | D182: ok | E182: ok | F182: ok | G182: ok | H182: ok
B183: Cash Flow | E183: Profit Included In | G183: RDV | I183: =$E$2*5 -> 20 | K183: Rental | N183: W/O Ins | O183: With insu
B184: =IRR(B185:B205,0)*E181 -> 0.1001103129 | D184: =IRR(D185:D205,0)*E181 -> 0.100134606 | E184: Car Rental | F184: TKAFL | G184: RDV | H184: TKAFL | K184: Car Rental | L184: TKAFL | M184: Total | U184: =IRR(U185:U205,0)*$U$2 -> 0.1001122816
A185: 0 | B185: =-(Basic!C10-Basic!C8) -> -240000 | C185: =-Basic!C22 -> -18000 | D185: =C185 -> -18000 | G185: =-B185 -> 240000 | H185: =-D185 -> 18000 | L185: =-Basic!$C$22/2 -> -9000 | P185: Depreciation | Q185: Takaful | R185: Profit | S185: Rental | T185: terminal Value | U185: =B185+D185 -> -258000
A186: 1 | B186: =$C$181 -> 15399.32178 | D186: =C186+$F$181 -> 4000.251995 | E186: =G185*$B$184/$E$181 -> 6006.618773 | F186: =H185*$D$184/$E$181 -> 450.6057271 | G186: =G185+E186-B186 -> 230607.297 | H186: =H185-D186+F186 -> 14450.35373 | I186: =ROUND($I$181/1,0) -> 0 | J186: =SUM(I186:$I$205) -> 0 | K186: =B186 -> 15399.32178 | L186: =D186-C186 -> 4000.251995 | M186: =L186+K186 -> 19399.57378 | N186: =Basic!$C$8+G186+G186*Basic!$C$11+J186-I186 -> 302137.6618 | O186: =ROUND((N186+H186)/1,0) -> 316588 | P186: =G185-G186 -> 9392.703007 | Q186: =H185-H186-C186 -> 3549.646268 | R186: =E186+F186+I186 -> 6457.224501 | S186: =R186+Q186+P186 -> 19399.57378 | T186: =O186 -> 316588 | U186: =B186+D186 -> 19399.57378
A187: 2 | B187: 15399.32178 | D187: 4000.251995 | E187: 5771.542164 | F187: 361.7451195 | G187: 220979.5174 | H187: 10811.84686 | I187: 0 | J187: =SUM(I187:$I$205) -> 0 | K187: 15399.32178 | L187: 4000.251995 | M187: 19399.57378 | N187: =Basic!$C$8+G187+G187*Basic!$C$11+J187-I187 -> 292028.4932 | O187: 302840 | P187: 9627.779617 | Q187: 3638.506876 | R187: 6133.287284 | S187: 19399.57378 | T187: 302840 | U187: 19399.57378
A188: 3 | B188: 15399.32178 | D188: 4000.251995 | E188: 5530.582157 | F188: 270.6600063 | G188: 211110.7778 | H188: 7082.254867 | I188: 0 | J188: =SUM(I188:$I$205) -> 0 | K188: 15399.32178 | L188: 4000.251995 | M188: 19399.57378 | N188: =Basic!$C$8+G188+G188*Basic!$C$11+J188-I188 -> 281666.3166 | O188: 288749 | P188: 9868.739624 | Q188: 3729.591989 | R188: 5801.242163 | S188: 19399.57378 | T188: 288749 | U188: 19399.57378
A189: 4 | B189: 15399.32178 | C189: =-Basic!C23 -> -16200 | D189: -12199.748 | E189: 5283.591504 | F189: 177.2947002 | G189: 200995.0475 | H189: 19459.29757 | I189: 0 | J189: =SUM(I189:$I$205) -> 0 | K189: 15399.32178 | L189: 4000.251995 | M189: 19399.57378 | N189: =Basic!$C$8+G189+G189*Basic!$C$11+J189-I189 -> 271044.7998 | O189: 290504 | P189: 10115.73028 | Q189: 3822.957295 | R189: 5460.886204 | S189: 19399.57378 | T189: 290504 | U189: 3199.573776
A190: 5 | B190: 15399.32178 | D190: 4000.251995 | E190: 5030.419273 | F190: 487.137274 | G190: 190626.145 | H190: 15946.18285 | I190: 0 | J190: =SUM(I190:$I$205) -> 0 | K190: 15399.32178 | L190: 4000.251995 | M190: 19399.57378 | N190: =Basic!$C$8+G190+G190*Basic!$C$11+J190-I190 -> 260157.4522 | O190: 276104 | P190: 10368.90251 | Q190: 3513.114721 | R190: 5517.556547 | S190: 19399.57378 | T190: 276104 | U190: 19399.57378
A191: 6 | B191: 15399.32178 | D191: 4000.251995 | E191: 4770.910754 | F191: 399.1911843 | G191: 179997.7339 | H191: 12345.12204 | I191: 0 | J191: =SUM(I191:$I$205) -> 0 | K191: 15399.32178 | L191: 4000.251995 | M191: 19399.57378 | N191: =Basic!$C$8+G191+G191*Basic!$C$11+J191-I191 -> 248997.6206 | O191: 261343 | P191: 10628.41103 | Q191: 3601.060811 | R191: 5170.101939 | S191: 19399.57378 | T191: 261343 | U191: 19399.57378
A192: 7 | B192: 15399.32178 | D192: 4000.251995 | E192: 4504.907366 | F192: 309.0434829 | G192: 169103.3195 | H192: 8653.913527 | I192: 0 | J192: =SUM(I192:$I$205) -> 0 | K192: 15399.32178 | L192: 4000.251995 | M192: 19399.57378 | N192: =Basic!$C$8+G192+G192*Basic!$C$11+J192-I192 -> 237558.4855 | O192: 246212 | P192: 10894.41441 | Q192: 3691.208512 | R192: 4813.950849 | S192: 19399.57378 | T192: 246212 | U192: 19399.57378
A193: 8 | B193: 15399.32178 | C193: =-Basic!C24 -> -14580 | D193: -10579.748 | E193: 4232.246557 | F193: 216.6390554 | G193: 157936.2443 | H193: 19450.30059 | I193: 0 | J193: =SUM(I193:$I$205) -> 0 | K193: 15399.32178 | L193: 4000.251995 | M193: 19399.57378 | N193: =Basic!$C$8+G193+G193*Basic!$C$11+J193-I193 -> 225833.0565 | O193: 245283 | P193: 11167.07522 | Q193: 3783.61294 | R193: 4448.885613 | S193: 19399.57378 | T193: 245283 | U193: 4819.573776
A194: 9 | B194: 15399.32178 | D194: 4000.251995 | E194: 3952.761708 | F194: 486.9120466 | G194: 146489.6842 | H194: 15936.96064 | I194: 0 | J194: =SUM(I194:$I$205) -> 0 | K194: 15399.32178 | L194: 4000.251995 | M194: 19399.57378 | N194: =Basic!$C$8+G194+G194*Basic!$C$11+J194-I194 -> 213814.1684 | O194: 229751 | P194: 11446.56007 | Q194: 3513.339949 | R194: 4439.673755 | S194: 19399.57378 | T194: 229751 | U194: 19399.57378
A195: 10 | B195: 15399.32178 | D195: 4000.251995 | E195: 3666.282031 | F195: 398.9603187 | G195: 134756.6445 | H195: 12335.66896 | I195: 0 | J195: =SUM(I195:$I$205) -> 0 | K195: 15399.32178 | L195: 4000.251995 | M195: 19399.57378 | N195: =Basic!$C$8+G195+G195*Basic!$C$11+J195-I195 -> 201494.4767 | O195: 213830 | P195: 11733.03975 | Q195: 3601.291677 | R195: 4065.24235 | S195: 19399.57378 | T195: 213830 | U195: 19399.57378
A196: 11 | B196: 15399.32178 | D196: 4000.251995 | E196: 3372.632461 | F196: 308.8068379 | G196: 122729.9552 | H196: 8644.223804 | I196: 0 | J196: =SUM(I196:$I$205) -> 0 | K196: 15399.32178 | L196: 4000.251995 | M196: 19399.57378 | N196: =Basic!$C$8+G196+G196*Basic!$C$11+J196-I196 -> 188866.4529 | O196: 197511 | P196: 12026.68932 | Q196: 3691.445157 | R196: 3681.439299 | S196: 19399.57378 | T196: 197511 | U196: 19399.57378
A197: 12 | B197: 15399.32178 | C197: =-Basic!C25 -> -13120 | D197: -9119.748005 | E197: 3071.633553 | F197: 216.3964863 | G197: 110402.2669 | H197: 17980.3683 | I197: 0 | J197: =SUM(I197:$I$205) -> 0 | K197: 15399.32178 | L197: 4000.251995 | M197: 19399.57378 | N197: =Basic!$C$8+G197+G197*Basic!$C$11+J197-I197 -> 175922.3803 | O197: 193903 | P197: 12327.68823 | Q197: 3783.855509 | R197: 3288.030039 | S197: 19399.57378 | T197: 193903 | U197: 6279.573776
A198: 13 | B198: 15399.32178 | D198: 4000.251995 | E198: 2763.101372 | F198: 450.1142739 | G198: 97766.04652 | H198: 14430.23057 | I198: 0 | J198: =SUM(I198:$I$205) -> 0 | K198: 15399.32178 | L198: 4000.251995 | M198: 19399.57378 | N198: =Basic!$C$8+G198+G198*Basic!$C$11+J198-I198 -> 162654.3488 | O198: 177085 | P198: 12636.22041 | Q198: 3550.137721 | R198: 3213.215645 | S198: 19399.57378 | T198: 177085 | U198: 19399.57378
A199: 14 | B199: 15399.32178 | D199: 4000.251995 | E199: 2446.847377 | F199: 361.2413634 | G199: 84813.57212 | H199: 10791.21994 | I199: 0 | J199: =SUM(I199:$I$205) -> 0 | K199: 15399.32178 | L199: 4000.251995 | M199: 19399.57378 | N199: =Basic!$C$8+G199+G199*Basic!$C$11+J199-I199 -> 149054.2507 | O199: 159845 | P199: 12952.4744 | Q199: 3639.010632 | R199: 2808.08874 | S199: 19399.57378 | T199: 159845 | U199: 19399.57378
A200: 15 | B200: 15399.32178 | D200: 4000.251995 | E200: 2122.678311 | F200: 270.1436394 | G200: 71536.92865 | H200: 7061.111586 | I200: 0 | J200: =SUM(I200:$I$205) -> 0 | K200: 15399.32178 | L200: 4000.251995 | M200: 19399.57378 | N200: =Basic!$C$8+G200+G200*Basic!$C$11+J200-I200 -> 135113.7751 | O200: 142175 | P200: 13276.64347 | Q200: 3730.108356 | R200: 2392.82195 | S200: 19399.57378 | T200: 142175 | U200: 19399.57378
A201: 16 | B201: 15399.32178 | C201: =-Basic!C26 -> -11810 | D201: -7809.748005 | E201: 1790.396078 | F201: 176.7654067 | G201: 57928.00294 | H201: 15047.625 | I201: 0 | J201: =SUM(I201:$I$205) -> 0 | K201: 15399.32178 | L201: 4000.251995 | M201: 19399.57378 | N201: =Basic!$C$8+G201+G201*Basic!$C$11+J201-I201 -> 120824.4031 | O201: 135872 | P201: 13608.9257 | Q201: 3823.486589 | R201: 1967.161484 | S201: 19399.57378 | T201: 135872 | U201: 7589.573776
A202: 17 | B202: 15399.32178 | D202: 4000.251995 | E202: 1449.797625 | F202: 376.6970002 | G202: 43978.47879 | H202: 11424.07 | I202: 0 | J202: =SUM(I202:$I$205) -> 0 | K202: 15399.32178 | L202: 4000.251995 | M202: 19399.57378 | N202: =Basic!$C$8+G202+G202*Basic!$C$11+J202-I202 -> 106177.4027 | O202: 117601 | P202: 13949.52416 | Q202: 3623.554995 | R202: 1826.494625 | S202: 19399.57378 | T202: 117601 | U202: 19399.57378
A203: 18 | B203: 15399.32178 | D203: 4000.251995 | E203: 1100.674818 | F203: 285.9861872 | G203: 29679.83182 | H203: 7709.804194 | I203: 0 | J203: =SUM(I203:$I$205) -> 0 | K203: 15399.32178 | L203: 4000.251995 | M203: 19399.57378 | N203: =Basic!$C$8+G203+G203*Basic!$C$11+J203-I203 -> 91163.82342 | O203: 98874 | P203: 14298.64696 | Q203: 3714.265808 | R203: 1386.661005 | S203: 19399.57378 | T203: 98874 | U203: 19399.57378
A204: 19 | B204: 15399.32178 | D204: 4000.251995 | E204: 742.8143126 | F204: 193.0045514 | G204: 15023.32436 | H204: 3902.55675 | I204: 0 | J204: =SUM(I204:$I$205) -> 0 | K204: 15399.32178 | L204: 4000.251995 | M204: 19399.57378 | N204: =Basic!$C$8+G204+G204*Basic!$C$11+J204-I204 -> 75774.49057 | O204: 79677 | P204: 14656.50747 | Q204: 3807.247444 | R204: 935.818864 | S204: 19399.57378 | T204: 79677 | U204: 19399.57378
A205: 20 | B205: 15399.32178 | D205: 4000.251995 | E205: 375.9974255 | F205: 97.69524566 | G205: 1.309672371e-10 | H205: -6.406253306e-11 | I205: 0 | J205: =SUM(I205:$I$205) -> 0 | K205: 15399.32178 | L205: 4000.251995 | M205: 19399.57378 | N205: =Basic!$C$8+G205+G205*Basic!$C$11+J205-I205 -> 60000 | O205: 60000 | P205: 15023.32436 | Q205: 3902.55675 | R205: 473.6926711 | S205: 19399.57378 | T205: 60000 | U205: 19399.57378
A206: Total | B206: =SUM(B185:B205) -> 67986.43562 | C206: =SUM(C185:C205) -> -73710 | D206: =SUM(D185:D205) -> 6295.039907 | E206: =SUM(E185:E205) -> 67986.43562 | F206: =SUM(F185:F205) -> 6295.039907 | I206: =SUM(I186:I205) -> 0 | K206: =SUM(K185:K205) -> 307986.4356 | L206: =SUM(L185:L205) -> 71005.03991 | M206: =SUM(M185:M205) -> 387991.4755 | P206: =SUM(P186:P205) -> 240000 | Q206: =SUM(Q186:Q205) -> 73710 | R206: =SUM(R186:R205) -> 74281.47553 | S206: =SUM(S186:S205) -> 387991.4755 | U206: =SUM(U185:U205) -> 74281.47553
B207: =B206-B185 -> 307986.4356 | D207: =D206-C206 -> 80005.03991 | E207: =E206+F206 -> 74281.47553
M208: Error

Sheet Yhy
A1: Req.IRR | B1: Car Rentl | D1: TKFL RNTL | E1: Rntl / Year | G1: Data for Errors | I1: Total Aditionl | J1: =Basic!C15 -> 0
A2: =Basic!C12 -> 0.1 | B2: 129074.8062 | C2: =B2 -> 129074.8062 | D2: 9680.610463 | E2: 2 | F2: =D2 -> 9680.610463 | G2: =-(B6/E2)*1.3 -> 156000 | H2: =Basic!C22/I4 -> 9000 | I2: =ROUND($J$1/$I$4,0) -> 0 | U2: =E2 -> 2
A3: ok | B3: ok | C3: ok | D3: ok | E3: ok | F3: ok | G3: ok | H3: ok
B4: Cash Flow | E4: Profit Included In | G4: RDV | I4: =E2 -> 2 | K4: Rental | N4: W/O Ins | O4: With insu | P4: Depreciation | Q4: Takaful | R4: Profit | S4: Rental | T4: terminal Value
B5: =IRR(B6:B8,0)*E2 -> 0.1000178843 | D5: =IRR(D6:D8,0)*E2 -> 0.1000178843 | E5: Car Rental | F5: TKAFL | G5: RDV | H5: TKAFL | I5: Booking Period Profit | K5: Car Rental | L5: TKAFL | M5: Total | N5: Termination value | U5: =IRR(U6:U8,0)*$U$2 -> 0.1000178843
A6: 0 | B6: =-(Basic!C10-Basic!C8) -> -240000 | C6: =-Basic!C22 -> -18000 | D6: =C6 -> -18000 | G6: =-B6 -> 240000 | H6: =-D6 -> 18000 | L6: =-Basic!$C$22/2 -> -9000 | U6: =B6+D6 -> -258000
A7: 1 | B7: =$B$2 -> 129074.8062 | D7: =C7+$F$2 -> 9680.610463 | E7: =G6*$B$5/$E$2 -> 12002.14612 | F7: =H6*$D$5/$E$2 -> 900.160959 | G7: =G6+E7-B7 -> 122927.3399 | H7: =H6-D7+F7 -> 9219.550496 | I7: =ROUND($I$2/1,0) -> 0 | J7: =SUM(I7:$I$8) -> 0 | K7: =B7 -> 129074.8062 | L7: =D7-C7 -> 9680.610463 | M7: =L7+K7 -> 138755.4166 | N7: =Basic!$C$8+G7+G7*Basic!$C$11+J7-I7 -> 189073.7069 | O7: =ROUND((N7+H7)/1,0) -> 198293 | P7: =G6-G7 -> 117072.6601 | Q7: =H6-H7-C7 -> 8780.449504 | R7: =E7+F7+I7 -> 12902.30708 | S7: =R7+Q7+P7 -> 138755.4166 | T7: =O7 -> 198293 | U7: =B7+D7 -> 138755.4166
A8: 2 | B8: =$B$2 -> 129074.8062 | D8: =C8+$F$2 -> 9680.610463 | E8: =G7*$B$5/$E$2 -> 6147.466234 | F8: =H7*$D$5/$E$2 -> 461.0599675 | G8: =G7+E8-B8 -> 0 | H8: =H7-D8+F8 -> -5.00222086e-12 | I8: =ROUND($I$2/1,0) -> 0 | J8: =SUM(I8:$I$8) -> 0 | K8: =B8 -> 129074.8062 | L8: =D8-C8 -> 9680.610463 | M8: =L8+K8 -> 138755.4166 | N8: =Basic!$C$8+G8+G8*Basic!$C$11+J8-I8 -> 60000 | O8: =ROUND((N8+H8)/1,0) -> 60000 | P8: =G7-G8 -> 122927.3399 | Q8: =H7-H8-C8 -> 9219.550496 | R8: =E8+F8+I8 -> 6608.526201 | S8: =R8+Q8+P8 -> 138755.4166 | T8: =O8 -> 60000 | U8: =B8+D8 -> 138755.4166
A9: Total | B9: =SUM(B6:B8) -> 18149.61235 | C9: =SUM(C6:C8) -> -18000 | D9: =SUM(D6:D8) -> 1361.220926 | E9: =SUM(E6:E8) -> 18149.61235 | F9: =SUM(F6:F8) -> 1361.220926 | I9: =SUM(I5:I8) -> 0 | K9: =SUM(K6:K8) -> 258149.6124 | L9: =SUM(L6:L8) -> 10361.22093 | M9: =SUM(M6:M8) -> 277510.8333 | P9: =SUM(P7:P8) -> 240000 | Q9: =SUM(Q7:Q8) -> 18000 | R9: =SUM(R7:R8) -> 19510.83328 | S9: =SUM(S7:S8) -> 277510.8333 | U9: =SUM(U6:U8) -> 19510.83328
A19: Explanatory Notes for future
A21: Formula used for rental rounding off inside programe in D coloumn for premium rounding was creating problems. It was temporarily removed.
A22: This can also cause problems for very small rentals or low price formulas. | H22: Range("B2").Select
A23: program for low price items should be separate without rounding off formulas. | H23: ActiveCell.FormulaR1C1 = "=-(R[4]C/RC[3])*1.2"
A24: Printing problems can be solved by in built macro for page setup or by giving direct command by user to print exact page number.
A25: We can round off the rental directly in Mangenment but the same may not change the effective rate and may involve hiding rates penalty.
C30: Two Years
A31: Req.IRR | B31: Car Rentl | D31: TKFL RNTL | E31: Rntl / Year | G31: Data for Errors
A32: =Basic!C12 -> 0.1 | B32: 67685.27622 | C32: =B32 -> 67685.27622 | D32: 9220.137961 | E32: =$E$2 -> 2 | F32: =D32 -> 9220.137961 | G32: =-(B36)/I33 -> 60000 | H32: =(Basic!C22+Basic!C23)/I33 -> 8550 | I32: =ROUND($J$1/$I$33,0) -> 0
A33: ok | B33: ok | C33: ok | D33: ok | E33: ok | F33: ok | G33: ok | H33: ok | I33: =$E$2*2 -> 4
B34: Cash Flow | E34: Profit Included In | G34: RDV | K34: Rental | N34: W/O Ins | O34: With insu
B35: =IRR(B36:B40,0)*E32 -> 0.1000309931 | D35: =IRR(D36:D40,0)*E32 -> 0.1000114812 | E35: Car Rental | F35: TKAFL | G35: RDV | H35: TKAFL | K35: Car Rental | L35: TKAFL | M35: Total | U35: =IRR(U36:U40,0)*$U$2 -> 0.1000294476
A36: 0 | B36: =-(Basic!C10-Basic!C8) -> -240000 | C36: =-Basic!C22 -> -18000 | D36: =C36 -> -18000 | G36: =-B36 -> 240000 | H36: =-D36 -> 18000 | L36: =-Basic!$C$22/2 -> -9000 | P36: Depreciation | Q36: Takaful | R36: Profit | S36: Rental | T36: terminal Value | U36: =B36+D36 -> -258000
A37: 1 | B37: =$C$32 -> 67685.27622 | D37: =C37+$F$32 -> 9220.137961 | E37: =G36*$B$35/$E$32 -> 12003.71917 | F37: =H36*$D$35/$E$32 -> 900.1033306 | G37: =G36+E37-B37 -> 184318.4429 | H37: =H36-D37+F37 -> 9679.96537 | I37: =ROUND($I$32/1,0) -> 0 | J37: =SUM(I37:$I$40) -> 0 | K37: =B37 -> 67685.27622 | L37: =D37-C37 -> 9220.137961 | M37: =L37+K37 -> 76905.41418 | N37: =Basic!$C$8+G37+G37*Basic!$C$11+J37-I37 -> 253534.3651 | O37: =ROUND((N37+H37)/1,0) -> 263214 | P37: =G36-G37 -> 55681.55705 | Q37: =H36-H37-C37 -> 8320.03463 | R37: =E37+F37+I37 -> 12903.8225 | S37: =R37+Q37+P37 -> 76905.41418 | T37: =O37 -> 263214 | U37: =B37+D37 -> 76905.41418
A38: 2 | B38: =$C$32 -> 67685.27622 | C38: =-Basic!C23 -> -16200 | D38: =C38+$F$32 -> -6979.862039 | E38: =G37*$B$35/$E$32 -> 9218.778443 | F38: =H37*$D$35/$E$32 -> 484.0538372 | G38: =G37+E38-B38 -> 125851.9452 | H38: =H37-D38+F38 -> 17143.88125 | I38: =ROUND($I$32/1,0) -> 0 | J38: =SUM(I38:$I$40) -> 0 | K38: =B38 -> 67685.27622 | L38: =D38-C38 -> 9220.137961 | M38: =L38+K38 -> 76905.41418 | N38: =Basic!$C$8+G38+G38*Basic!$C$11+J38-I38 -> 192144.5424 | O38: =ROUND((N38+H38)/1,0) -> 209288 | P38: =G37-G38 -> 58466.49778 | Q38: 8736.084123 | R38: 9702.83228 | S38: 76905.41418 | T38: 209288 | U38: 60705.41418
A39: 3 | B39: =$C$32 -> 67685.27622 | D39: =C39+$F$32 -> 9220.137961 | E39: =G38*$B$35/$E$32 -> 6294.547527 | F39: =H38*$D$35/$E$32 -> 857.2924783 | G39: 64461.21647 | H39: 8781.035764 | I39: =ROUND($I$32/1,0) -> 0 | J39: =SUM(I39:$I$40) -> 0 | K39: 67685.27622 | L39: 9220.137961 | M39: 76905.41418 | N39: =Basic!$C$8+G39+G39*Basic!$C$11+J39-I39 -> 127684.2773 | O39: 136465 | P39: 61390.72869 | Q39: =H38-H39-C39 -> 8362.845482 | R39: 7151.840005 | S39: 76905.41418 | T39: 136465 | U39: 76905.41418
A40: 4 | B40: =$C$32 -> 67685.27622 | D40: =C40+$F$32 -> 9220.137961 | E40: =G39*$B$35/$E$32 -> 3224.059749 | F40: =H39*$D$35/$E$32 -> 439.1021965 | G40: =G39+E40-B40 -> -1.191801857e-08 | H40: =H39-D40+F40 -> -4.563844413e-09 | I40: =ROUND($I$32/1,0) -> 0 | J40: =SUM(I40:$I$40) -> 0 | K40: 67685.27622 | L40: =D40 -> 9220.137961 | M40: 76905.41418 | N40: =Basic!$C$8+G40+G40*Basic!$C$11+J40-I40 -> 60000 | O40: 60000 | P40: =G39-G40 -> 64461.21647 | Q40: =H39-H40-C40 -> 8781.035764 | R40: 3663.161945 | S40: 76905.41418 | T40: 60000 | U40: 76905.41418
A41: Total | B41: =SUM(B36:B40) -> 30741.10489 | C41: =SUM(C36:C40) -> -34200 | D41: =SUM(D36:D40) -> 2680.551842 | E41: =SUM(E36:E40) -> 30741.10489 | F41: =SUM(F36:F40) -> 2680.551842 | I41: =SUM(I37:I40) -> 0 | K41: =SUM(K36:K40) -> 270741.1049 | L41: =SUM(L36:L40) -> 27880.55184 | M41: =SUM(M36:M40) -> 307621.6567 | P41: =SUM(P37:P40) -> 240000 | Q41: =SUM(Q37:Q40) -> 34200 | R41: =SUM(R37:R40) -> 33421.65673 | S41: =SUM(S37:S40) -> 307621.6567 | U41: =SUM(U36:U40) -> 33421.65673
B42: =B41-B36 -> 270741.1049 | D42: =D41-C41 -> 36880.55184 | E42: =E41+F41 -> 33421.65673
C70: Three Years
A71: Req.IRR | B71: Car Rentl | D71: TKFL RNTL | E71: Rntl / Year | G71: Data for Errors
A72: =Basic!C12 -> 0.1 | B72: 47311.44746 | C72: =B72 -> 47311.44746 | D72: 8804.660997 | E72: =$E$2 -> 2 | F72: =D72 -> 8804.660997 | G72: =-(B76)/I73 -> 40000 | H72: =(Basic!$C$22+Basic!$C$23+Basic!$C$24)/I73 -> 8130 | I72: =ROUND($J$1/$I$73,0) -> 0
A73: ok | B73: ok | C73: ok | D73: ok | E73: ok | F73: ok | G73: ok | H73: ok | I73: =$E$2*3 -> 6
B74: Cash Flow | E74: Profit Included In | G74: RDV | K74: Rental | N74: W/O Ins | O74: With insu
B75: =IRR(B76:B82,0)*E72 -> 0.1003604354 | D75: =IRR(D76:D82,0)*E72 -> 0.1000250851 | E75: Car Rental | F75: TKAFL | G75: RDV | H75: TKAFL | K75: Car Rental | L75: TKAFL | M75: Total | U75: =IRR(U76:U82,0)*$U$2 -> 0.1003326944
A76: 0 | B76: =-(Basic!C10-Basic!C8) -> -240000 | C76: =-Basic!C22 -> -18000 | D76: =C76 -> -18000 | G76: =-B76 -> 240000 | H76: =-D76 -> 18000 | L76: =-Basic!$C$22/2 -> -9000 | P76: Depreciation | Q76: Takaful | R76: Profit | S76: Rental | T76: terminal Value | U76: =B76+D76 -> -258000
A77: 1 | B77: =$C$72 -> 47311.44746 | D77: =C77+$F$72 -> 8804.660997 | E77: =G76*$B$75/$E$72 -> 12043.25225 | F77: =H76*$D$75/$E$72 -> 900.2257662 | G77: =G76+E77-B77 -> 204731.8048 | H77: =H76-D77+F77 -> 10095.56477 | I77: =ROUND($I$72/1,0) -> 0 | J77: =SUM(I77:$I$82) -> 0 | K77: =B77 -> 47311.44746 | L77: =D77-C77 -> 8804.660997 | M77: =L77+K77 -> 56116.10846 | N77: =Basic!$C$8+G77+G77*Basic!$C$11+J77-I77 -> 274968.395 | O77: =ROUND((N77+H77)/1,0) -> 285064 | P77: =G76-G77 -> 35268.19521 | Q77: =H76-H77-C77 -> 7904.435231 | R77: =E77+F77+I77 -> 12943.47802 | S77: =R77+Q77+P77 -> 56116.10846 | T77: =O77 -> 285064 | U77: =B77+D77 -> 56116.10846
A78: 2 | B78: 47311.44746 | C78: =-Basic!C23 -> -16200 | D78: -7395.339003 | E78: =G77*$B$75/$E$72 -> 10273.48654 | F78: =H77*$D$75/$E$72 -> 504.9048628 | G78: =G77+E78-B78 -> 167693.8439 | H78: =H77-D78+F78 -> 17995.80863 | I78: 0 | J78: =SUM(I78:$I$82) -> 0 | K78: =B78 -> 47311.44746 | L78: =D78-C78 -> 8804.660997 | M78: =L78+K78 -> 56116.10846 | N78: =Basic!$C$8+G78+G78*Basic!$C$11+J78-I78 -> 236078.5361 | O78: =ROUND((N78+H78)/1,0) -> 254074 | P78: =G77-G78 -> 37037.96093 | Q78: =H77-H78-C78 -> 8299.756134 | R78: =E78+F78+I78 -> 10778.3914 | S78: =R78+Q78+P78 -> 56116.10846 | T78: 254074 | U78: 39916.10846
A79: 3 | B79: 47311.44746 | D79: 8804.660997 | E79: 8414.913594 | F79: 900.0161454 | G79: 128797.31 | H79: 10091.16378 | I79: 0 | J79: =SUM(I79:$I$82) -> 0 | K79: 47311.44746 | L79: 8804.660997 | M79: 56116.10846 | N79: =Basic!$C$8+G79+G79*Basic!$C$11+J79-I79 -> 195237.1755 | O79: 205328 | P79: 38896.53387 | Q79: 7904.644852 | R79: 9314.92974 | S79: 56116.10846 | T79: 205328 | U79: 56116.10846
A80: 4 | B80: 47311.44746 | C80: =-Basic!C24 -> -14580 | D80: -5775.339003 | E80: 6463.077057 | F80: 504.6847583 | G80: 87948.93959 | H80: 16371.18754 | I80: 0 | J80: =SUM(I80:$I$82) -> 0 | K80: 47311.44746 | L80: =D80-C78 -> 10424.661 | M80: 57736.10846 | N80: =Basic!$C$8+G80+G80*Basic!$C$11+J80-I80 -> 152346.3866 | O80: 168718 | P80: 40848.37041 | Q80: =H79-H80-C78 -> 9919.976239 | R80: 6967.761815 | S80: 57736.10846 | T80: 168718 | U80: 41536.10846
A81: 5 | B81: 47311.44746 | D81: 8804.660997 | E81: 4413.296936 | F81: 818.764714 | G81: 45050.78906 | H81: 8385.291261 | I81: 0 | J81: =SUM(I81:$I$82) -> 0 | K81: 47311.44746 | L81: 8804.660997 | M81: 56116.10846 | N81: =Basic!$C$8+G81+G81*Basic!$C$11+J81-I81 -> 107303.3285 | O81: 115689 | P81: 42898.15053 | Q81: 7985.896283 | R81: 5232.06165 | S81: 56116.10846 | T81: 115689 | U81: 56116.10846
A82: 6 | B82: 47311.44746 | D82: 8804.660997 | E82: 2260.658403 | F82: 419.3697361 | G82: 0 | H82: 2.557953849e-12 | I82: 0 | J82: =SUM(I82:$I$82) -> 0 | K82: 47311.44746 | L82: 8804.660997 | M82: 56116.10846 | N82: =Basic!$C$8+G82+G82*Basic!$C$11+J82-I82 -> 60000 | O82: 60000 | P82: 45050.78906 | Q82: 8385.291261 | R82: 2680.028139 | S82: 56116.10846 | T82: 60000 | U82: 56116.10846
A83: Total | B83: =SUM(B76:B82) -> 43868.68478 | C83: =SUM(C76:C82) -> -48780 | D83: =SUM(D76:D82) -> 4047.965983 | E83: =SUM(E76:E82) -> 43868.68478 | F83: =SUM(F76:F82) -> 4047.965983 | I83: =SUM(I77:I82) -> 0 | K83: =SUM(K76:K82) -> 283868.6848 | L83: =SUM(L76:L82) -> 45447.96598 | M83: =SUM(M76:M82) -> 338316.6508 | P83: =SUM(P77:P82) -> 240000 | Q83: =SUM(Q77:Q82) -> 50400 | R83: =SUM(R77:R82) -> 47916.65076 | S83: =SUM(S77:S82) -> 338316.6508 | U83: =SUM(U76:U82) -> 47916.65076
B84: =B83-B76 -> 283868.6848 | D84: =D83-C83 -> 52827.96598 | E84: =E83+F83 -> 47916.65076
M115: Error
C120: Four Years
A121: Req.IRR | B121: Car Rentl | D121: TKFL RNTL | E121: Rntl / Year | G121: Data for Errors
A122: =Basic!C12 -> 0.1 | B122: 37163.775 | C122: =B122 -> 37163.775 | D122: 8429.158924 | E122: =$E$2 -> 2 | F122: =D122 -> 8429.158924 | G122: =-(B126)/I123 -> 30000 | H122: =(Basic!$C$22+Basic!$C$23+Basic!$C$24+Basic!$C$25)/I123 -> 7737.5 | I122: =ROUND($J$1/$I$123,0) -> 0
A123: ok | B123: ok | C123: ok | D123: ok | E123: ok | F123: ok | G123: ok | H123: ok | I123: =$E$2*4 -> 8
B124: Cash Flow | E124: Profit Included In | G124: RDV | K124: Rental | N124: W/O Ins | O124: With insu
B125: =IRR(B126:B134,0)*E122 -> 0.1004068266 | D125: =IRR(D126:D134,0)*E122 -> 0.1000048979 | E125: Car Rental | F125: TKAFL | G125: RDV | H125: TKAFL | K125: Car Rental | L125: TKAFL | M125: Total | U125: =IRR(U126:U134,0)*$U$2 -> 0.1003725091
A126: 0 | B126: =-(Basic!C10-Basic!C8) -> -240000 | C126: =-Basic!C22 -> -18000 | D126: =C126 -> -18000 | G126: =-B126 -> 240000 | H126: =-D126 -> 18000 | L126: =-Basic!$C$22/2 -> -9000 | P126: Depreciation | Q126: Takaful | R126: Profit | S126: Rental | T126: terminal Value | U126: =B126+D126 -> -258000
A127: 1 | B127: =$C$122 -> 37163.775 | D127: =C127+$F$122 -> 8429.158924 | E127: =G126*$B$125/$E$122 -> 12048.81919 | F127: =H126*$D$125/$E$122 -> 900.0440809 | G127: =G126+E127-B127 -> 214885.0442 | H127: =H126-D127+F127 -> 10470.88516 | I127: =ROUND($I$122/1,0) -> 0 | J127: =SUM(I127:$I$134) -> 0 | K127: =B127 -> 37163.775 | L127: =D127-C127 -> 8429.158924 | M127: =L127+K127 -> 45592.93393 | N127: =Basic!$C$8+G127+G127*Basic!$C$11+J127-I127 -> 285629.2964 | O127: =ROUND((N127+H127)/1,0) -> 296100 | P127: =G126-G127 -> 25114.95581 | Q127: =H126-H127-C127 -> 7529.114843 | R127: =E127+F127+I127 -> 12948.86327 | S127: =R127+Q127+P127 -> 45592.93393 | T127: =O127 -> 296100 | U127: =B127+D127 -> 45592.93393
A128: 2 | B128: 37163.775 | C128: =-Basic!C23 -> -16200 | D128: -7770.841076 | E128: =G127*$B$125/$E$122 -> 10787.96269 | F128: =H127*$D$125/$E$122 -> 523.5699004 | G128: =G127+E128-B128 -> 188509.2319 | H128: =H127-D128+F128 -> 18765.29613 | I128: 0 | J128: =SUM(I128:$I$134) -> 0 | K128: =B128 -> 37163.775 | L128: =D128-C128 -> 8429.158924 | M128: =L128+K128 -> 45592.93393 | N128: =Basic!$C$8+G128+G128*Basic!$C$11+J128-I128 -> 257934.6935 | O128: =ROUND((N128+H128)/1,0) -> 276700 | P128: =G127-G128 -> 26375.81232 | Q128: =H127-H128-C128 -> 7905.589023 | R128: 11311.53259 | S128: 45592.93393 | T128: 276700 | U128: 29392.93393
A129: 3 | B129: 37163.775 | D129: 8429.158924 | E129: 9463.806879 | F129: 938.3107617 | G129: 160809.2638 | H129: 11274.44797 | I129: 0 | J129: =SUM(I129:$I$134) -> 0 | K129: 37163.775 | L129: 8429.158924 | M129: 45592.93393 | N129: =Basic!$C$8+G129+G129*Basic!$C$11+J129-I129 -> 228849.7269 | O129: 240124 | P129: 27699.96812 | Q129: 7490.848162 | R129: 10402.11764 | S129: 45592.93393 | T129: 240124 | U129: 45592.93393
A130: 4 | B130: 37163.775 | C130: =-Basic!C24 -> -14580 | D130: -6150.841076 | E130: 8073.173931 | F130: 563.750009 | G130: 131718.6627 | H130: 17989.03906 | I130: 0 | J130: =SUM(I130:$I$134) -> 0 | K130: 37163.775 | L130: 8429.158924 | M130: 45592.93393 | N130: =Basic!$C$8+G130+G130*Basic!$C$11+J130-I130 -> 198304.5958 | O130: 216294 | P130: 29090.60107 | Q130: 7865.408915 | R130: 8636.92394 | S130: 45592.93393 | T130: 216294 | U130: 31012.93393
A131: 5 | B131: 37163.775 | D131: 8429.158924 | E131: 6612.726462 | F131: 899.4960069 | G131: 101167.6141 | H131: 10459.37614 | I131: 0 | J131: =SUM(I131:$I$134) -> 0 | K131: 37163.775 | L131: 8429.158924 | M131: 45592.93393 | N131: =Basic!$C$8+G131+G131*Basic!$C$11+J131-I131 -> 166225.9948 | O131: 176685 | P131: 30551.04854 | Q131: 7529.662917 | R131: 7512.222469 | S131: 45592.93393 | T131: 176685 | U131: 45592.93393
A132: 6 | B132: 37163.775 | C132: =-Basic!C25 -> -13120 | D132: -4690.841076 | E132: 5078.959545 | F132: 522.9944214 | G132: 69082.79868 | H132: 15673.21164 | I132: 0 | J132: =SUM(I132:$I$134) -> 0 | K132: 37163.775 | L132: 8429.158924 | M132: 45592.93393 | N132: =Basic!$C$8+G132+G132*Basic!$C$11+J132-I132 -> 132536.9386 | O132: 148210 | P132: 32084.81546 | Q132: 7906.164502 | R132: 5601.953967 | S132: 45592.93393 | T132: 148210 | U132: 32472.93393
A133: 7 | B133: 37163.775 | D133: 8429.158924 | E133: 3468.192294 | F133: 783.6989647 | G133: 35387.21597 | H133: 8027.75168 | I133: 0 | J133: =SUM(I133:$I$134) -> 0 | K133: 37163.775 | L133: 8429.158924 | M133: 45592.93393 | N133: =Basic!$C$8+G133+G133*Basic!$C$11+J133-I133 -> 97156.57677 | O133: 105184 | P133: 33695.58271 | Q133: 7645.459959 | R133: 4251.891259 | S133: 45592.93393 | T133: 105184 | U133: 45592.93393
A134: 8 | B134: 37163.775 | D134: 8429.158924 | E134: 1776.559029 | F134: 401.4072435 | G134: -5.820766091e-11 | H134: -1.517719284e-11 | I134: 0 | J134: =SUM(I134:$I$134) -> 0 | K134: 37163.775 | L134: =D134-C130 -> 23009.15892 | M134: 60172.93393 | N134: =Basic!$C$8+G134+G134*Basic!$C$11+J134-I134 -> 60000 | O134: 60000 | P134: 35387.21597 | Q134: 8027.75168 | R134: 2177.966273 | S134: 45592.93393 | T134: 60000 | U134: 45592.93393
A135: Total | B135: =SUM(B126:B134) -> 57310.20002 | C135: =SUM(C126:C134) -> -61900 | D135: =SUM(D126:D134) -> 5533.271389 | E135: =SUM(E126:E134) -> 57310.20002 | F135: =SUM(F126:F134) -> 5533.271389 | I135: =SUM(I127:I134) -> 0 | K135: =SUM(K126:K134) -> 297310.2 | L135: =SUM(L126:L134) -> 73013.27139 | M135: =SUM(M126:M134) -> 379323.4714 | P135: =SUM(P127:P134) -> 240000 | Q135: =SUM(Q127:Q134) -> 61900 | R135: =SUM(R127:R134) -> 62843.47141 | S135: =SUM(S127:S134) -> 364743.4714 | U135: =SUM(U126:U134) -> 62843.47141
B136: =B135-B126 -> 297310.2 | D136: =D135-C135 -> 67433.27139 | E136: =E135+F135 -> 62843.47141
M177: Error
C179: Five Years
A180: Req.IRR | B180: Car Rentl | D180: TKFL RNTL | E180: Rntl / Year | G180: Data for Errors
A181: =Basic!C12 -> 0.1 | B181: 31085.6433 | C181: =B181 -> 31085.6433 | D181: 8090.596438 | E181: =$E$2 -> 2 | F181: =D181 -> 8090.596438 | G181: =-(B185)/I183 -> 24000 | H181: =(Basic!$C$22+Basic!$C$23+Basic!$C$24+Basic!$C$25+Basic!$C$26)/I183 -> 7371 | I181: =ROUND($J$1/$I$183,0) -> 0
A182: ok | B182: ok | C182: ok | D182: ok | E182: ok | F182: ok | G182: ok | H182: ok
B183: Cash Flow | E183: Profit Included In | G183: RDV | I183: =$E$2*5 -> 10 | K183: Rental | N183: W/O Ins | O183: With insu
B184: =IRR(B185:B195,0)*E181 -> 0.1000602252 | D184: =IRR(D185:D195,0)*E181 -> 0.1000131606 | E184: Car Rental | F184: TKAFL | G184: RDV | H184: TKAFL | K184: Car Rental | L184: TKAFL | M184: Total | U184: =IRR(U185:U195,0)*$U$2 -> 0.1000560706
A185: 0 | B185: =-(Basic!C10-Basic!C8) -> -240000 | C185: =-Basic!C22 -> -18000 | D185: =C185 -> -18000 | G185: =-B185 -> 240000 | H185: =-D185 -> 18000 | L185: =-Basic!$C$22/2 -> -9000 | P185: Depreciation | Q185: Takaful | R185: Profit | S185: Rental | T185: terminal Value | U185: =B185+D185 -> -258000
A186: 1 | B186: =$C$181 -> 31085.6433 | D186: =C186+$F$181 -> 8090.596438 | E186: =G185*$B$184/$E$181 -> 12007.22703 | F186: =H185*$D$184/$E$181 -> 900.1184456 | G186: =G185+E186-B186 -> 220921.5837 | H186: =H185-D186+F186 -> 10809.52201 | I186: =ROUND($I$181/1,0) -> 0 | J186: =SUM(I186:$I$195) -> 0 | K186: =B186 -> 31085.6433 | L186: =D186-C186 -> 8090.596438 | M186: =L186+K186 -> 39176.23974 | N186: =Basic!$C$8+G186+G186*Basic!$C$11+J186-I186 -> 291967.6629 | O186: =ROUND((N186+H186)/1,0) -> 302777 | P186: =G185-G186 -> 19078.41627 | Q186: =H185-H186-C186 -> 7190.477993 | R186: =E186+F186+I186 -> 12907.34547 | S186: =R186+Q186+P186 -> 39176.23974 | T186: =O186 -> 302777 | U186: =B186+D186 -> 39176.23974
A187: 2 | B187: 31085.6433 | C187: =-Basic!C23 -> -16200 | D187: -8109.403562 | E187: =G186*$B$184/$E$181 -> 11052.73171 | F187: =H186*$D$184/$E$181 -> 540.5472304 | G187: =G186+E187-B187 -> 200888.6721 | H187: =H186-D187+F187 -> 19459.4728 | I187: 0 | J187: =SUM(I187:$I$195) -> 0 | K187: =B187 -> 31085.6433 | L187: =D187-C187 -> 8090.596438 | M187: =L187+K187 -> 39176.23974 | N187: =Basic!$C$8+G187+G187*Basic!$C$11+J187-I187 -> 270933.1057 | O187: 290393 | P187: 20032.91159 | Q187: 7550.049208 | R187: 11593.27894 | S187: 39176.23974 | T187: 290393 | U187: 22976.23974
A188: 3 | B188: 31085.6433 | D188: 8090.596438 | E188: 10050.48289 | F188: 973.1016894 | G188: 179853.5117 | H188: 12341.97805 | I188: 0 | J188: =SUM(I188:$I$195) -> 0 | K188: 31085.6433 | L188: 8090.596438 | M188: 39176.23974 | N188: =Basic!$C$8+G188+G188*Basic!$C$11+J188-I188 -> 248846.1873 | O188: 261188 | P188: 21035.16041 | Q188: 7117.494749 | R188: 11023.58458 | S188: 39176.23974 | T188: 261188 | U188: 39176.23974
A189: 4 | B189: 31085.6433 | C189: =-Basic!C24 -> -14580 | D189: -6489.403562 | E189: 8998.091445 | F189: 617.1801166 | G189: 157765.9599 | H189: 19448.56173 | I189: 0 | J189: =SUM(I189:$I$195) -> 0 | K189: 31085.6433 | L189: 8090.596438 | M189: 39176.23974 | N189: =Basic!$C$8+G189+G189*Basic!$C$11+J189-I189 -> 225654.2579 | O189: 245103 | P189: 22087.55185 | Q189: 7473.416322 | R189: 9615.271562 | S189: 39176.23974 | T189: 245103 | U189: 24596.23974
A190: 5 | B190: 31085.6433 | D190: 8090.596438 | E190: 7893.048739 | F190: 972.5560641 | G190: 134573.3653 | H190: 12330.52136 | I190: 0 | J190: =SUM(I190:$I$195) -> 0 | K190: 31085.6433 | L190: 8090.596438 | M190: 39176.23974 | N190: =Basic!$C$8+G190+G190*Basic!$C$11+J190-I190 -> 201302.0336 | O190: 213633 | P190: 23192.59456 | Q190: 7118.040374 | R190: 8865.604803 | S190: 39176.23974 | T190: 213633 | U190: 39176.23974
A191: 6 | B191: 31085.6433 | C191: =-Basic!C25 -> -13120 | D191: -5029.403562 | E191: 6732.720621 | F191: 616.6072065 | G191: 110220.4426 | H191: 17976.53212 | I191: 0 | J191: =SUM(I191:$I$195) -> 0 | K191: 31085.6433 | L191: 8090.596438 | M191: 39176.23974 | N191: =Basic!$C$8+G191+G191*Basic!$C$11+J191-I191 -> 175731.4648 | O191: 193708 | P191: 24352.92268 | Q191: 7473.989232 | R191: 7349.327828 | S191: 39176.23974 | T191: 193708 | U191: 26056.23974
A192: 7 | B192: 31085.6433 | D192: 8090.596438 | E192: 5514.341157 | F192: 898.9448974 | G192: 84649.14049 | H192: 10784.88058 | I192: 0 | J192: =SUM(I192:$I$195) -> 0 | K192: 31085.6433 | L192: 8090.596438 | M192: 39176.23974 | N192: =Basic!$C$8+G192+G192*Basic!$C$11+J192-I192 -> 148881.5975 | O192: 159666 | P192: 25571.30214 | Q192: 7191.651541 | R192: 6413.286055 | S192: 39176.23974 | T192: 159666 | U192: 39176.23974
A193: 8 | B193: 31085.6433 | C193: =-Basic!C26 -> -11810 | D193: -3719.403562 | E193: 4235.006031 | F193: 539.314997 | G193: 57798.50323 | H193: 15043.59914 | I193: 0 | J193: =SUM(I193:$I$195) -> 0 | K193: 31085.6433 | L193: =D193-C189 -> 10860.59644 | M193: 41946.23974 | N193: =Basic!$C$8+G193+G193*Basic!$C$11+J193-I193 -> 120688.4284 | O193: 135732 | P193: 26850.63727 | Q193: =H192-H193-C189 -> 10321.28144 | R193: 4774.321028 | S193: 41946.23974 | T193: 135732 | U193: 27366.23974
A194: 9 | B194: 31085.6433 | D194: 8090.596438 | E194: 2891.665625 | F194: 752.2789487 | G194: 29604.52555 | H194: 7705.281652 | I194: 0 | J194: =SUM(I194:$I$195) -> 0 | K194: 31085.6433 | L194: 8090.596438 | M194: 39176.23974 | N194: =Basic!$C$8+G194+G194*Basic!$C$11+J194-I194 -> 91084.75183 | O194: 98790 | P194: 28193.97767 | Q194: 7338.317489 | R194: 3643.944574 | S194: 39176.23974 | T194: 98790 | U194: 39176.23974
A195: 10 | B195: 31085.6433 | D195: 8090.596438 | E195: 1481.117747 | F195: 385.3147858 | G195: -1.164153218e-10 | H195: -3.270201887e-10 | I195: 0 | J195: =SUM(I195:$I$195) -> 0 | K195: 31085.6433 | L195: 8090.596438 | M195: 39176.23974 | N195: =Basic!$C$8+G195+G195*Basic!$C$11+J195-I195 -> 60000 | O195: 60000 | P195: 29604.52555 | Q195: 7705.281652 | R195: 1866.432533 | S195: 39176.23974 | T195: 60000 | U195: 39176.23974
A196: Total | B196: =SUM(B185:B195) -> 70856.43299 | C196: =SUM(C185:C195) -> -73710 | D196: =SUM(D185:D195) -> 7195.964382 | E196: =SUM(E185:E195) -> 70856.43299 | F196: =SUM(F185:F195) -> 7195.964382 | I196: =SUM(I186:I195) -> 0 | K196: =SUM(K185:K195) -> 310856.433 | L196: =SUM(L185:L195) -> 74675.96438 | M196: =SUM(M185:M195) -> 394532.3974 | P196: =SUM(P186:P195) -> 240000 | Q196: =SUM(Q186:Q195) -> 76480 | R196: =SUM(R186:R195) -> 78052.39738 | S196: =SUM(S186:S195) -> 394532.3974 | U196: =SUM(U185:U195) -> 78052.39738
B197: =B196-B185 -> 310856.433 | D197: =D196-C196 -> 80905.96438 | E197: =E196+F196 -> 78052.39738
M198: Error

Sheet Yy
A1: Req.IRR | B1: Car Rentl | D1: TKFL RNTL | E1: Rntl / Year | G1: Data for Errors | I1: Total Aditionl | J1: =Basic!C15 -> 0
A2: =Basic!C12 -> 0.1 | B2: 264000 | C2: =B2 -> 264000 | D2: 19800 | E2: 1 | F2: =D2 -> 19800 | G2: =-(B6/E2)*1.3 -> 312000 | H2: =Basic!C22/I4 -> 18000 | I2: =ROUND($J$1/$I$4,0) -> 0 | U2: =E2 -> 1
A3: ok | B3: ok | C3: ok | D3: ok | E3: ok | F3: ok | G3: ok | H3: ok
B4: Cash Flow | E4: Profit Included In | G4: RDV | I4: =E2 -> 1 | K4: Rental | N4: W/O Ins | O4: With insu | P4: Depreciation | Q4: Takaful | R4: Profit | S4: Rental | T4: terminal Value
B5: =IRR(B6:B7,0)*E2 -> 0.1 | D5: =IRR(D6:D7,0)*E2 -> 0.1 | E5: Car Rental | F5: TKAFL | G5: RDV | H5: TKAFL | I5: Booking Period Profit | K5: Car Rental | L5: TKAFL | M5: Total | N5: Termination value | U5: =IRR(U6:U7,0)*$U$2 -> 0.1
A6: 0 | B6: =-(Basic!C10-Basic!C8) -> -240000 | C6: =-Basic!C22 -> -18000 | D6: =C6 -> -18000 | G6: =-B6 -> 240000 | H6: =-D6 -> 18000 | L6: =-Basic!$C$22/2 -> -9000 | U6: =B6+D6 -> -258000
A7: 1 | B7: =$C$2 -> 264000 | D7: =C7+$F$2 -> 19800 | E7: =G6*$B$5/$E$2 -> 24000 | F7: =H6*$D$5/$E$2 -> 1800 | G7: =G6+E7-B7 -> -7.043126971e-09 | H7: =H6-D7+F7 -> -5.293259164e-10 | I7: =ROUND($I$2/1,0) -> 0 | J7: =SUM(I7:$I$7) -> 0 | K7: =B7 -> 264000 | L7: =D7-C7 -> 19800 | M7: =L7+K7 -> 283800 | N7: =Basic!$C$8+G7+G7*Basic!$C$11+J7-I7 -> 60000 | O7: =ROUND((N7+H7)/1,0) -> 60000 | P7: =G6-G7 -> 240000 | Q7: =H6-H7-C7 -> 18000 | R7: =E7+F7+I7 -> 25800 | S7: =R7+Q7+P7 -> 283800 | T7: =O7 -> 60000 | U7: =B7+D7 -> 283800
A8: Total | B8: =SUM(B6:B7) -> 24000 | C8: =SUM(C6:C7) -> -18000 | D8: =SUM(D6:D7) -> 1800 | E8: =SUM(E6:E7) -> 24000 | F8: =SUM(F6:F7) -> 1800 | I8: =SUM(I5:I7) -> 0 | K8: =SUM(K6:K7) -> 264000 | L8: =SUM(L6:L7) -> 10800 | M8: =SUM(M6:M7) -> 283800 | P8: =SUM(P7:P7) -> 240000 | Q8: =SUM(Q7:Q7) -> 18000 | R8: =SUM(R7:R7) -> 25800 | S8: =SUM(S7:S7) -> 283800 | U8: =SUM(U6:U7) -> 25800
A18: Explanatory Notes for future
A20: Formula used for rental rounding off inside programe in D coloumn for premium rounding was creating problems. It was temporarily removed.
A21: This can also cause problems for very small rentals or low price formulas.
A22: program for low price items should be separate without rounding off formulas.
A23: Printing problems can be solved by in built macro for page setup or by giving direct command by user to print exact page number.
A24: We can round off the rental directly in Mangenment but the same may not change the effective rate and may involve hiding rates penalty.
C30: Two Years
A31: Req.IRR | B31: Car Rentl | D31: TKFL RNTL | E31: Rntl / Year | G31: Data for Errors
A32: =Basic!C12 -> 0.1 | B32: 138412.453 | C32: =B32 -> 138412.453 | D32: 18857.40737 | E32: =$E$2 -> 1 | F32: =D32 -> 18857.40737 | G32: =-(B36)/I33 -> 120000 | H32: =(Basic!C22+Basic!C23)/I33 -> 17100 | I32: =ROUND($J$1/$I$33,0) -> 0
A33: ok | B33: ok | C33: ok | D33: ok | E33: ok | F33: ok | G33: ok | H33: ok | I33: =$E$2*2 -> 2
B34: Cash Flow | E34: Profit Included In | G34: RDV | K34: Rental | N34: W/O Ins | O34: With insu
B35: =IRR(B36:B38,0)*E32 -> 0.1006828747 | D35: =IRR(D36:D38,0)*E32 -> 0.1000150363 | E35: Car Rental | F35: TKAFL | G35: RDV | H35: TKAFL | K35: Car Rental | L35: TKAFL | M35: Total | U35: =IRR(U36:U38,0)*$U$2 -> 0.100625058
A36: 0 | B36: =-(Basic!C10-Basic!C8) -> -240000 | C36: =-Basic!C22 -> -18000 | D36: =C36 -> -18000 | G36: =-B36 -> 240000 | H36: =-D36 -> 18000 | L36: =-Basic!$C$22/2 -> -9000 | P36: Depreciation | Q36: Takaful | R36: Profit | S36: Rental | T36: terminal Value | U36: =B36+D36 -> -258000
A37: 1 | B37: =$C$32 -> 138412.453 | C37: =-Basic!C23 -> -16200 | D37: =C37+$F$32 -> 2657.407373 | E37: =G36*$B$35/$E$32 -> 24163.88993 | F37: =H36*$D$35/$E$32 -> 1800.270653 | G37: =G36+E37-B37 -> 125751.4369 | H37: =H36-D37+F37 -> 17142.86328 | I37: =ROUND($I$32/1,0) -> 0 | J37: =SUM(I37:$I$38) -> 0 | K37: =B37 -> 138412.453 | L37: =D37-C37 -> 18857.40737 | M37: =L37+K37 -> 157269.8604 | N37: =Basic!$C$8+G37+G37*Basic!$C$11+J37-I37 -> 192039.0087 | O37: =ROUND((N37+H37)/1,0) -> 209182 | P37: =G36-G37 -> 114248.5631 | Q37: =H36-H37-C37 -> 17057.13672 | R37: =E37+F37+I37 -> 25964.16059 | S37: =R37+Q37+P37 -> 157269.8604 | T37: =O37 -> 209182 | U37: =B37+D37 -> 141069.8604
A38: 2 | B38: =$C$32 -> 138412.453 | D38: =C38+$F$32 -> 18857.40737 | E38: =G37*$B$35/$E$32 -> 12661.01617 | F38: =H37*$D$35/$E$32 -> 1714.544093 | G38: 0 | H38: -8.753954717e-08 | I38: =ROUND($I$32/1,0) -> 0 | J38: =SUM(I38:$I$38) -> 0 | K38: 138412.453 | L38: =D38-C38 -> 18857.40737 | M38: 157269.8604 | N38: =Basic!$C$8+G38+G38*Basic!$C$11+J38-I38 -> 60000 | O38: =ROUND((N38+H38)/1,0) -> 60000 | P38: =G37-G38 -> 125751.4369 | Q38: =H37-H38-C38 -> 17142.86328 | R38: 14375.56026 | S38: 157269.8604 | T38: 60000 | U38: 157269.8604
A39: Total | B39: =SUM(B36:B38) -> 36824.9061 | C39: =SUM(C36:C38) -> -34200 | D39: =SUM(D36:D38) -> 3514.814746 | E39: =SUM(E36:E38) -> 36824.9061 | F39: =SUM(F36:F38) -> 3514.814746 | I39: =SUM(I37:I38) -> 0 | K39: =SUM(K36:K38) -> 276824.9061 | L39: =SUM(L36:L38) -> 28714.81475 | M39: =SUM(M36:M38) -> 314539.7208 | P39: =SUM(P37:P38) -> 240000 | Q39: =SUM(Q37:Q38) -> 34200 | R39: =SUM(R37:R38) -> 40339.72084 | S39: =SUM(S37:S38) -> 314539.7208 | U39: =SUM(U36:U38) -> 40339.72084
B40: =B39-B36 -> 276824.9061 | D40: =D39-C39 -> 37714.81475 | E40: =E39+F39 -> 40339.72084
C70: Three Years
A71: Req.IRR | B71: Car Rentl | D71: TKFL RNTL | E71: Rntl / Year | G71: Data for Errors
A72: =Basic!C12 -> 0.1 | B72: 96530.0929 | C72: =B72 -> 96530.0929 | D72: 18009.27705 | E72: =$E$2 -> 1 | F72: =D72 -> 18009.27705 | G72: =-(B76)/I73 -> 80000 | H72: =(Basic!$C$22+Basic!$C$23+Basic!$C$24)/I73 -> 16260 | I72: =ROUND($J$1/$I$73,0) -> 0
A73: ok | B73: ok | C73: ok | D73: ok | E73: ok | F73: ok | G73: ok | H73: ok | I73: =$E$2*3 -> 3
B74: Cash Flow | E74: Profit Included In | G74: RDV | K74: Rental | N74: W/O Ins | O74: With insu
B75: =IRR(B76:B79,0)*E72 -> 0.1001326601 | D75: =IRR(D76:D79,0)*E72 -> 0.1002193027 | E75: Car Rental | F75: TKAFL | G75: RDV | H75: TKAFL | K75: Car Rental | L75: TKAFL | M75: Total | U75: =IRR(U76:U79,0)*$U$2 -> 0.1001407527
A76: 0 | B76: =-(Basic!C10-Basic!C8) -> -240000 | C76: =-Basic!C22 -> -18000 | D76: =C76 -> -18000 | G76: =-B76 -> 240000 | H76: =-D76 -> 18000 | L76: =-Basic!$C$22/2 -> -9000 | P76: Depreciation | Q76: Takaful | R76: Profit | S76: Rental | T76: terminal Value | U76: =B76+D76 -> -258000
A77: 1 | B77: =$C$72 -> 96530.0929 | C77: =-Basic!C23 -> -16200 | D77: =C77+$F$72 -> 1809.277052 | E77: =G76*$B$75/$E$72 -> 24031.83842 | F77: =H76*$D$75/$E$72 -> 1803.947448 | G77: =G76+E77-B77 -> 167501.7455 | H77: =H76-D77+F77 -> 17994.6704 | I77: =ROUND($I$72/1,0) -> 0 | J77: =SUM(I77:$I$79) -> 0 | K77: =B77 -> 96530.0929 | L77: =D77-C77 -> 18009.27705 | M77: =L77+K77 -> 114539.3699 | N77: =Basic!$C$8+G77+G77*Basic!$C$11+J77-I77 -> 235876.8328 | O77: =ROUND((N77+H77)/1,0) -> 253872 | P77: =G76-G77 -> 72498.25448 | Q77: =H76-H77-C77 -> 16205.3296 | R77: =E77+F77+I77 -> 25835.78586 | S77: =R77+Q77+P77 -> 114539.3699 | T77: =O77 -> 253872 | U77: =B77+D77 -> 98339.36995
A78: 2 | B78: 96530.0929 | C78: =-Basic!C24 -> -14580 | D78: 3429.277052 | E78: 16772.39534 | F78: 1803.413319 | G78: 87744.04797 | H78: 16368.80666 | I78: 0 | J78: =SUM(I78:$I$79) -> 0 | K78: 96530.0929 | L78: 18009.27705 | M78: 114539.3699 | N78: =Basic!$C$8+G78+G78*Basic!$C$11+J78-I78 -> 152131.2504 | O78: 168500 | P78: 79757.69755 | Q78: 16205.86373 | R78: 18575.80866 | S78: 114539.3699 | T78: 168500 | U78: 99959.36995
A79: 3 | B79: 96530.0929 | D79: 18009.27705 | E79: 8786.044928 | F79: 1640.470389 | G79: 0 | H79: -4.320099833e-12 | I79: 0 | J79: =SUM(I79:$I$79) -> 0 | K79: 96530.0929 | L79: 18009.27705 | M79: 114539.3699 | N79: =Basic!$C$8+G79+G79*Basic!$C$11+J79-I79 -> 60000 | O79: 60000 | P79: 87744.04797 | Q79: 16368.80666 | R79: 10426.51532 | S79: 114539.3699 | T79: 60000 | U79: 114539.3699
A80: Total | B80: =SUM(B76:B79) -> 49590.27869 | C80: =SUM(C76:C79) -> -48780 | D80: =SUM(D76:D79) -> 5247.831156 | E80: =SUM(E76:E79) -> 49590.27869 | F80: =SUM(F76:F79) -> 5247.831156 | I80: =SUM(I77:I79) -> 0 | K80: =SUM(K76:K79) -> 289590.2787 | L80: =SUM(L76:L79) -> 45027.83116 | M80: =SUM(M76:M79) -> 343618.1098 | P80: =SUM(P77:P79) -> 240000 | Q80: =SUM(Q77:Q79) -> 48780 | R80: =SUM(R77:R79) -> 54838.10984 | S80: =SUM(S77:S79) -> 343618.1098 | U80: =SUM(U76:U79) -> 54838.10984
B81: =B80-B76 -> 289590.2787 | D81: =D80-C80 -> 54027.83116 | E81: =E80+F80 -> 54838.10984
M112: Error
C120: Four Years
A121: Req.IRR | B121: Car Rentl | D121: TKFL RNTL | E121: Rntl / Year | G121: Data for Errors
A122: =Basic!C12 -> 0.1 | B122: 75736.84205 | C122: =B122 -> 75736.84205 | D122: 17236.11276 | E122: =$E$2 -> 1 | F122: =D122 -> 17236.11276 | G122: =-(B126)/I123 -> 60000 | H122: =(Basic!$C$22+Basic!$C$23+Basic!$C$24+Basic!$C$25)/I123 -> 15475 | I122: =ROUND($J$1/$I$123,0) -> 0
A123: ok | B123: ok | C123: ok | D123: ok | E123: ok | F123: ok | G123: ok | H123: ok | I123: =$E$2*4 -> 4
B124: Cash Flow | E124: Profit Included In | G124: RDV | K124: Rental | N124: W/O Ins | O124: With insu
B125: =IRR(B126:B130,0)*E122 -> 0.1001455059 | D125: =IRR(D126:D130,0)*E122 -> 0.1000365256 | E125: Car Rental | F125: TKAFL | G125: RDV | H125: TKAFL | K125: Car Rental | L125: TKAFL | M125: Total | U125: =IRR(U126:U130,0)*$U$2 -> 0.1001348882
A126: 0 | B126: =-(Basic!C10-Basic!C8) -> -240000 | C126: =-Basic!C22 -> -18000 | D126: =C126 -> -18000 | G126: =-B126 -> 240000 | H126: =-D126 -> 18000 | L126: =-Basic!$C$22/2 -> -9000 | P126: Depreciation | Q126: Takaful | R126: Profit | S126: Rental | T126: terminal Value | U126: =B126+D126 -> -258000
A127: 1 | B127: =$C$122 -> 75736.84205 | C127: =-Basic!C23 -> -16200 | D127: =C127+$F$122 -> 1036.112763 | E127: =G126*$B$125/$E$122 -> 24034.92142 | F127: =H126*$D$125/$E$122 -> 1800.65746 | G127: =G126+E127-B127 -> 188298.0794 | H127: =H126-D127+F127 -> 18764.5447 | I127: =ROUND($I$122/1,0) -> 0 | J127: =SUM(I127:$I$130) -> 0 | K127: =B127 -> 75736.84205 | L127: =D127-C127 -> 17236.11276 | M127: =L127+K127 -> 92972.95482 | N127: =Basic!$C$8+G127+G127*Basic!$C$11+J127-I127 -> 257712.9833 | O127: =ROUND((N127+H127)/1,0) -> 276478 | P127: =G126-G127 -> 51701.92063 | Q127: =H126-H127-C127 -> 15435.4553 | R127: =E127+F127+I127 -> 25835.57888 | S127: =R127+Q127+P127 -> 92972.95482 | T127: =O127 -> 276478 | U127: =B127+D127 -> 76772.95482
A128: 2 | B128: =$C$122 -> 75736.84205 | C128: =-Basic!C24 -> -14580 | D128: =C128+$F$122 -> 2656.112763 | E128: =G127*$B$125/$E$122 -> 18857.20643 | F128: =H127*$D$125/$E$122 -> 1877.139856 | G128: 131418.4437 | H128: 17985.57179 | I128: =ROUND($I$122/1,0) -> 0 | J128: =SUM(I128:$I$130) -> 0 | K128: 75736.84205 | L128: 17236.11276 | M128: 92972.95482 | N128: =Basic!$C$8+G128+G128*Basic!$C$11+J128-I128 -> 197989.3659 | O128: 215975 | P128: 56879.63563 | Q128: 15358.97291 | R128: 20734.34628 | S128: 92972.95482 | T128: 215975 | U128: 78392.95482
A129: 3 | B129: =$C$122 -> 75736.84205 | C129: =-Basic!C25 -> -13120 | D129: =C129+$F$122 -> 4116.112763 | E129: =G128*$B$125/$E$122 -> 13160.96654 | F129: =H128*$D$125/$E$122 -> 1799.214113 | G129: 68842.56823 | H129: 15668.67314 | I129: =ROUND($I$122/1,0) -> 0 | J129: =SUM(I129:$I$130) -> 0 | K129: 75736.84205 | L129: 17236.11276 | M129: 92972.95482 | N129: =Basic!$C$8+G129+G129*Basic!$C$11+J129-I129 -> 132284.6966 | O129: 147953 | P129: 62575.87552 | Q129: 15436.89865 | R129: 14960.18065 | S129: 92972.95482 | T129: 147953 | U129: 79852.95482
A130: 4 | B130: =$C$122 -> 75736.84205 | D130: =C130+$F$122 -> 17236.11276 | E130: =G129*$B$125/$E$122 -> 6894.273825 | F130: =H129*$D$125/$E$122 -> 1567.439622 | G130: 0 | H130: -1.018634066e-10 | I130: =ROUND($I$122/1,0) -> 0 | J130: =SUM(I130:$I$130) -> 0 | K130: 75736.84205 | L130: 17236.11276 | M130: 92972.95482 | N130: =Basic!$C$8+G130+G130*Basic!$C$11+J130-I130 -> 60000 | O130: 60000 | P130: 68842.56823 | Q130: 15668.67314 | R130: 8461.713447 | S130: 92972.95482 | T130: 60000 | U130: 92972.95482
A131: Total | B131: =SUM(B126:B130) -> 62947.36821 | C131: =SUM(C126:C130) -> -61900 | D131: =SUM(D126:D130) -> 7044.45105 | E131: =SUM(E126:E130) -> 62947.36821 | F131: =SUM(F126:F130) -> 7044.45105 | I131: =SUM(I127:I130) -> 0 | K131: =SUM(K126:K130) -> 302947.3682 | L131: =SUM(L126:L130) -> 59944.45105 | M131: =SUM(M126:M130) -> 371891.8193 | P131: =SUM(P127:P130) -> 240000 | Q131: =SUM(Q127:Q130) -> 61900 | R131: =SUM(R127:R130) -> 69991.81926 | S131: =SUM(S127:S130) -> 371891.8193 | U131: =SUM(U126:U130) -> 69991.81926
B132: =B131-B126 -> 302947.3682 | D132: =D131-C131 -> 68944.45105 | E132: =E131+F131 -> 69991.81926
M177: Error
C179: Five Years
A180: Req.IRR | B180: Car Rentl | D180: TKFL RNTL | E180: Rntl / Year | G180: Data for Errors
A181: =Basic!C12 -> 0.1 | B181: 63314.29753 | C181: =B181 -> 63314.29753 | D181: 16539.66927 | E181: =$E$2 -> 1 | F181: =D181 -> 16539.66927 | G181: =-(B185)/I183 -> 48000 | H181: =(Basic!$C$22+Basic!$C$23+Basic!$C$24+Basic!$C$25+Basic!$C$26)/I183 -> 14742 | I181: =ROUND($J$1/$I$183,0) -> 0
A182: ok | B182: ok | C182: ok | D182: ok | E182: ok | F182: ok | G182: ok | H182: ok
B183: Cash Flow | E183: Profit Included In | G183: RDV | I183: =$E$2*5 -> 5 | K183: Rental | N183: W/O Ins | O183: With insu
B184: =IRR(B185:B190,0)*E181 -> 0.1000179432 | D184: =IRR(D185:D190,0)*E181 -> 0.09996884704 | E184: Car Rental | F184: TKAFL | G184: RDV | H184: TKAFL | K184: Car Rental | L184: TKAFL | M184: Total | U184: =IRR(U185:U190,0)*$U$2 -> 0.1000129985
A185: 0 | B185: =-(Basic!C10-Basic!C8) -> -240000 | C185: =-Basic!C22 -> -18000 | D185: =C185 -> -18000 | G185: =-B185 -> 240000 | H185: =-D185 -> 18000 | L185: =-Basic!$C$22/2 -> -9000 | P185: Depreciation | Q185: Takaful | R185: Profit | S185: Rental | T185: terminal Value | U185: =B185+D185 -> -258000
A186: 1 | B186: =$C$181 -> 63314.29753 | C186: =-Basic!C23 -> -16200 | D186: =C186+$F$181 -> 339.6692745 | E186: =G185*$B$184/$E$181 -> 24004.30636 | F186: =H185*$D$184/$E$181 -> 1799.439247 | G186: =G185+E186-B186 -> 200690.0088 | H186: =H185-D186+F186 -> 19459.76997 | I186: =ROUND($I$181/1,0) -> 0 | J186: =SUM(I186:$I$190) -> 0 | K186: =B186 -> 63314.29753 | L186: =D186-C186 -> 16539.66927 | M186: =L186+K186 -> 79853.9668 | N186: =Basic!$C$8+G186+G186*Basic!$C$11+J186-I186 -> 270724.5093 | O186: =ROUND((N186+H186)/1,0) -> 290184 | P186: =G185-G186 -> 39309.99117 | Q186: =H185-H186-C186 -> 14740.23003 | R186: =E186+F186+I186 -> 25803.7456 | S186: =R186+Q186+P186 -> 79853.9668 | T186: =O186 -> 290184 | U186: =B186+D186 -> 63653.9668
A187: 2 | B187: =$C$181 -> 63314.29753 | C187: =-Basic!C24 -> -14580 | D187: =C187+$F$181 -> 1959.669275 | E187: =G186*$B$184/$E$181 -> 20072.60189 | F187: =H186*$D$184/$E$181 -> 1945.370768 | G187: 157448.3132 | H187: 19445.47147 | I187: =ROUND($I$181/1,0) -> 0 | J187: =SUM(I187:$I$190) -> 0 | K187: 63314.29753 | L187: 16539.66927 | M187: 79853.9668 | N187: =Basic!$C$8+G187+G187*Basic!$C$11+J187-I187 -> 225320.7289 | O187: 244766 | P187: 43241.69563 | Q187: 14594.29851 | R187: 22017.97266 | S187: 79853.9668 | T187: 244766 | U187: 65273.9668
A188: 3 | B188: =$C$181 -> 63314.29753 | C188: =-Basic!C25 -> -13120 | D188: =C188+$F$181 -> 3419.669275 | E188: =G187*$B$184/$E$181 -> 15747.65644 | F188: =H187*$D$184/$E$181 -> 1943.941362 | G188: 109881.6721 | H188: 17969.74355 | I188: =ROUND($I$181/1,0) -> 0 | J188: =SUM(I188:$I$190) -> 0 | K188: 63314.29753 | L188: 16539.66927 | M188: 79853.9668 | N188: =Basic!$C$8+G188+G188*Basic!$C$11+J188-I188 -> 175375.7557 | O188: 193345 | P188: 47566.64109 | Q188: 14595.72791 | R188: 17691.5978 | S188: 79853.9668 | T188: 193345 | U188: 66733.9668
A189: 4 | B189: =$C$181 -> 63314.29753 | C189: =-Basic!C26 -> -11810 | D189: =C189+$F$181 -> 4729.669275 | E189: =G188*$B$184/$E$181 -> 10990.13884 | F189: =H188*$D$184/$E$181 -> 1796.414545 | G189: 57557.51342 | H189: 15036.48882 | I189: =ROUND($I$181/1,0) -> 0 | J189: =SUM(I189:$I$190) -> 0 | K189: 63314.29753 | L189: 16539.66927 | M189: 79853.9668 | N189: =Basic!$C$8+G189+G189*Basic!$C$11+J189-I189 -> 120435.3891 | O189: 135472 | P189: 52324.15869 | Q189: 14743.25473 | R189: 12786.55338 | S189: 79853.9668 | T189: 135472 | U189: 68043.9668
A190: 5 | B190: =$C$181 -> 63314.29753 | D190: =C190+$F$181 -> 16539.66927 | E190: =G189*$B$184/$E$181 -> 5756.784105 | F190: =H189*$D$184/$E$181 -> 1503.180451 | G190: -8.221832104e-10 | H190: -2.640035746e-09 | I190: =ROUND($I$181/1,0) -> 0 | J190: =SUM(I190:$I$190) -> 0 | K190: 63314.29753 | L190: 16539.66927 | M190: 79853.9668 | N190: =Basic!$C$8+G190+G190*Basic!$C$11+J190-I190 -> 60000 | O190: 60000 | P190: 57557.51342 | Q190: 15036.48882 | R190: 7259.964557 | S190: 79853.9668 | T190: 60000 | U190: 79853.9668
A191: Total | B191: =SUM(B185:B190) -> 76571.48763 | C191: =SUM(C185:C190) -> -73710 | D191: =SUM(D185:D190) -> 8988.346373 | E191: =SUM(E185:E190) -> 76571.48763 | F191: =SUM(F185:F190) -> 8988.346373 | I191: =SUM(I186:I190) -> 0 | K191: =SUM(K185:K190) -> 316571.4876 | L191: =SUM(L185:L190) -> 73698.34637 | M191: =SUM(M185:M190) -> 399269.834 | P191: =SUM(P186:P190) -> 240000 | Q191: =SUM(Q186:Q190) -> 73710 | R191: =SUM(R186:R190) -> 85559.834 | S191: =SUM(S186:S190) -> 399269.834 | U191: =SUM(U185:U190) -> 85559.834
B192: =B191-B185 -> 316571.4876 | D192: =D191-C191 -> 82698.34637 | E192: =E191+F191 -> 85559.834
M193: Error
